Workbook

Sheet Instructions

Sheet W Aust av 1100 mm EX 10
A2: Run type : | B2: SingleSite | E2: Stand initialisation and site factor data | K2: Optional parameter block
A3: Site : | B3: Pemberton | F3: Year planted = | G3: 1999 | I3: Latitude = | J3: -35 | L3: Parameters
A4: Species : | B4: E. globulus | F4: Month planted = | G4: Jan | I4: Fertility rating = | J4: ? | L4: alpha = | M4: 0.04
A5: Climate data : | B5: Pemberton Metdata 1100 | F5: Initial year = | G5: 1 | I5: Soil class = | J5: cl | L5: pFS2= | M5: 0.8
A6: Met station : | B6: Mean data | F6: Initial month = | G6: Jan | I6: Maximum ASW = | J6: ? | L6: pFS20= | M6: 0.5
A7: Title : | B7: Match Monthly ET and LAI | F7: End age = | G7: 20 | I7: Minimum ASW = | J7: 0 | L7: gammaFx = | M7: 0.027
F8: Initial WF = | G8: 2 | I8: Atmospheric CO2 = | J8: 360 | L8: LAIgcx | M8: 5
F9: Initial WR = | G9: 3
F10: Initial WS = | G10: 2 | L10: Av LAI Yr 20
F11: Initial stocking = | G11: 1000 | L11: =SUM(H256:H267)/12 -> 4.781531294
F12: Initial ASW = | G12: 300
F16: Output details
G17: Output frequency : | H17: m
H21: .
A36: #Output from 3PGpjs 2.7 / 3-PG vsn 1 Sep2009
A37: Stand development for Pemberton | R37: 3-PG Transp | S37: 3-PG Transp | T37: 3-PG Transp
A38: Match Monthly ET and LAI | R38: FR=?. | S38: FR=? | T38: FR=?
A39: Year & month | B39: Stand age | C39: Stems | D39: Foliage DM | E39: Root DM | F39: Stem DM | G39: Stand volume | H39: LAI | I39: MAI | J39: Mean DBH | K39: Basal area | L39: GPP | M39: Penman transp. | Q39: Month | R39: 1000mm | S39: 500 mm | T39: 250 mm | U39: MODIS ET
A40: 2000 - Jan | B40: 1 | C40: 1000 | D40: 2 | E40: 3 | F40: 2 | G40: 1.892159695 | H40: 2.053035099 | I40: 1.892159695 | J40: 3.559407102 | K40: 0.9950506935 | Q40: JAN | U40: 122.5
A41: 2000 - Feb | B41: 1.083333333 | C41: 1000 | D41: 2.000844579 | E41: 3.1755542 | F41: 2.040557873 | G41: 1.985299139 | H41: 2.029996714 | I41: 1.832583821 | J41: 3.589306508 | K41: 1.011837974 | L41: 0.6169290468 | M41: 13.95179517 | Q41: FEB | U41: 99.9
A42: 2000 - Mar | B42: 1.166666667 | C42: 1000 | D42: 1.99680982 | E42: 3.339389021 | F42: 2.07954397 | G42: 2.077455386 | H42: 2.000648186 | I42: 1.780676045 | J42: 3.617722153 | K42: 1.027922329 | L42: 0.5917737599 | M42: 12.80811549 | Q42: MAR | U42: 86.3
A43: 2000 - Apr | B43: 1.25 | C43: 1000 | D43: 1.986670879 | E43: 3.477154594 | F43: 2.114859219 | G43: 2.166312022 | H43: 1.964077446 | I43: 1.733049618 | J43: 3.643195196 | K43: 1.042448869 | L43: 0.5280947456 | M43: 8.802833954 | Q43: APR | U43: 56.6
A44: 2000 - May | B44: 1.333333333 | C44: 1000 | D44: 1.975919135 | E44: 3.614242384 | F44: 2.153657552 | G44: 2.259060832 | H44: 1.926008219 | I44: 1.694295624 | J44: 3.670896174 | K44: 1.058361624 | L44: 0.5436295872 | M44: 8.96273579 | Q44: MAY | U44: 42
A45: 2000 - Jun | B45: 1.416666667 | C45: 1000 | D45: 1.97266714 | E45: 3.774550373 | F45: 2.206866134 | G45: 2.367643379 | H45: 1.894386208 | I45: 1.671277679 | J45: 3.708416405 | K45: 1.080107219 | L45: 0.6496477261 | M45: 10.93007909 | Q45: JUN | U45: 30.7
A46: 2000 - Jul | B46: 1.5 | C46: 1000 | D46: 2.009923961 | E46: 4.067912547 | F46: 2.321009098 | G46: 2.544021274 | H46: 1.900212675 | I46: 1.696014183 | J46: 3.787161704 | K46: 1.126464681 | L46: 1.158775839 | M46: 18.3565859 | Q46: JUL | U46: 31.2
A47: 2000 - Aug | B47: 1.583333333 | C47: 1000 | D47: 2.102305082 | E47: 4.578380125 | F47: 2.518300531 | G47: 2.817106352 | H47: 1.955337943 | I47: 1.779225065 | J47: 3.918110199 | K47: 1.205710865 | L47: 1.930479381 | M47: 24.08439481 | Q47: AUG | U47: 43.8
A48: 2000 - Sep | B48: 1.666666667 | C48: 1000 | D48: 2.264402337 | E48: 5.395366912 | F48: 2.822575539 | G48: 3.219375627 | H48: 2.070585511 | I48: 1.931625376 | J48: 4.108823508 | K48: 1.325943 | L48: 2.983269538 | M48: 29.18763138 | Q48: SEP | U48: 65.6
A49: 2000 - Oct | B49: 1.75 | C49: 1000 | D49: 2.536029677 | E49: 6.723955597 | F49: 3.296285726 | G49: 3.829900768 | H49: 2.278413616 | I49: 2.188514725 | J49: 4.383209061 | K49: 1.508947924 | L49: 4.702982959 | M49: 41.13600667 | Q49: OCT | U49: 100
A50: 2000 - Nov | B50: 1.833333333 | C50: 1000 | D50: 2.851457302 | E50: 8.349002838 | F50: 3.852394305 | G50: 4.555765072 | H50: 2.515503684 | I50: 2.484962766 | J50: 4.677383395 | K50: 1.718287459 | L50: 5.66183464 | M50: 56.03858463 | Q50: NOV | U50: 117.5
A51: 2000 - Dec | B51: 1.916666667 | C51: 1000 | D51: 3.180008677 | E51: 10.12541681 | F51: 4.449060422 | G51: 5.350828903 | H51: 2.753114456 | I51: 2.791736819 | J51: 4.966612658 | K51: 1.937360601 | L51: 6.169467531 | M51: 71.55266713 | Q51: DEC | U51: 124.3
A52: 2001 - Jan | B52: 2 | C52: 1000 | D52: 3.461541237 | E52: 11.75351362 | F52: 4.996575827 | G52: 6.106926012 | H52: 2.939537579 | I52: 3.053463006 | J52: 5.21269161 | K52: 2.134095971 | L52: 5.726138591 | M52: 80.14419494 | Q52: Sum | U52: =SUM(U40:U51) -> 920.4
A53: 2001 - Feb | B53: 2.083333333 | C53: 1000 | D53: 3.657266791 | E53: 12.99843096 | F53: 5.431567174 | G53: 6.74166622 | H53: 3.044905242 | I53: 3.235999785 | J53: 5.397185096 | K53: 2.287833981 | L53: 4.558294806 | M53: 72.70242218
A54: 2001 - Mar | B54: 2.166666667 | C54: 1000 | D54: 3.836561707 | E54: 14.15610148 | F54: 5.853483503 | G54: 7.37327814 | H54: 3.130258578 | I54: 3.403051449 | J54: 5.568067574 | K54: 2.434999498 | L54: 4.362094648 | M54: 71.00766285
A55: 2001 - Apr | B55: 2.25 | C55: 1000 | D55: 3.993491483 | E55: 15.13900788 | F55: 6.251843658 | G55: 7.987060747 | H55: 3.191867157 | I55: 3.549804777 | J55: 5.72293144 | K55: 2.572331688 | L55: 3.94083075 | M55: 51.74954113
A56: 2001 - May | B56: 2.333333333 | C56: 1000 | D56: 4.088427938 | E56: 15.81534466 | F56: 6.563587587 | G56: 8.499559821 | H56: 3.200044985 | I56: 3.642668495 | J56: 5.840150422 | K56: 2.678785552 | L56: 3.013604625 | M56: 41.21502768
A57: 2001 - Jun | B57: 2.416666667 | C57: 1000 | D57: 4.125735726 | E57: 16.21824037 | F57: 6.791491696 | G57: 8.909516961 | H57: 3.161430591 | I57: 3.686696674 | J57: 5.923803632 | K57: 2.756075996 | L57: 2.158580399 | M57: 31.68005506
A58: 2001 - Jul | B58: 2.5 | C58: 1000 | D58: 4.163751554 | E58: 16.61879963 | F58: 7.023169108 | G58: 9.328814277 | H58: 3.122813665 | I58: 3.731525711 | J58: 6.007179836 | K58: 2.834204273 | L58: 2.178738155 | M58: 31.8438865
A59: 2001 - Aug | B59: 2.583333333 | C59: 1000 | D59: 4.268862095 | E59: 17.31579887 | F59: 7.362426002 | G59: 9.896944133 | H59: 3.133077017 | I59: 3.831075148 | J59: 6.126426449 | K59: 2.947842863 | L59: 3.196531431 | M59: 37.42413047
A60: 2001 - Sep | B60: 2.666666667 | C60: 1000 | D60: 4.479329689 | E60: 18.48967996 | F60: 7.873254738 | G60: 10.70569911 | H60: 3.216702229 | I60: 4.014637167 | J60: 6.300080868 | K60: 3.117325339 | L60: 4.828997989 | M60: 44.34295446
A61: 2001 - Oct | B61: 2.75 | C61: 1000 | D61: 4.849692245 | E61: 20.44114109 | F61: 8.648775995 | G61: 11.89049823 | H61: 3.407335724 | I61: 4.323817537 | J61: 6.551583315 | K61: 3.371183695 | L61: 7.436592839 | M61: 60.8175266
A62: 2001 - Nov | B62: 2.833333333 | C62: 1000 | D62: 5.275831218 | E62: 22.79834685 | F62: 9.535394912 | G62: 13.24898494 | H62: 3.626449174 | I62: 4.676112333 | J62: 6.823485655 | K62: 3.656810432 | L62: 8.738652479 | M62: 80.13201588
A63: 2001 - Dec | B63: 2.916666667 | C63: 1000 | D63: 5.711880356 | E63: 25.32734659 | F63: 10.46389426 | G63: 14.68786661 | H63: 3.84122614 | I63: 5.035839982 | J63: 7.092849157 | K63: 3.95122107 | L63: 9.314207413 | M63: 98.96488999
A64: 2002 - Jan | B64: 3 | C64: 1000 | D64: 6.073136683 | E64: 27.58270126 | F64: 11.29784382 | G64: 16.01451701 | H64: 3.996106404 | I64: 5.338172337 | J64: 7.323128429 | K64: 4.211949764 | L64: 8.47755484 | M64: 107.5856622
A65: 2002 - Feb | B65: 3.083333333 | C65: 1000 | D65: 6.307648995 | E65: 29.23264024 | F65: 11.94672972 | G65: 17.0946274 | H65: 4.061446192 | I65: 5.544203482 | J65: 7.495528569 | K65: 4.412598459 | L65: 6.618847701 | M65: 95.27384005
A66: 2002 - Mar | B66: 3.166666667 | C66: 1000 | D66: 6.508720953 | E66: 30.69241091 | F66: 12.554398 | G66: 18.12782596 | H66: 4.101819461 | I66: 5.724576618 | J66: 7.652090887 | K66: 4.598859279 | L66: 6.121605024 | M66: 91.34811624
A67: 2002 - Apr | B67: 3.25 | C67: 1000 | D67: 6.670546286 | E67: 31.85521237 | F67: 13.10909953 | G67: 19.09483285 | H67: 4.115385842 | I67: 5.875333186 | J67: 7.791191096 | K67: 4.767575666 | L67: 5.351767232 | M67: 65.26449169
A68: 2002 - May | B68: 3.333333333 | C68: 1000 | D68: 6.745294072 | E68: 32.56632846 | F68: 13.52942812 | G68: 19.87358269 | H68: 4.075119375 | I68: 5.962074806 | J68: 7.894323711 | K68: 4.894628597 | L68: 3.966027038 | M68: 51.14787564
A69: 2002 - Jun | B69: 3.416666667 | C69: 1000 | D69: 6.743528748 | E69: 32.89600712 | F69: 13.82768272 | G69: 20.4770149 | H69: 3.990797382 | I69: 5.993272655 | J69: 7.966375077 | K69: 4.984382722 | L69: 2.758967647 | M69: 38.84392898
A70: 2002 - Jul | B70: 3.5 | C70: 1000 | D70: 6.739543672 | E70: 33.20380689 | F70: 14.12276148 | G70: 21.0780311 | H70: 3.908395624 | I70: 6.022294599 | J70: 8.036772497 | K70: 5.072864131 | L70: 2.711393733 | M70: 38.75716808
A71: 2002 - Aug | B71: 3.583333333 | C71: 1000 | D71: 6.811291204 | E71: 33.85417614 | F71: 14.54395902 | G71: 21.8707885 | H71: 3.872347841 | I71: 6.103475862 | J71: 8.135787538 | K71: 5.198632037 | L71: 3.879358274 | M71: 45.25387243
A72: 2002 - Sep | B72: 3.666666667 | C72: 1000 | D72: 6.998620183 | E72: 35.04250025 | F72: 15.16184111 | G72: 22.96616948 | H72: 3.902412476 | I72: 6.263500766 | J72: 8.278058159 | K72: 5.382038846 | L72: 5.713237249 | M72: 53.07758694
A73: 2002 - Oct | B73: 3.75 | C73: 1000 | D73: 7.355659727 | E73: 37.08293304 | F73: 16.07386556 | G73: 24.5188545 | H73: 4.024699772 | I73: 6.5383612 | J73: 8.482007184 | K73: 5.650503566 | L73: 8.561856933 | M73: 71.70762465
A74: 2002 - Nov | B74: 3.833333333 | C74: 1000 | D74: 7.758888372 | E74: 39.50203134 | F74: 17.08416437 | G74: 26.23674104 | H74: 4.168047775 | I74: 6.844367228 | J74: 8.70019974 | K74: 5.944951665 | L74: 9.760538826 | M74: 92.43369414
A75: 2002 - Dec | B75: 3.916666667 | C75: 1000 | D75: 8.157008831 | E75: 42.02099678 | F75: 18.10947311 | G75: 27.99340882 | H75: 4.304563277 | I75: 7.147253315 | J75: 8.914067546 | K75: 6.240820948 | L75: 10.09446734 | M75: 111.5348642
A76: 2003 - Jan | B76: 4 | C76: 1000 | D76: 8.46372395 | E76: 44.16541893 | F76: 19.00309978 | G76: 29.56037744 | H76: 4.390157976 | I76: 7.390094359 | J76: 9.09477623 | K76: 6.49641735 | L76: 8.926182607 | M76: 118.6471583
A77: 2003 - Feb | B77: 4.083333333 | C77: 1000 | D77: 8.633500979 | E77: 45.62444955 | F77: 19.68131808 | G77: 30.80214666 | H77: 4.404451485 | I77: 7.543382856 | J77: 9.228640737 | K77: 6.689064144 | L77: 6.804293889 | M77: 103.2785137
A78: 2003 - Mar | B78: 4.166666667 | C78: 1000 | D78: 8.770485123 | E78: 46.88347855 | F78: 20.31338739 | G78: 31.97863688 | H78: 4.403408787 | I78: 7.674872852 | J78: 9.350994696 | K78: 6.867608077 | L78: 6.267119678 | M78: 97.88650829
A79: 2003 - Apr | B79: 4.25 | C79: 1000 | D79: 8.869363544 | E79: 47.83689749 | F79: 20.88823833 | G79: 33.07069497 | H79: 4.38530133 | I79: 7.781339992 | J79: 9.460358341 | K79: 7.029186325 | L79: 5.46212305 | M79: 69.25366642
A80: 2003 - May | B80: 4.333333333 | C80: 1000 | D80: 8.882981534 | E80: 48.33023108 | F80: 21.32268336 | G80: 33.94406259 | H80: 4.328062709 | I80: 7.833245213 | J80: 9.541850441 | K80: 7.150807578 | L80: 4.039188243 | M80: 53.91016836
A81: 2003 - Jun | B81: 4.416666667 | C81: 1000 | D81: 8.822227013 | E81: 48.43799024 | F81: 21.6306331 | G81: 34.61716127 | H81: 4.238678072 | I81: 7.837847835 | J81: 9.59902989 | K81: 7.236766658 | L81: 2.807968119 | M81: 40.81520293
A82: 2003 - Jul | B82: 4.5 | C82: 1000 | D82: 8.761037413 | E82: 48.52732604 | F82: 21.93538677 | G82: 35.28504565 | H82: 4.153522109 | I82: 7.841121255 | J82: 9.655150282 | K82: 7.321633024 | L82: 2.760994321 | M82: 40.72684294
A83: 2003 - Aug | B83: 4.583333333 | C83: 1000 | D83: 8.776965042 | E83: 48.96966165 | F83: 22.37058688 | G83: 36.16361174 | H83: 4.108711612 | I83: 7.890242562 | J83: 9.734509468 | K83: 7.442485979 | L83: 3.953019926 | M83: 47.58794456
A84: 2003 - Sep | B84: 4.666666667 | C84: 1000 | D84: 8.909527544 | E84: 49.96304979 | F84: 23.00864296 | G84: 37.37344604 | H84: 4.121035793 | I84: 8.00859558 | J84: 9.849248233 | K84: 7.618966216 | L84: 5.820272919 | M84: 55.75304815
A85: 2003 - Oct | B85: 4.75 | C85: 1000 | D85: 9.212004557 | E85: 51.8235674 | F85: 23.94850377 | G85: 39.08045572 | H85: 4.212923385 | I85: 8.227464363 | J85: 10.01492785 | K85: 7.877447752 | L85: 8.70820705 | M85: 75.04899208
A86: 2003 - Nov | B86: 4.833333333 | C86: 1000 | D86: 9.560474822 | E86: 54.06264217 | F86: 24.98562872 | G86: 40.95571909 | H86: 4.325832371 | I86: 8.473597053 | J86: 10.19340897 | K86: 8.160725669 | L86: 9.895205856 | M86: 96.06617095
A87: 2003 - Dec | B87: 4.916666667 | C87: 1000 | D87: 9.904020108 | E87: 56.39657532 | F87: 26.03431514 | G87: 42.85977298 | H87: 4.436497388 | I87: 8.717241962 | J87: 10.36953774 | K87: 8.445175419 | L87: 10.20263112 | M87: 115.1000597
A88: 2004 - Jan | B88: 5 | C88: 1000 | D88: 10.15765254 | E88: 58.34849867 | F88: 26.94563743 | G88: 44.54616751 | H88: 4.507458312 | I88: 8.909233502 | J88: 10.51926405 | K88: 8.6908168 | L88: 9.000499395 | M88: 121.7267397
A89: 2004 - Feb | B89: 5.083333333 | C89: 1000 | D89: 10.27701232 | E89: 59.60979726 | F89: 27.63610635 | G89: 45.87307937 | H89: 4.520417352 | I89: 9.024212335 | J89: 10.63074875 | K89: 8.876006054 | L89: 6.852363771 | M89: 105.6148374
A90: 2004 - Mar | B90: 5.166666667 | C90: 1000 | D90: 10.36540836 | E90: 60.67253064 | F90: 28.2792956 | G90: 47.12505879 | H90: 4.521959122 | I90: 9.12097912 | J90: 10.73314696 | K90: 9.047821694 | L90: 6.310520535 | M90: 100.0566593
A91: 2004 - Apr | B91: 5.25 | C91: 1000 | D91: 10.41760134 | E91: 61.43086341 | F91: 28.86418092 | G91: 48.28252871 | H91: 4.510063736 | I91: 9.196672135 | J91: 10.82508995 | K91: 9.203497712 | L91: 5.500776201 | M91: 70.79280361
A92: 2004 - May | B92: 5.333333333 | C92: 1000 | D92: 10.36793286 | E92: 61.67387747 | F92: 29.27284154 | G92: 49.14623359 | H92: 4.456750549 | I92: 9.214918798 | J92: 10.88868745 | K92: 9.311956641 | L92: 3.839881266 | M92: 52.5852638
A93: 2004 - Jun | B93: 5.416666667 | C93: 1000 | D93: 10.26544261 | E93: 61.58815649 | F93: 29.58630869 | G93: 49.84937876 | H93: 4.383705251 | I93: 9.202962232 | J93: 10.93712035 | K93: 9.394980085 | L93: 2.830421565 | M93: 41.79979709
A94: 2004 - Jul | B94: 5.5 | C94: 1000 | D94: 10.16395093 | E94: 61.48796918 | F94: 29.89693268 | G94: 50.54637644 | H94: 4.313993999 | I94: 9.190250262 | J94: 10.98481958 | K94: 9.477106001 | L94: 2.787093997 | M94: 41.85767967
A95: 2004 - Aug | B95: 5.583333333 | C95: 1000 | D95: 10.14051417 | E95: 61.74873196 | F95: 30.3411204 | G95: 51.468556 | H95: 4.279916644 | I95: 9.218248835 | J95: 11.05252918 | K95: 9.594298405 | L95: 3.996297633 | M95: 49.08698062
A96: 2004 - Sep | B96: 5.666666667 | C96: 1000 | D96: 10.23454745 | E96: 62.57113188 | F96: 30.99289717 | G96: 52.74408063 | H96: 4.297308223 | I96: 9.307778935 | J96: 11.15084393 | K96: 9.765744472 | L96: 5.889861203 | M96: 57.65464807
A97: 2004 - Oct | B97: 5.75 | C97: 1000 | D97: 10.49905857 | E97: 64.27444179 | F97: 31.95298754 | G97: 54.54814648 | H97: 4.387468463 | I97: 9.48663417 | J97: 11.29349274 | K97: 10.01720209 | L97: 8.814491745 | M97: 77.69591904
A98: 2004 - Nov | B98: 5.833333333 | C98: 1000 | D98: 10.81022843 | E98: 66.36138964 | F98: 33.01132558 | G98: 56.52567924 | H98: 4.497868183 | I98: 9.690116442 | J98: 11.44787115 | K98: 10.29293777 | L98: 10.00861047 | M98: 99.38383067
A99: 2004 - Dec | B99: 5.916666667 | C99: 1000 | D99: 11.11725164 | E99: 68.54420707 | F99: 34.0801946 | G99: 58.52723083 | H99: 4.607222618 | I99: 9.891926337 | J99: 11.60088243 | K99: 10.56992564 | L99: 10.31065243 | M99: 118.9364694
A100: 2005 - Jan | B100: 6 | C100: 1000 | D100: 11.33559903 | E100: 70.34156925 | F100: 35.00810801 | G100: 60.29174158 | H100: 4.68066276 | I100: 10.0486236 | J100: 11.73146091 | K100: 10.80921306 | L100: 9.089259293 | M100: 125.6664385
A101: 2005 - Feb | B101: 6.083333333 | C101: 1000 | D101: 11.42129783 | E101: 71.44353137 | F101: 35.71079183 | G101: 61.67135542 | H101: 4.70046064 | I101: 10.13775706 | J101: 11.82900679 | K101: 10.98971535 | L101: 6.918147714 | M101: 109.0284529
A102: 2005 - Mar | B102: 6.166666667 | C102: 1000 | D102: 11.47727976 | E102: 72.34815705 | F102: 36.36542956 | G102: 62.96952337 | H102: 4.709307821 | I102: 10.21127406 | J102: 11.91888049 | K102: 11.15734371 | L102: 6.372922017 | M102: 103.389653
A103: 2005 - Apr | B103: 6.25 | C103: 1000 | D103: 11.47655874 | E103: 72.88115851 | F103: 36.92176407 | G103: 64.09820876 | H103: 4.696176903 | I103: 10.2557134 | J103: 11.99451934 | K103: 11.29940511 | L103: 5.284518819 | M103: 70.21637514
A104: 2005 - May | B104: 6.333333333 | C104: 1000 | D104: 11.37665978 | E104: 72.89911026 | F104: 37.30008388 | G104: 64.91728118 | H104: 4.64381098 | I104: 10.25009703 | J104: 12.04557635 | K104: 11.39580609 | L104: 3.61586608 | M104: 51.29014683
A105: 2005 - Jun | B105: 6.416666667 | C105: 1000 | D105: 11.24301852 | E105: 72.64434995 | F105: 37.61301822 | G105: 65.62090513 | H105: 4.579027932 | I105: 10.22663457 | J105: 12.08758129 | K105: 11.47542284 | L105: 2.819551578 | M105: 42.71044743
A106: 2005 - Jul | B106: 6.5 | C106: 1000 | D106: 11.11483757 | E106: 72.3878498 | F106: 37.92951718 | G106: 66.3288444 | H106: 4.517720803 | I106: 10.2044376 | J106: 12.12985787 | K106: 11.5558343 | L106: 2.819243827 | M106: 43.35730128
A107: 2005 - Aug | B107: 6.583333333 | C107: 1000 | D107: 11.06557027 | E107: 72.49994027 | F107: 38.38250402 | G107: 67.27413818 | H107: 4.489556148 | I107: 10.21885643 | J107: 12.19000942 | K107: 11.67072844 | L107: 4.04623056 | M107: 50.95880906
A108: 2005 - Sep | B108: 6.666666667 | C108: 1000 | D108: 11.13466844 | E108: 73.18402741 | F108: 39.04751924 | G108: 68.59108581 | H108: 4.510246402 | I108: 10.28866287 | J108: 12.27757043 | K108: 11.83899262 | L108: 5.966957492 | M108: 59.94341712
A109: 2005 - Oct | B109: 6.75 | C109: 1000 | D109: 11.37508367 | E109: 74.7629801 | F109: 40.02703588 | G109: 70.46244599 | H109: 4.600913103 | I109: 10.43888089 | J109: 12.4049712 | K109: 12.08596695 | L109: 8.930385179 | M109: 80.83951863
A110: 2005 - Nov | B110: 6.833333333 | C110: 1000 | D110: 11.66263195 | E110: 76.73087376 | F110: 41.10590457 | G110: 72.51204744 | H110: 4.711064244 | I110: 10.61151914 | J110: 12.54320688 | K110: 12.35682943 | L110: 10.13379273 | M110: 103.3771169
A111: 2005 - Dec | B111: 6.916666667 | C111: 1000 | D111: 11.94639656 | E111: 78.79552656 | F111: 42.19445366 | G111: 74.58226047 | H111: 4.820065264 | I111: 10.78297742 | J111: 12.68055419 | K111: 12.62892402 | L111: 10.43153334 | M111: 123.6199909
A112: 2006 - Jan | B112: 7 | C112: 1000 | D112: 12.14192783 | E112: 80.47028398 | F112: 43.13859388 | G112: 76.40007863 | H112: 4.893865719 | I112: 10.91429695 | J112: 12.79801628 | K112: 12.86397531 | L112: 9.18917983 | M112: 130.5078585
A113: 2006 - Feb | B113: 7.083333333 | C113: 1000 | D113: 12.20545907 | E113: 81.44316482 | F113: 43.8531458 | G113: 77.81270406 | H113: 4.914921483 | I113: 10.98532293 | J113: 12.88592141 | K113: 13.04129857 | L113: 6.991170865 | M113: 113.1704706
A114: 2006 - Mar | B114: 7.166666667 | C114: 1000 | D114: 12.23994098 | E114: 82.2186042 | F114: 44.51872061 | G114: 79.13880317 | H114: 4.924755659 | I114: 11.0426237 | J114: 12.96705279 | K114: 13.20603486 | L114: 6.439767995 | M114: 107.3001901
A115: 2006 - Apr | B115: 7.25 | C115: 1000 | D115: 12.15493198 | E115: 82.40392879 | F115: 44.96810118 | G115: 80.08004566 | H115: 4.886987089 | I115: 11.04552354 | J115: 13.02143138 | K115: 13.31702868 | L115: 4.496709861 | M115: 63.10687853
A116: 2006 - May | B116: 7.333333333 | C116: 1000 | D116: 11.99961645 | E116: 82.16330563 | F116: 45.28484021 | G116: 80.78342123 | H116: 4.821427478 | I116: 11.01592108 | J116: 13.0595691 | K116: 13.39514986 | L116: 3.159664754 | M116: 46.97730194
A117: 2006 - Jun | B117: 7.416666667 | C117: 1000 | D117: 11.82861063 | E117: 81.71746952 | F117: 45.56531426 | G117: 81.41995046 | H117: 4.750006619 | I117: 10.97797085 | J117: 13.09321055 | K117: 13.46425057 | L117: 2.595896475 | M117: 40.8635622
A118: 2006 - Jul | B118: 7.5 | C118: 1000 | D118: 11.68432298 | E118: 81.33239621 | F118: 45.88647595 | G118: 82.12707761 | H118: 4.689703851 | I118: 10.95027701 | J118: 13.13158427 | K118: 13.54328855 | L118: 2.844543122 | M118: 44.64537706
A119: 2006 - Aug | B119: 7.583333333 | C119: 1000 | D119: 11.61936447 | E119: 81.32157527 | F119: 46.34628123 | G119: 83.08078391 | H119: 4.661564576 | I119: 10.95570777 | J119: 13.18625195 | K119: 13.65628654 | L119: 4.084018066 | M119: 52.50851456
A120: 2006 - Sep | B120: 7.666666667 | C120: 1000 | D120: 11.6731364 | E120: 81.89024322 | F120: 47.02135945 | G120: 84.4198158 | H120: 4.681312296 | I120: 11.01128032 | J120: 13.26594391 | K120: 13.8218506 | L120: 6.02354165 | M120: 61.78459257
A121: 2006 - Oct | B121: 7.75 | C121: 1000 | D121: 11.89844727 | E121: 83.36368188 | F121: 48.01543905 | G121: 86.33239535 | H121: 4.770037262 | I121: 11.13966392 | J121: 13.38208779 | K121: 14.0649318 | L121: 9.013526514 | M121: 83.31617977
A122: 2006 - Nov | B122: 7.833333333 | C122: 1000 | D122: 12.171021 | E122: 85.22970439 | F122: 49.10957997 | G122: 88.42672433 | H122: 4.877848564 | I122: 11.288518 | J122: 13.5083122 | K122: 14.3315136 | L122: 10.22223505 | M122: 106.4827434
A123: 2006 - Dec | B123: 7.916666667 | C123: 1000 | D123: 12.43994811 | E123: 87.19300574 | F123: 50.21267375 | G123: 90.53916008 | H123: 4.984320948 | I123: 11.43652548 | J123: 13.63391952 | K123: 14.59927648 | L123: 10.51571353 | M123: 127.2179573
A124: 2007 - Jan | B124: 8 | C124: 1000 | D124: 12.62098399 | E124: 88.76326029 | F124: 51.16872512 | G124: 92.38797593 | H124: 5.055698998 | I124: 11.54849699 | J124: 13.74148748 | K124: 14.83055399 | L124: 9.257692534 | M124: 134.1778557
A125: 2007 - Feb | B125: 8.083333333 | C125: 1000 | D125: 12.67059923 | E125: 89.62719737 | F125: 51.89190906 | G125: 93.81682986 | H125: 5.074560808 | I125: 11.60620576 | J125: 13.82207838 | K125: 15.00502018 | L125: 7.040322836 | M125: 115.1885263
A126: 2007 - Mar | B126: 8.166666667 | C126: 1000 | D126: 12.69158534 | E126: 90.29365789 | F126: 52.56534241 | G126: 95.15550153 | H126: 5.082082793 | I126: 11.65169407 | J126: 13.89653808 | K126: 15.16712008 | L126: 6.483817291 | M126: 108.8123998
A127: 2007 - Apr | B127: 8.25 | C127: 1000 | D127: 12.52641379 | E127: 90.097818 | F127: 52.89491818 | G127: 95.87055209 | H127: 5.01518622 | I127: 11.62067298 | J127: 13.93277563 | K127: 15.24632483 | L127: 3.543919144 | M127: 51.77215442
A128: 2007 - May | B128: 8.333333333 | C128: 1000 | D128: 12.3231928 | E128: 89.60180338 | F128: 53.14569843 | G128: 96.44069971 | H128: 4.933176929 | I128: 11.57288397 | J128: 13.9602613 | K128: 15.30653807 | L128: 2.640904402 | M128: 40.87623079
A129: 2007 - Jun | B129: 8.416666667 | C129: 1000 | D129: 12.12030576 | E129: 88.97537007 | F129: 53.38700279 | G129: 96.99141615 | H129: 4.851407823 | I129: 11.52373261 | J129: 13.98663708 | K129: 15.36443143 | L129: 2.316462285 | M129: 37.74185855
A130: 2007 - Jul | B130: 8.5 | C130: 1000 | D130: 11.96740567 | E130: 88.48543073 | F130: 53.71115137 | G130: 97.69060415 | H130: 4.789736808 | I130: 11.49301225 | J130: 14.02195892 | K130: 15.44213206 | L130: 2.857846702 | M130: 45.39181598
A131: 2007 - Aug | B131: 8.583333333 | C131: 1000 | D131: 11.89378412 | E131: 88.37318259 | F131: 54.17525836 | G131: 98.64280226 | H131: 4.759868389 | I131: 11.49236531 | J131: 14.07231596 | K131: 15.55324583 | L131: 4.103486653 | M131: 53.38888844
A132: 2007 - Sep | B132: 8.666666667 | C132: 1000 | D132: 11.9386686 | E132: 88.84472343 | F132: 54.85660635 | G132: 99.98972445 | H132: 4.77748275 | I132: 11.5372759 | J132: 14.14579049 | K132: 15.71608339 | L132: 6.052134483 | M132: 62.81184754
A133: 2007 - Oct | B133: 8.75 | C133: 1000 | D133: 12.15459598 | E133: 90.22642698 | F133: 55.85967607 | G133: 101.9232466 | H133: 4.863585104 | I133: 11.64837104 | J133: 14.25299622 | K133: 15.95519885 | L133: 9.054713956 | M133: 84.67503033
A134: 2007 - Nov | B134: 8.833333333 | C134: 1000 | D134: 12.41768575 | E134: 92.00282993 | F134: 56.96319659 | G134: 104.0409674 | H134: 4.968591161 | I134: 11.77822273 | J134: 14.36964849 | K134: 16.21743518 | L134: 10.26507177 | M134: 108.1588007
A135: 2007 - Dec | B135: 8.916666667 | C135: 1000 | D135: 12.67722054 | E135: 93.87706393 | F135: 58.07518846 | G135: 106.1751893 | H135: 5.072202491 | I135: 11.90749787 | J135: 14.48587031 | K135: 16.48082952 | L135: 10.55549071 | M135: 129.1265645
A136: 2008 - Jan | B136: 9 | C136: 1000 | D136: 12.84937142 | E136: 95.35709526 | F136: 59.03850048 | G136: 108.0382906 | H136: 5.140877406 | I136: 12.00425451 | J136: 14.58550757 | K136: 16.70832736 | L136: 9.289223707 | M136: 134.4767888
A137: 2008 - Feb | B137: 9.083333333 | C137: 1000 | D137: 12.89089089 | E137: 96.12918245 | F137: 59.7669196 | G137: 109.4715297 | H137: 5.157314543 | I137: 12.05191152 | J137: 14.66022137 | K137: 16.87994152 | L137: 7.06237285 | M137: 115.1419909
A138: 2008 - Mar | B138: 9.166666667 | C138: 1000 | D138: 12.84685373 | E138: 96.49781933 | F138: 60.33760147 | G138: 110.6151485 | H138: 5.139548194 | I138: 12.06710711 | J138: 14.71838578 | K138: 17.01414954 | L138: 5.7133476 | M138: 97.55990285
A139: 2008 - Apr | B139: 9.25 | C139: 1000 | D139: 12.64702161 | E139: 96.07563424 | F139: 60.61382585 | G139: 111.2175152 | H139: 5.059478508 | I139: 12.02351516 | J139: 14.74642359 | K139: 17.07903353 | L139: 3.081998971 | M139: 45.67597688
A140: 2008 - May | B140: 9.333333333 | C140: 1000 | D140: 12.42264537 | E140: 95.41692681 | F140: 60.83388949 | G140: 111.7148789 | H140: 4.969612294 | I140: 11.96945131 | J140: 14.76870757 | K140: 17.13069032 | L140: 2.382093755 | M140: 37.29532416
A141: 2008 - Jun | B141: 9.416666667 | C141: 1000 | D141: 12.2049871 | E141: 94.66466267 | F141: 61.05526138 | G141: 112.2126503 | H141: 4.882452653 | I141: 11.91638764 | J141: 14.79107664 | K141: 17.18262279 | L141: 2.16620172 | M141: 35.85369878
A142: 2008 - Jul | B142: 9.5 | C142: 1000 | D142: 12.04863554 | E142: 94.09027477 | F142: 61.38094027 | G142: 112.9003323 | H142: 4.819833673 | I142: 11.8842455 | J142: 14.82389983 | K142: 17.25896804 | L142: 2.860519203 | M142: 45.60305464
A143: 2008 - Aug | B143: 9.583333333 | C143: 1000 | D143: 11.97115923 | E143: 93.89522499 | F143: 61.84721995 | G143: 113.8452202 | H143: 4.788779748 | I143: 11.87950124 | J143: 14.87071695 | K143: 17.36815539 | L143: 4.107278423 | M143: 53.63279821
A144: 2008 - Sep | B144: 9.666666667 | C144: 1000 | D144: 12.01151697 | E144: 94.28572764 | F144: 62.53169715 | G144: 115.1908673 | H144: 4.804872227 | I144: 11.91629661 | J144: 14.93907088 | K144: 17.52818938 | L144: 6.05741975 | M144: 63.08855086
A145: 2008 - Oct | B145: 9.75 | C145: 1000 | D145: 12.22187687 | E145: 95.58823205 | F145: 63.53921604 | G145: 117.1314356 | H145: 4.888976467 | I145: 12.01348057 | J145: 15.03889531 | K145: 17.76322242 | L145: 9.061659713 | M145: 85.02661855
A146: 2008 - Nov | B146: 9.833333333 | C146: 1000 | D146: 12.47915912 | E146: 97.2864298 | F146: 64.64736222 | G146: 119.2578719 | H146: 4.991855963 | I146: 12.12791918 | J146: 15.1476293 | K146: 18.02101375 | L146: 10.27114963 | M146: 108.5667251
A147: 2008 - Dec | B147: 9.916666667 | C147: 1000 | D147: 12.73298383 | E147: 99.0831251 | F147: 65.7637325 | G147: 121.3999354 | H147: 5.093357022 | I147: 12.24201029 | J147: 15.25607636 | K147: 18.27997464 | L147: 10.55983839 | M147: 129.5577282
A148: 2009 - Jan | B148: 10 | C148: 1000 | D148: 12.90010158 | E148: 100.4861083 | F148: 66.73060916 | G148: 123.2662641 | H148: 5.160178419 | I148: 12.32662641 | J148: 15.34913662 | K148: 18.50366618 | L148: 9.291521444 | M148: 134.403219
A149: 2009 - Feb | B149: 10.08333333 | C149: 1000 | D149: 12.93757565 | E149: 101.1817799 | F149: 67.46158552 | G149: 124.6965608 | H149: 5.175145039 | I149: 12.36660107 | J149: 15.41897098 | K149: 18.67242242 | L149: 7.063226226 | M149: 115.0771306
A150: 2009 - Mar | B150: 10.16666667 | C150: 1000 | D150: 12.86088678 | E150: 101.3600291 | F150: 67.97864007 | G150: 125.7306274 | H150: 5.144449334 | I150: 12.36694696 | J150: 15.46810202 | K150: 18.79160769 | L150: 5.288630154 | M150: 91.27955441
A151: 2009 - Apr | B151: 10.25 | C151: 1000 | D151: 12.64943986 | E151: 100.8142669 | F151: 68.23635639 | G151: 126.2836865 | H151: 5.05985301 | I151: 12.32035965 | J151: 15.4925091 | K151: 18.85095692 | L151: 2.910960756 | M151: 43.40051977
A152: 2009 - May | B152: 10.33333333 | C152: 1000 | D152: 12.41796918 | E152: 100.0556507 | F152: 68.44530402 | G152: 126.7448312 | H152: 4.967250219 | I152: 12.26562883 | J152: 15.51225808 | K152: 18.89904784 | L152: 2.282148216 | M152: 35.91348901
A153: 2009 - Jun | B153: 10.41666667 | C153: 1000 | D153: 12.19525126 | E153: 99.21757682 | F153: 68.65905908 | G153: 127.2132119 | H153: 4.878151211 | I153: 12.21246834 | J153: 15.53242508 | K153: 18.94821991 | L153: 2.104432265 | M153: 34.9797757
A154: 2009 - Jul | B154: 10.5 | C154: 1000 | D154: 12.03782072 | E154: 98.57421211 | F154: 68.98545666 | G154: 127.8887949 | H154: 4.815169544 | I154: 12.17988523 | J154: 15.56314896 | K154: 19.02325502 | L154: 2.857739944 | M154: 45.54316775
A155: 2009 - Aug | B155: 10.58333333 | C155: 1000 | D155: 11.95871124 | E155: 98.31087027 | F155: 69.45273305 | G155: 128.8243313 | H155: 4.783518225 | I155: 12.17237776 | J155: 15.60698656 | K155: 19.1305737 | L155: 4.103105131 | M155: 53.55750974
A156: 2009 - Sep | B156: 10.66666667 | C156: 1000 | D156: 11.99657509 | E156: 98.63351806 | F156: 70.13861479 | G156: 130.1645062 | H156: 4.798657837 | I156: 12.20292245 | J156: 15.67102216 | K156: 19.28788157 | L156: 6.050939626 | M156: 62.99199569
A157: 2009 - Oct | B157: 10.75 | C157: 1000 | D157: 12.20317364 | E157: 99.86817612 | F157: 71.14809402 | G157: 132.1048992 | H157: 4.88129266 | I157: 12.28882784 | J157: 15.76460864 | K157: 19.51894179 | L157: 9.051374795 | M157: 84.88062392
A158: 2009 - Nov | B158: 10.83333333 | C158: 1000 | D158: 12.45639471 | E158: 101.4988809 | F158: 72.25825229 | G158: 134.232288 | H158: 4.982577283 | I158: 12.39067274 | J158: 15.86663885 | K158: 19.7724167 | L158: 10.25870722 | M158: 108.3513081
A159: 2009 - Dec | B159: 10.91666667 | C159: 1000 | D159: 12.70625416 | E159: 103.228716 | F159: 73.3765033 | G159: 136.374838 | H159: 5.082517851 | I159: 12.49235158 | J159: 15.96849253 | K159: 20.02708404 | L159: 10.54627969 | M159: 129.2659153
A160: 2010 - Jan | B160: 11 | C160: 1000 | D160: 12.87014661 | E160: 104.5660604 | F160: 74.34488997 | G160: 138.2388293 | H160: 5.148072033 | I160: 12.5671663 | J160: 16.05596696 | K160: 20.2470993 | L160: 9.278985341 | M160: 134.303813
A161: 2010 - Feb | B161: 11.08333333 | C161: 1000 | D161: 12.90545588 | E161: 105.1977755 | F161: 75.07692838 | G161: 139.6629713 | H161: 5.1621933 | I161: 12.60117034 | J161: 16.12165183 | K161: 20.41309971 | L161: 7.053292938 | M161: 114.989716
A162: 2010 - Mar | B162: 11.16666667 | C162: 1000 | D162: 12.81983072 | E162: 105.2820218 | F162: 75.57994479 | G162: 140.6603029 | H162: 5.127941142 | I162: 12.59644503 | J162: 16.16657056 | K162: 20.52700961 | L162: 5.166067105 | M162: 89.49887964
A163: 2010 - Apr | B163: 11.25 | C163: 1000 | D163: 12.60582973 | E163: 104.6626882 | F163: 75.8329811 | G163: 141.1912586 | H163: 5.042338968 | I163: 12.55033409 | J163: 16.18910047 | K163: 20.5842628 | L163: 2.861845647 | M163: 42.77053501
A164: 2010 - May | B164: 11.33333333 | C164: 1000 | D164: 12.37308536 | E164: 103.8376535 | F164: 76.03911774 | G164: 141.6335428 | H164: 4.949239782 | I164: 12.49707731 | J164: 16.20742212 | K164: 20.63088071 | L164: 2.252457943 | M164: 35.52432679
A165: 2010 - Jun | B165: 11.41666667 | C165: 1000 | D165: 12.14956857 | E165: 102.9375901 | F165: 76.25094161 | G165: 142.0850723 | H165: 4.859831916 | I165: 12.44540779 | J165: 16.22621909 | K165: 20.67876286 | L165: 2.084855032 | M165: 34.62233218
A166: 2010 - Jul | B166: 11.5 | C166: 1000 | D166: 11.99198111 | E166: 102.2370043 | F166: 76.57759908 | G166: 142.7493547 | H166: 4.796796028 | I166: 12.41298736 | J166: 16.25514665 | K166: 20.75255938 | L166: 2.852311419 | M166: 45.36966914
A167: 2010 - Aug | B167: 11.58333333 | C167: 1000 | D167: 11.91210999 | E167: 101.9166117 | F167: 77.04521041 | G167: 143.6753754 | H167: 4.76484687 | I167: 12.40362953 | J167: 16.29643155 | K167: 20.85810815 | L167: 4.095077062 | M167: 53.34900918
A168: 2010 - Sep | B168: 11.66666667 | C168: 1000 | D168: 11.94828959 | E168: 102.1819607 | F168: 77.73152685 | G168: 145.0084947 | H168: 4.779318164 | I168: 12.42929955 | J168: 16.35676185 | K168: 21.01282978 | L168: 6.038768343 | M168: 62.74015578
A169: 2010 - Oct | B169: 11.75 | C169: 1000 | D169: 12.15186335 | E169: 103.3583964 | F169: 78.74156083 | G169: 146.9451368 | H169: 4.860747244 | I169: 12.50596909 | J169: 16.44498591 | K169: 21.24011643 | L169: 9.032716295 | M169: 84.5280727
A170: 2010 - Nov | B170: 11.83333333 | C170: 1000 | D170: 12.40173569 | E170: 104.9308333 | F170: 79.85223789 | G170: 149.0694945 | H170: 4.960695838 | I170: 12.59742207 | J170: 16.54124215 | K170: 21.48949057 | L170: 10.23715436 | M170: 107.8774113
A171: 2010 - Dec | B171: 11.91666667 | C171: 1000 | D171: 12.64833498 | E171: 106.6029162 | F171: 80.97092178 | G171: 151.2087505 | H171: 5.059335273 | I171: 12.6888462 | J171: 16.63740604 | K171: 21.74007876 | L171: 10.52377759 | M171: 128.6744222
A172: 2011 - Jan | B172: 12 | C172: 1000 | D172: 12.8097188 | E172: 107.8839879 | F172: 81.93960944 | G172: 153.0677426 | H172: 5.123888559 | I172: 12.75564522 | J172: 16.7200518 | K172: 21.95660143 | L172: 9.25891916 | M172: 134.1732161
A173: 2011 - Feb | B173: 12.08333333 | C173: 1000 | D173: 12.84359485 | E173: 108.4615507 | F173: 82.67181936 | G173: 154.4845828 | H173: 5.137438776 | I173: 12.78493099 | J173: 16.78214442 | K173: 22.11998304 | L173: 7.037810464 | M173: 114.8751165
A174: 2011 - Mar | B174: 12.16666667 | C174: 1000 | D174: 12.75915924 | E174: 108.5001071 | F174: 83.17804777 | G174: 155.4784731 | H174: 5.103664357 | I174: 12.77905258 | J174: 16.82488608 | K174: 22.23279923 | L174: 5.178828864 | M174: 89.76795654
A175: 2011 - Apr | B175: 12.25 | C175: 1000 | D175: 12.54639952 | E175: 107.8337987 | F175: 83.43238785 | G175: 156.0005971 | H175: 5.018560329 | I175: 12.73474262 | J175: 16.84630315 | K175: 22.2894373 | L175: 2.866533701 | M175: 42.87244294
A176: 2011 - May | B176: 12.33333333 | C176: 1000 | D176: 12.31483925 | E176: 106.9616788 | F176: 83.63939356 | G176: 156.4331414 | H176: 4.925936106 | I176: 12.68376822 | J176: 16.86370627 | K176: 22.33551341 | L176: 2.254436857 | M176: 35.58479022
A177: 2011 - Jun | B177: 12.41666667 | C177: 1000 | D177: 12.09234029 | E177: 106.0146182 | F177: 83.85186905 | G177: 156.8748459 | H177: 4.836936436 | I177: 12.63421578 | J177: 16.88154313 | K177: 22.38278724 | L177: 2.084769685 | M177: 34.51463053
A178: 2011 - Jul | B178: 12.5 | C178: 1000 | D178: 11.93489969 | E178: 105.2660605 | F178: 84.17847563 | G178: 157.5290919 | H178: 4.773960126 | I178: 12.60232735 | J178: 16.9089097 | K178: 22.45541528 | L178: 2.845363386 | M178: 45.15099831
A179: 2011 - Aug | B179: 12.58333333 | C179: 1000 | D179: 11.85455619 | E179: 104.897547 | F179: 84.64597433 | G179: 158.4461699 | H179: 4.741822672 | I179: 12.5917486 | J179: 16.94797415 | K179: 22.55929209 | L179: 4.084840209 | M179: 53.08747181
A180: 2011 - Sep | B180: 12.66666667 | C180: 1000 | D180: 11.88932275 | E180: 105.1141118 | F180: 85.33206788 | G180: 159.7717927 | H180: 4.755729257 | I180: 12.61356258 | J180: 17.0050773 | K180: 22.71156713 | L180: 6.02332144 | M180: 62.42632797
A181: 2011 - Oct | B181: 12.75 | C181: 1000 | D181: 12.09012033 | E181: 106.2402765 | F181: 86.3416956 | G181: 161.7028164 | H181: 4.836048256 | I181: 12.68257383 | J181: 17.08862305 | K181: 22.93527867 | L181: 9.009177552 | M181: 84.09271456
A182: 2011 - Nov | B182: 12.83333333 | C182: 1000 | D182: 12.33688009 | E182: 107.7620975 | F182: 87.45185364 | G182: 163.8219416 | H182: 4.934752138 | I182: 12.7653461 | J182: 17.17983239 | K182: 23.18076298 | L182: 10.21016211 | M182: 107.2992004
A183: 2011 - Dec | B183: 12.91666667 | C183: 1000 | D183: 12.58044653 | E183: 109.3839321 | F183: 88.56994502 | G183: 165.9557942 | H183: 5.032178693 | I183: 12.84819052 | J183: 17.27101339 | K183: 23.42747715 | L183: 10.4957864 | M183: 127.960986
A184: 2012 - Jan | B184: 13 | C184: 1000 | D184: 12.7395469 | E184: 110.6163124 | F184: 89.53806126 | G184: 167.8084288 | H184: 5.095818824 | I184: 12.90834068 | J184: 17.34942292 | K184: 23.64067917 | L184: 9.234102014 | M184: 134.0056307
A185: 2012 - Feb | B185: 13.08333333 | C185: 1000 | D185: 12.77221682 | E185: 111.1475129 | F185: 90.26979047 | G185: 169.2176614 | H185: 5.10888678 | I185: 12.933834 | J185: 17.40835945 | K185: 23.80156821 | L185: 7.018749224 | M185: 114.7283235
A186: 2012 - Mar | B186: 13.16666667 | C186: 1000 | D186: 12.69343004 | E186: 111.1657894 | F186: 90.78705398 | G186: 170.2243015 | H186: 5.077372055 | I186: 12.92842796 | J186: 17.44985407 | K186: 23.91517042 | L186: 5.252799516 | M186: 90.96234944
A187: 2012 - Apr | B187: 13.25 | C187: 1000 | D187: 12.48354192 | E187: 110.4681178 | F187: 91.0454282 | G187: 170.7447882 | H187: 4.9934168 | I187: 12.88639911 | J187: 17.47052908 | K187: 23.97187454 | L187: 2.895795613 | M187: 43.3074526
A188: 2012 - May | B188: 13.33333333 | C188: 1000 | D188: 12.25419087 | E188: 109.5611533 | F188: 91.25497326 | G188: 171.1728586 | H188: 4.901676372 | I188: 12.83796439 | J188: 17.48727167 | K188: 24.01784266 | L188: 2.27086576 | M188: 35.80756072
A189: 2012 - Jun | B189: 13.41666667 | C189: 1000 | D189: 12.03347058 | E189: 108.5773868 | F189: 91.46930404 | G189: 171.6090674 | H189: 4.813388251 | I189: 12.79073795 | J189: 17.50437346 | K189: 24.06484244 | L189: 2.093881874 | M189: 34.53102669
A190: 2012 - Jul | B190: 13.5 | C190: 1000 | D190: 11.87621627 | E190: 107.7882982 | F190: 91.79560385 | G190: 172.2545713 | H190: 4.750486522 | I190: 12.75959788 | J190: 17.53036461 | K190: 24.13636026 | L190: 2.837279523 | M190: 44.91450264
A191: 2012 - Aug | B191: 13.58333333 | C191: 1000 | D191: 11.7954344 | E191: 107.3788675 | F191: 92.2626213 | G191: 173.1634666 | H191: 4.718173771 | I191: 12.74823067 | J191: 17.56747092 | K191: 24.23864668 | L191: 4.072951466 | M191: 52.80476007
A192: 2012 - Sep | B192: 13.66666667 | C192: 1000 | D192: 11.828813 | E192: 107.5535445 | F192: 92.94794845 | G192: 174.4815706 | H192: 4.731525209 | I192: 12.76694419 | J192: 17.62172494 | K192: 24.38859138 | L192: 6.005409434 | M192: 62.08737305
A193: 2012 - Oct | B193: 13.75 | C193: 1000 | D193: 12.02684479 | E193: 108.6359096 | F193: 93.95636916 | G193: 176.4058485 | H193: 4.810737922 | I193: 12.82951626 | J193: 17.70113408 | K193: 24.60889227 | L193: 8.981912205 | M193: 83.62310871
A194: 2012 - Nov | B194: 13.83333333 | C194: 1000 | D194: 12.27049182 | E194: 110.1133239 | F194: 95.06513104 | G194: 178.5183239 | H194: 4.908196732 | I194: 12.90493908 | J194: 17.78787296 | K194: 24.85065955 | L194: 10.17890787 | M194: 106.6766498
A195: 2012 - Dec | B195: 13.91666667 | C195: 1000 | D195: 12.51101696 | E195: 111.690963 | F195: 96.18174951 | G195: 180.645387 | H195: 5.004406788 | I195: 12.98050685 | J195: 17.87463208 | K195: 25.09366547 | L195: 10.46337413 | M195: 127.1941134
A196: 2013 - Jan | B196: 14 | C196: 1000 | D196: 12.66782536 | E196: 112.8807266 | F196: 97.14853394 | G196: 182.4908224 | H196: 5.067130146 | I196: 13.03505875 | J196: 17.94927601 | K196: 25.30368386 | L196: 9.205358183 | M196: 133.7948515
A197: 2013 - Feb | B197: 14.08333333 | C197: 1000 | D197: 12.69928791 | E197: 113.3717844 | F197: 97.87920726 | G197: 183.8923973 | H197: 5.079715166 | I197: 13.05744833 | J197: 18.00540312 | K197: 25.46217975 | L197: 6.996671996 | M197: 114.5439818
A198: 2013 - Mar | B198: 14.16666667 | C198: 1000 | D198: 12.62825808 | E198: 113.3846247 | F198: 98.41137363 | G198: 184.9205672 | H198: 5.051303232 | I198: 13.05321651 | J198: 18.04612814 | K198: 25.57749186 | L198: 5.356243318 | M198: 92.59445269
A199: 2013 - Apr | B199: 14.25 | C199: 1000 | D199: 12.42198563 | E199: 112.6659114 | F199: 98.67516094 | G199: 185.4438576 | H199: 4.968794253 | I199: 13.01360404 | J199: 18.06626734 | K199: 25.63461189 | L199: 2.937306149 | M199: 43.90624735
A200: 2013 - May | B200: 14.33333333 | C200: 1000 | D200: 12.19527613 | E200: 111.732685 | F200: 98.88806394 | G200: 185.8708647 | H200: 4.878110451 | I200: 12.96773475 | J200: 18.08249882 | K200: 25.68069496 | L200: 2.294360478 | M200: 36.01240922
A201: 2013 - Jun | B201: 14.41666667 | C201: 1000 | D201: 11.97668775 | E201: 110.719994 | F201: 99.10492447 | G201: 186.3046601 | H201: 4.790675102 | I201: 12.9228666 | J201: 18.09901107 | K201: 25.72761764 | L201: 2.10817851 | M201: 34.62183396
A202: 2013 - Jul | B202: 14.5 | C202: 1000 | D202: 11.8195462 | E202: 109.8964282 | F202: 99.43067347 | G202: 186.9425475 | H202: 4.72781848 | I202: 12.89258948 | J202: 18.12377478 | K202: 25.79806868 | L202: 2.828110919 | M202: 44.66934363
A203: 2013 - Aug | B203: 14.58333333 | C203: 1000 | D203: 11.73824497 | E203: 109.4519287 | F203: 99.89685788 | G203: 187.843945 | H203: 4.695297987 | I203: 12.88072766 | J203: 18.15913231 | K203: 25.89882537 | L203: 4.059484623 | M203: 52.5114613
A204: 2013 - Sep | B204: 14.66666667 | C204: 1000 | D204: 11.77014064 | E204: 109.5902935 | F204: 100.5808986 | G204: 189.1545677 | H204: 4.708056256 | I204: 12.89690234 | J204: 18.21083925 | K204: 26.04652578 | L204: 5.985133607 | M204: 61.73540444
A205: 2013 - Oct | B205: 14.75 | C205: 1000 | D205: 11.96528747 | E205: 110.6340451 | F205: 101.5873421 | G205: 191.0712168 | H205: 4.78611499 | I205: 12.9539808 | J205: 18.28654519 | K205: 26.26353669 | L205: 8.951042738 | M205: 83.13496109
A206: 2013 - Nov | B206: 14.83333333 | C206: 1000 | D206: 12.20569001 | E206: 112.0719858 | F206: 102.6938569 | G206: 193.1758951 | H206: 4.882276005 | I206: 13.02309405 | J206: 18.36927539 | K206: 26.50171208 | L206: 10.14347144 | M206: 106.028704
A207: 2013 - Dec | B207: 14.91666667 | C207: 1000 | D207: 12.44303521 | E207: 113.6102063 | F207: 103.8081406 | G207: 195.2950192 | H207: 4.977214084 | I207: 13.09240352 | J207: 18.45206261 | K207: 26.74112786 | L207: 10.42655917 | M207: 126.3948599
A208: 2014 - Jan | B208: 15 | C208: 1000 | D208: 12.59742114 | E208: 114.7621501 | F208: 104.7728426 | G208: 197.1325333 | H208: 5.038968456 | I208: 13.14216889 | J208: 18.52331877 | K208: 26.94805857 | L208: 9.172652422 | M208: 133.0263174
A209: 2014 - Feb | B209: 15.08333333 | C209: 1000 | D209: 12.62756572 | E209: 115.2180128 | F209: 105.5018884 | G209: 198.5263724 | H209: 5.051026289 | I209: 13.16196944 | J209: 18.57691505 | K209: 27.10422984 | L209: 6.971523017 | M209: 114.3164274
A210: 2014 - Mar | B210: 15.16666667 | C210: 1000 | D210: 12.56642361 | E210: 115.2392222 | F210: 106.0531246 | G210: 199.5852565 | H210: 5.026569445 | I210: 13.15946746 | J210: 18.61729625 | K210: 27.2221925 | L210: 5.490463563 | M210: 94.67374545
A211: 2014 - Apr | B211: 15.25 | C211: 1000 | D211: 12.36448801 | E211: 114.5088057 | F211: 106.3238522 | G211: 200.1157922 | H211: 4.945795205 | I211: 13.12234703 | J211: 18.63708378 | K211: 27.28008985 | L211: 2.992036875 | M211: 44.6787667
A212: 2014 - May | B212: 15.33333333 | C212: 1000 | D212: 12.14079943 | E212: 113.5567969 | F212: 106.5410063 | G212: 200.5449915 | H212: 4.856319774 | I212: 13.07902119 | J212: 18.65293437 | K212: 27.32651229 | L212: 2.325383071 | M212: 36.32640676
A213: 2014 - Jun | B213: 15.41666667 | C213: 1000 | D213: 11.92454699 | E213: 112.5214973 | F213: 106.7609517 | G213: 200.9789447 | H213: 4.769818797 | I213: 13.03647209 | J213: 18.66896951 | K213: 27.37351538 | L213: 2.126695396 | M213: 34.77778035
A214: 2014 - Jul | B214: 15.5 | C214: 1000 | D214: 11.76736216 | E214: 111.6683275 | F214: 107.0859072 | G214: 201.610113 | H214: 4.706944862 | I214: 13.00710407 | J214: 18.69262519 | K214: 27.44292997 | L214: 2.817842764 | M214: 44.42113749
A215: 2014 - Aug | B215: 15.58333333 | C215: 1000 | D215: 11.6853746 | E215: 111.1934466 | F215: 107.5509086 | G215: 202.5045327 | H215: 4.674149839 | I215: 12.99494327 | J215: 18.72640303 | K215: 27.54219909 | L215: 4.044418183 | M215: 52.21402569
A216: 2014 - Sep | B216: 15.66666667 | C216: 1000 | D216: 11.71559972 | E216: 111.2999331 | F216: 108.2331444 | G216: 203.8076359 | H216: 4.686239886 | I216: 13.00899804 | J216: 18.77580701 | K216: 27.68771441 | L216: 5.962455959 | M216: 61.37773773
A217: 2014 - Oct | B217: 15.75 | C217: 1000 | D217: 11.90763845 | E217: 112.3091289 | F217: 109.2368399 | G217: 205.7158177 | H217: 4.76305538 | I217: 13.06132176 | J217: 18.84816035 | K217: 27.90151705 | L217: 8.916489984 | M217: 82.63763239
A218: 2014 - Nov | B218: 15.83333333 | C218: 1000 | D218: 12.14455822 | E218: 113.7114029 | F218: 110.3402509 | G218: 207.8116123 | H218: 4.857823288 | I218: 13.12494394 | J218: 18.92725576 | K218: 28.13618319 | L218: 10.10371881 | M218: 105.3664227
A219: 2014 - Dec | B219: 15.91666667 | C219: 1000 | D219: 12.37847954 | E219: 115.2138555 | F219: 111.4513262 | G219: 209.9216867 | H219: 4.951391816 | I219: 13.18879707 | J219: 19.00643573 | K219: 28.37208447 | L219: 10.38515608 | M219: 125.5752132
A220: 2015 - Jan | B220: 16 | C220: 1000 | D220: 12.53021566 | E220: 116.3316568 | F220: 112.41318 | G220: 211.7505213 | H220: 5.012086266 | I220: 13.23440758 | J220: 19.0746105 | K220: 28.57598691 | L220: 9.135783059 | M220: 132.1345893
A221: 2015 - Feb | B221: 16.08333333 | C221: 1000 | D221: 12.55884752 | E221: 116.7561713 | F221: 113.1400128 | G221: 213.1364175 | H221: 5.023539008 | I221: 13.25200523 | J221: 19.12590192 | K221: 28.72987457 | L221: 6.943127102 | M221: 114.0397359
... 47 more rows

Sheet W Aust av 1100 mm EX 10 ANS
A2: Run type : | B2: SingleSite | E2: Stand initialisation and site factor data | K2: Optional parameter block
A3: Site : | B3: Pemberton | F3: Year planted = | G3: 1999 | I3: Latitude = | J3: -35 | L3: Parameters
A4: Species : | B4: E. globulus | F4: Month planted = | G4: Jan | I4: Fertility rating = | J4: 0.15 | L4: alpha = | M4: 0.04
A5: Climate data : | B5: Pemberton Metdata 1100 | F5: Initial year = | G5: 1 | I5: Soil class = | J5: cl | L5: pFS2= | M5: 0.8
A6: Met station : | B6: Mean data | F6: Initial month = | G6: Jan | I6: Maximum ASW = | J6: 1000 | L6: pFS20= | M6: 0.5
A7: Title : | B7: Match Monthly ET and LAI | F7: End age = | G7: 20 | I7: Minimum ASW = | J7: 0 | L7: gammaFx = | M7: 0.027
F8: Initial WF = | G8: 2 | I8: Atmospheric CO2 = | J8: 360 | L8: LAIgcx | M8: 5
F9: Initial WR = | G9: 3
F10: Initial WS = | G10: 2 | L10: Av LAI Yr 20 | O10: ANSWERS: 1000 mm Max ASW with FR =0.15
F11: Initial stocking = | G11: 1000 | L11: =SUM(H256:H267)/12 -> 4.781531294 | O11: Pemberton Av. Precip =1100 mm, ET = 920 mm, using ground water
F12: Initial ASW = | G12: 300
F16: Output details
G17: Output frequency : | H17: m
H21: .
A36: #Output from 3PGpjs 2.7 / 3-PG vsn 1 Sep2009
A37: Stand development for Pemberton | R37: 3-PG Transp | S37: 3-PG Transp | T37: 3-PG Transp
A38: Match Monthly ET and LAI | R38: FR=0.15 | S38: FR=0.24 | T38: FR=0.36
A39: Year & month | B39: Stand age | C39: Stems | D39: Foliage DM | E39: Root DM | F39: Stem DM | G39: Stand volume | H39: LAI | I39: MAI | J39: Mean DBH | K39: Basal area | L39: GPP | M39: Penman transp. | Q39: Month | R39: 1000mm | S39: 500 mm | T39: 250 mm | U39: MODIS ET
A40: 2000 - Jan | B40: 1 | C40: 1000 | D40: 2 | E40: 3 | F40: 2 | G40: 1.892159695 | H40: 2.053035099 | I40: 1.892159695 | J40: 3.559407102 | K40: 0.9950506935 | Q40: JAN | R40: 129.2292921 | S40: 131.8537776 | T40: 45.93955999 | U40: 122.5
A41: 2000 - Feb | B41: 1.083333333 | C41: 1000 | D41: 2.000844579 | E41: 3.1755542 | F41: 2.040557873 | G41: 1.985299139 | H41: 2.029996714 | I41: 1.832583821 | J41: 3.589306508 | K41: 1.011837974 | L41: 0.6169290468 | M41: 13.95179517 | Q41: FEB | R41: 111.6811248 | S41: 71.29708585 | T41: 21.69373455 | U41: 99.9
A42: 2000 - Mar | B42: 1.166666667 | C42: 1000 | D42: 1.99680982 | E42: 3.339389021 | F42: 2.07954397 | G42: 2.077455386 | H42: 2.000648186 | I42: 1.780676045 | J42: 3.617722153 | K42: 1.027922329 | L42: 0.5917737599 | M42: 12.80811549 | Q42: MAR | R42: 104.2067845 | S42: 35.48625294 | T42: 17.0638268 | U42: 86.3
A43: 2000 - Apr | B43: 1.25 | C43: 1000 | D43: 1.986670879 | E43: 3.477154594 | F43: 2.114859219 | G43: 2.166312022 | H43: 1.964077446 | I43: 1.733049618 | J43: 3.643195196 | K43: 1.042448869 | L43: 0.5280947456 | M43: 8.802833954 | Q43: APR | R43: 48.58571492 | S43: 20.56350392 | T43: 13.43889 | U43: 56.6
A44: 2000 - May | B44: 1.333333333 | C44: 1000 | D44: 1.975919135 | E44: 3.614242384 | F44: 2.153657552 | G44: 2.259060832 | H44: 1.926008219 | I44: 1.694295624 | J44: 3.670896174 | K44: 1.058361624 | L44: 0.5436295872 | M44: 8.96273579 | Q44: MAY | R44: 38.46744142 | S44: 24.71693309 | T44: 30.9368488 | U44: 42
A45: 2000 - Jun | B45: 1.416666667 | C45: 1000 | D45: 1.97266714 | E45: 3.774550373 | F45: 2.206866134 | G45: 2.367643379 | H45: 1.894386208 | I45: 1.671277679 | J45: 3.708416405 | K45: 1.080107219 | L45: 0.6496477261 | M45: 10.93007909 | Q45: JUN | R45: 35.88054183 | S45: 36.27537134 | T45: 42.01003428 | U45: 30.7
A46: 2000 - Jul | B46: 1.5 | C46: 1000 | D46: 2.009923961 | E46: 4.067912547 | F46: 2.321009098 | G46: 2.544021274 | H46: 1.900212675 | I46: 1.696014183 | J46: 3.787161704 | K46: 1.126464681 | L46: 1.158775839 | M46: 18.3565859 | Q46: JUL | R46: 43.35987637 | S46: 43.21445982 | T46: 42.3478873 | U46: 31.2
A47: 2000 - Aug | B47: 1.583333333 | C47: 1000 | D47: 2.102305082 | E47: 4.578380125 | F47: 2.518300531 | G47: 2.817106352 | H47: 1.955337943 | I47: 1.779225065 | J47: 3.918110199 | K47: 1.205710865 | L47: 1.930479381 | M47: 24.08439481 | Q47: AUG | R47: 50.93668611 | S47: 50.87454936 | T47: 49.97552081 | U47: 43.8
A48: 2000 - Sep | B48: 1.666666667 | C48: 1000 | D48: 2.264402337 | E48: 5.395366912 | F48: 2.822575539 | G48: 3.219375627 | H48: 2.070585511 | I48: 1.931625376 | J48: 4.108823508 | K48: 1.325943 | L48: 2.983269538 | M48: 29.18763138 | Q48: SEP | R48: 59.83322862 | S48: 59.9436215 | T48: 59.09019755 | U48: 65.6
A49: 2000 - Oct | B49: 1.75 | C49: 1000 | D49: 2.536029677 | E49: 6.723955597 | F49: 3.296285726 | G49: 3.829900768 | H49: 2.278413616 | I49: 2.188514725 | J49: 4.383209061 | K49: 1.508947924 | L49: 4.702982959 | M49: 41.13600667 | Q49: OCT | R49: 80.47497755 | S49: 80.98278021 | T49: 80.22904685 | U49: 100
A50: 2000 - Nov | B50: 1.833333333 | C50: 1000 | D50: 2.851457302 | E50: 8.349002838 | F50: 3.852394305 | G50: 4.555765072 | H50: 2.515503684 | I50: 2.484962766 | J50: 4.677383395 | K50: 1.718287459 | L50: 5.66183464 | M50: 56.03858463 | Q50: NOV | R50: 102.4609888 | S50: 103.7642923 | T50: 103.5279043 | U50: 117.5
A51: 2000 - Dec | B51: 1.916666667 | C51: 1000 | D51: 3.180008677 | E51: 10.12541681 | F51: 4.449060422 | G51: 5.350828903 | H51: 2.753114456 | I51: 2.791736819 | J51: 4.966612658 | K51: 1.937360601 | L51: 6.169467531 | M51: 71.55266713 | Q51: DEC | R51: 121.9476444 | S51: 124.3067133 | T51: 124.9408575 | U51: 124.3
A52: 2001 - Jan | B52: 2 | C52: 1000 | D52: 3.461541237 | E52: 11.75351362 | F52: 4.996575827 | G52: 6.106926012 | H52: 2.939537579 | I52: 3.053463006 | J52: 5.21269161 | K52: 2.134095971 | L52: 5.726138591 | M52: 80.14419494 | Q52: Sum | R52: =SUM(R40:R51) -> 927.0643015 | S52: =SUM(S40:S51) -> 783.2793412 | T52: =SUM(T40:T51) -> 631.1943087 | U52: =SUM(U40:U51) -> 920.4
A53: 2001 - Feb | B53: 2.083333333 | C53: 1000 | D53: 3.657266791 | E53: 12.99843096 | F53: 5.431567174 | G53: 6.74166622 | H53: 3.044905242 | I53: 3.235999785 | J53: 5.397185096 | K53: 2.287833981 | L53: 4.558294806 | M53: 72.70242218
A54: 2001 - Mar | B54: 2.166666667 | C54: 1000 | D54: 3.836561707 | E54: 14.15610148 | F54: 5.853483503 | G54: 7.37327814 | H54: 3.130258578 | I54: 3.403051449 | J54: 5.568067574 | K54: 2.434999498 | L54: 4.362094648 | M54: 71.00766285
A55: 2001 - Apr | B55: 2.25 | C55: 1000 | D55: 3.993491483 | E55: 15.13900788 | F55: 6.251843658 | G55: 7.987060747 | H55: 3.191867157 | I55: 3.549804777 | J55: 5.72293144 | K55: 2.572331688 | L55: 3.94083075 | M55: 51.74954113
A56: 2001 - May | B56: 2.333333333 | C56: 1000 | D56: 4.088427938 | E56: 15.81534466 | F56: 6.563587587 | G56: 8.499559821 | H56: 3.200044985 | I56: 3.642668495 | J56: 5.840150422 | K56: 2.678785552 | L56: 3.013604625 | M56: 41.21502768
A57: 2001 - Jun | B57: 2.416666667 | C57: 1000 | D57: 4.125735726 | E57: 16.21824037 | F57: 6.791491696 | G57: 8.909516961 | H57: 3.161430591 | I57: 3.686696674 | J57: 5.923803632 | K57: 2.756075996 | L57: 2.158580399 | M57: 31.68005506
A58: 2001 - Jul | B58: 2.5 | C58: 1000 | D58: 4.163751554 | E58: 16.61879963 | F58: 7.023169108 | G58: 9.328814277 | H58: 3.122813665 | I58: 3.731525711 | J58: 6.007179836 | K58: 2.834204273 | L58: 2.178738155 | M58: 31.8438865
A59: 2001 - Aug | B59: 2.583333333 | C59: 1000 | D59: 4.268862095 | E59: 17.31579887 | F59: 7.362426002 | G59: 9.896944133 | H59: 3.133077017 | I59: 3.831075148 | J59: 6.126426449 | K59: 2.947842863 | L59: 3.196531431 | M59: 37.42413047
A60: 2001 - Sep | B60: 2.666666667 | C60: 1000 | D60: 4.479329689 | E60: 18.48967996 | F60: 7.873254738 | G60: 10.70569911 | H60: 3.216702229 | I60: 4.014637167 | J60: 6.300080868 | K60: 3.117325339 | L60: 4.828997989 | M60: 44.34295446
A61: 2001 - Oct | B61: 2.75 | C61: 1000 | D61: 4.849692245 | E61: 20.44114109 | F61: 8.648775995 | G61: 11.89049823 | H61: 3.407335724 | I61: 4.323817537 | J61: 6.551583315 | K61: 3.371183695 | L61: 7.436592839 | M61: 60.8175266
A62: 2001 - Nov | B62: 2.833333333 | C62: 1000 | D62: 5.275831218 | E62: 22.79834685 | F62: 9.535394912 | G62: 13.24898494 | H62: 3.626449174 | I62: 4.676112333 | J62: 6.823485655 | K62: 3.656810432 | L62: 8.738652479 | M62: 80.13201588
A63: 2001 - Dec | B63: 2.916666667 | C63: 1000 | D63: 5.711880356 | E63: 25.32734659 | F63: 10.46389426 | G63: 14.68786661 | H63: 3.84122614 | I63: 5.035839982 | J63: 7.092849157 | K63: 3.95122107 | L63: 9.314207413 | M63: 98.96488999
A64: 2002 - Jan | B64: 3 | C64: 1000 | D64: 6.073136683 | E64: 27.58270126 | F64: 11.29784382 | G64: 16.01451701 | H64: 3.996106404 | I64: 5.338172337 | J64: 7.323128429 | K64: 4.211949764 | L64: 8.47755484 | M64: 107.5856622
A65: 2002 - Feb | B65: 3.083333333 | C65: 1000 | D65: 6.307648995 | E65: 29.23264024 | F65: 11.94672972 | G65: 17.0946274 | H65: 4.061446192 | I65: 5.544203482 | J65: 7.495528569 | K65: 4.412598459 | L65: 6.618847701 | M65: 95.27384005
A66: 2002 - Mar | B66: 3.166666667 | C66: 1000 | D66: 6.508720953 | E66: 30.69241091 | F66: 12.554398 | G66: 18.12782596 | H66: 4.101819461 | I66: 5.724576618 | J66: 7.652090887 | K66: 4.598859279 | L66: 6.121605024 | M66: 91.34811624
A67: 2002 - Apr | B67: 3.25 | C67: 1000 | D67: 6.670546286 | E67: 31.85521237 | F67: 13.10909953 | G67: 19.09483285 | H67: 4.115385842 | I67: 5.875333186 | J67: 7.791191096 | K67: 4.767575666 | L67: 5.351767232 | M67: 65.26449169
A68: 2002 - May | B68: 3.333333333 | C68: 1000 | D68: 6.745294072 | E68: 32.56632846 | F68: 13.52942812 | G68: 19.87358269 | H68: 4.075119375 | I68: 5.962074806 | J68: 7.894323711 | K68: 4.894628597 | L68: 3.966027038 | M68: 51.14787564
A69: 2002 - Jun | B69: 3.416666667 | C69: 1000 | D69: 6.743528748 | E69: 32.89600712 | F69: 13.82768272 | G69: 20.4770149 | H69: 3.990797382 | I69: 5.993272655 | J69: 7.966375077 | K69: 4.984382722 | L69: 2.758967647 | M69: 38.84392898
A70: 2002 - Jul | B70: 3.5 | C70: 1000 | D70: 6.739543672 | E70: 33.20380689 | F70: 14.12276148 | G70: 21.0780311 | H70: 3.908395624 | I70: 6.022294599 | J70: 8.036772497 | K70: 5.072864131 | L70: 2.711393733 | M70: 38.75716808
A71: 2002 - Aug | B71: 3.583333333 | C71: 1000 | D71: 6.811291204 | E71: 33.85417614 | F71: 14.54395902 | G71: 21.8707885 | H71: 3.872347841 | I71: 6.103475862 | J71: 8.135787538 | K71: 5.198632037 | L71: 3.879358274 | M71: 45.25387243
A72: 2002 - Sep | B72: 3.666666667 | C72: 1000 | D72: 6.998620183 | E72: 35.04250025 | F72: 15.16184111 | G72: 22.96616948 | H72: 3.902412476 | I72: 6.263500766 | J72: 8.278058159 | K72: 5.382038846 | L72: 5.713237249 | M72: 53.07758694
A73: 2002 - Oct | B73: 3.75 | C73: 1000 | D73: 7.355659727 | E73: 37.08293304 | F73: 16.07386556 | G73: 24.5188545 | H73: 4.024699772 | I73: 6.5383612 | J73: 8.482007184 | K73: 5.650503566 | L73: 8.561856933 | M73: 71.70762465
A74: 2002 - Nov | B74: 3.833333333 | C74: 1000 | D74: 7.758888372 | E74: 39.50203134 | F74: 17.08416437 | G74: 26.23674104 | H74: 4.168047775 | I74: 6.844367228 | J74: 8.70019974 | K74: 5.944951665 | L74: 9.760538826 | M74: 92.43369414
A75: 2002 - Dec | B75: 3.916666667 | C75: 1000 | D75: 8.157008831 | E75: 42.02099678 | F75: 18.10947311 | G75: 27.99340882 | H75: 4.304563277 | I75: 7.147253315 | J75: 8.914067546 | K75: 6.240820948 | L75: 10.09446734 | M75: 111.5348642
A76: 2003 - Jan | B76: 4 | C76: 1000 | D76: 8.46372395 | E76: 44.16541893 | F76: 19.00309978 | G76: 29.56037744 | H76: 4.390157976 | I76: 7.390094359 | J76: 9.09477623 | K76: 6.49641735 | L76: 8.926182607 | M76: 118.6471583
A77: 2003 - Feb | B77: 4.083333333 | C77: 1000 | D77: 8.633500979 | E77: 45.62444955 | F77: 19.68131808 | G77: 30.80214666 | H77: 4.404451485 | I77: 7.543382856 | J77: 9.228640737 | K77: 6.689064144 | L77: 6.804293889 | M77: 103.2785137
A78: 2003 - Mar | B78: 4.166666667 | C78: 1000 | D78: 8.770485123 | E78: 46.88347855 | F78: 20.31338739 | G78: 31.97863688 | H78: 4.403408787 | I78: 7.674872852 | J78: 9.350994696 | K78: 6.867608077 | L78: 6.267119678 | M78: 97.88650829
A79: 2003 - Apr | B79: 4.25 | C79: 1000 | D79: 8.869363544 | E79: 47.83689749 | F79: 20.88823833 | G79: 33.07069497 | H79: 4.38530133 | I79: 7.781339992 | J79: 9.460358341 | K79: 7.029186325 | L79: 5.46212305 | M79: 69.25366642
A80: 2003 - May | B80: 4.333333333 | C80: 1000 | D80: 8.882981534 | E80: 48.33023108 | F80: 21.32268336 | G80: 33.94406259 | H80: 4.328062709 | I80: 7.833245213 | J80: 9.541850441 | K80: 7.150807578 | L80: 4.039188243 | M80: 53.91016836
A81: 2003 - Jun | B81: 4.416666667 | C81: 1000 | D81: 8.822227013 | E81: 48.43799024 | F81: 21.6306331 | G81: 34.61716127 | H81: 4.238678072 | I81: 7.837847835 | J81: 9.59902989 | K81: 7.236766658 | L81: 2.807968119 | M81: 40.81520293
A82: 2003 - Jul | B82: 4.5 | C82: 1000 | D82: 8.761037413 | E82: 48.52732604 | F82: 21.93538677 | G82: 35.28504565 | H82: 4.153522109 | I82: 7.841121255 | J82: 9.655150282 | K82: 7.321633024 | L82: 2.760994321 | M82: 40.72684294
A83: 2003 - Aug | B83: 4.583333333 | C83: 1000 | D83: 8.776965042 | E83: 48.96966165 | F83: 22.37058688 | G83: 36.16361174 | H83: 4.108711612 | I83: 7.890242562 | J83: 9.734509468 | K83: 7.442485979 | L83: 3.953019926 | M83: 47.58794456
A84: 2003 - Sep | B84: 4.666666667 | C84: 1000 | D84: 8.909527544 | E84: 49.96304979 | F84: 23.00864296 | G84: 37.37344604 | H84: 4.121035793 | I84: 8.00859558 | J84: 9.849248233 | K84: 7.618966216 | L84: 5.820272919 | M84: 55.75304815
A85: 2003 - Oct | B85: 4.75 | C85: 1000 | D85: 9.212004557 | E85: 51.8235674 | F85: 23.94850377 | G85: 39.08045572 | H85: 4.212923385 | I85: 8.227464363 | J85: 10.01492785 | K85: 7.877447752 | L85: 8.70820705 | M85: 75.04899208
A86: 2003 - Nov | B86: 4.833333333 | C86: 1000 | D86: 9.560474822 | E86: 54.06264217 | F86: 24.98562872 | G86: 40.95571909 | H86: 4.325832371 | I86: 8.473597053 | J86: 10.19340897 | K86: 8.160725669 | L86: 9.895205856 | M86: 96.06617095
A87: 2003 - Dec | B87: 4.916666667 | C87: 1000 | D87: 9.904020108 | E87: 56.39657532 | F87: 26.03431514 | G87: 42.85977298 | H87: 4.436497388 | I87: 8.717241962 | J87: 10.36953774 | K87: 8.445175419 | L87: 10.20263112 | M87: 115.1000597
A88: 2004 - Jan | B88: 5 | C88: 1000 | D88: 10.15765254 | E88: 58.34849867 | F88: 26.94563743 | G88: 44.54616751 | H88: 4.507458312 | I88: 8.909233502 | J88: 10.51926405 | K88: 8.6908168 | L88: 9.000499395 | M88: 121.7267397
A89: 2004 - Feb | B89: 5.083333333 | C89: 1000 | D89: 10.27701232 | E89: 59.60979726 | F89: 27.63610635 | G89: 45.87307937 | H89: 4.520417352 | I89: 9.024212335 | J89: 10.63074875 | K89: 8.876006054 | L89: 6.852363771 | M89: 105.6148374
A90: 2004 - Mar | B90: 5.166666667 | C90: 1000 | D90: 10.36540836 | E90: 60.67253064 | F90: 28.2792956 | G90: 47.12505879 | H90: 4.521959122 | I90: 9.12097912 | J90: 10.73314696 | K90: 9.047821694 | L90: 6.310520535 | M90: 100.0566593
A91: 2004 - Apr | B91: 5.25 | C91: 1000 | D91: 10.41760134 | E91: 61.43086341 | F91: 28.86418092 | G91: 48.28252871 | H91: 4.510063736 | I91: 9.196672135 | J91: 10.82508995 | K91: 9.203497712 | L91: 5.500776201 | M91: 70.79280361
A92: 2004 - May | B92: 5.333333333 | C92: 1000 | D92: 10.36793286 | E92: 61.67387747 | F92: 29.27284154 | G92: 49.14623359 | H92: 4.456750549 | I92: 9.214918798 | J92: 10.88868745 | K92: 9.311956641 | L92: 3.839881266 | M92: 52.5852638
A93: 2004 - Jun | B93: 5.416666667 | C93: 1000 | D93: 10.26544261 | E93: 61.58815649 | F93: 29.58630869 | G93: 49.84937876 | H93: 4.383705251 | I93: 9.202962232 | J93: 10.93712035 | K93: 9.394980085 | L93: 2.830421565 | M93: 41.79979709
A94: 2004 - Jul | B94: 5.5 | C94: 1000 | D94: 10.16395093 | E94: 61.48796918 | F94: 29.89693268 | G94: 50.54637644 | H94: 4.313993999 | I94: 9.190250262 | J94: 10.98481958 | K94: 9.477106001 | L94: 2.787093997 | M94: 41.85767967
A95: 2004 - Aug | B95: 5.583333333 | C95: 1000 | D95: 10.14051417 | E95: 61.74873196 | F95: 30.3411204 | G95: 51.468556 | H95: 4.279916644 | I95: 9.218248835 | J95: 11.05252918 | K95: 9.594298405 | L95: 3.996297633 | M95: 49.08698062
A96: 2004 - Sep | B96: 5.666666667 | C96: 1000 | D96: 10.23454745 | E96: 62.57113188 | F96: 30.99289717 | G96: 52.74408063 | H96: 4.297308223 | I96: 9.307778935 | J96: 11.15084393 | K96: 9.765744472 | L96: 5.889861203 | M96: 57.65464807
A97: 2004 - Oct | B97: 5.75 | C97: 1000 | D97: 10.49905857 | E97: 64.27444179 | F97: 31.95298754 | G97: 54.54814648 | H97: 4.387468463 | I97: 9.48663417 | J97: 11.29349274 | K97: 10.01720209 | L97: 8.814491745 | M97: 77.69591904
A98: 2004 - Nov | B98: 5.833333333 | C98: 1000 | D98: 10.81022843 | E98: 66.36138964 | F98: 33.01132558 | G98: 56.52567924 | H98: 4.497868183 | I98: 9.690116442 | J98: 11.44787115 | K98: 10.29293777 | L98: 10.00861047 | M98: 99.38383067
A99: 2004 - Dec | B99: 5.916666667 | C99: 1000 | D99: 11.11725164 | E99: 68.54420707 | F99: 34.0801946 | G99: 58.52723083 | H99: 4.607222618 | I99: 9.891926337 | J99: 11.60088243 | K99: 10.56992564 | L99: 10.31065243 | M99: 118.9364694
A100: 2005 - Jan | B100: 6 | C100: 1000 | D100: 11.33559903 | E100: 70.34156925 | F100: 35.00810801 | G100: 60.29174158 | H100: 4.68066276 | I100: 10.0486236 | J100: 11.73146091 | K100: 10.80921306 | L100: 9.089259293 | M100: 125.6664385
A101: 2005 - Feb | B101: 6.083333333 | C101: 1000 | D101: 11.42129783 | E101: 71.44353137 | F101: 35.71079183 | G101: 61.67135542 | H101: 4.70046064 | I101: 10.13775706 | J101: 11.82900679 | K101: 10.98971535 | L101: 6.918147714 | M101: 109.0284529
A102: 2005 - Mar | B102: 6.166666667 | C102: 1000 | D102: 11.47727976 | E102: 72.34815705 | F102: 36.36542956 | G102: 62.96952337 | H102: 4.709307821 | I102: 10.21127406 | J102: 11.91888049 | K102: 11.15734371 | L102: 6.372922017 | M102: 103.389653
A103: 2005 - Apr | B103: 6.25 | C103: 1000 | D103: 11.47655874 | E103: 72.88115851 | F103: 36.92176407 | G103: 64.09820876 | H103: 4.696176903 | I103: 10.2557134 | J103: 11.99451934 | K103: 11.29940511 | L103: 5.284518819 | M103: 70.21637514
A104: 2005 - May | B104: 6.333333333 | C104: 1000 | D104: 11.37665978 | E104: 72.89911026 | F104: 37.30008388 | G104: 64.91728118 | H104: 4.64381098 | I104: 10.25009703 | J104: 12.04557635 | K104: 11.39580609 | L104: 3.61586608 | M104: 51.29014683
A105: 2005 - Jun | B105: 6.416666667 | C105: 1000 | D105: 11.24301852 | E105: 72.64434995 | F105: 37.61301822 | G105: 65.62090513 | H105: 4.579027932 | I105: 10.22663457 | J105: 12.08758129 | K105: 11.47542284 | L105: 2.819551578 | M105: 42.71044743
A106: 2005 - Jul | B106: 6.5 | C106: 1000 | D106: 11.11483757 | E106: 72.3878498 | F106: 37.92951718 | G106: 66.3288444 | H106: 4.517720803 | I106: 10.2044376 | J106: 12.12985787 | K106: 11.5558343 | L106: 2.819243827 | M106: 43.35730128
A107: 2005 - Aug | B107: 6.583333333 | C107: 1000 | D107: 11.06557027 | E107: 72.49994027 | F107: 38.38250402 | G107: 67.27413818 | H107: 4.489556148 | I107: 10.21885643 | J107: 12.19000942 | K107: 11.67072844 | L107: 4.04623056 | M107: 50.95880906
A108: 2005 - Sep | B108: 6.666666667 | C108: 1000 | D108: 11.13466844 | E108: 73.18402741 | F108: 39.04751924 | G108: 68.59108581 | H108: 4.510246402 | I108: 10.28866287 | J108: 12.27757043 | K108: 11.83899262 | L108: 5.966957492 | M108: 59.94341712
A109: 2005 - Oct | B109: 6.75 | C109: 1000 | D109: 11.37508367 | E109: 74.7629801 | F109: 40.02703588 | G109: 70.46244599 | H109: 4.600913103 | I109: 10.43888089 | J109: 12.4049712 | K109: 12.08596695 | L109: 8.930385179 | M109: 80.83951863
A110: 2005 - Nov | B110: 6.833333333 | C110: 1000 | D110: 11.66263195 | E110: 76.73087376 | F110: 41.10590457 | G110: 72.51204744 | H110: 4.711064244 | I110: 10.61151914 | J110: 12.54320688 | K110: 12.35682943 | L110: 10.13379273 | M110: 103.3771169
A111: 2005 - Dec | B111: 6.916666667 | C111: 1000 | D111: 11.94639656 | E111: 78.79552656 | F111: 42.19445366 | G111: 74.58226047 | H111: 4.820065264 | I111: 10.78297742 | J111: 12.68055419 | K111: 12.62892402 | L111: 10.43153334 | M111: 123.6199909
A112: 2006 - Jan | B112: 7 | C112: 1000 | D112: 12.14192783 | E112: 80.47028398 | F112: 43.13859388 | G112: 76.40007863 | H112: 4.893865719 | I112: 10.91429695 | J112: 12.79801628 | K112: 12.86397531 | L112: 9.18917983 | M112: 130.5078585
A113: 2006 - Feb | B113: 7.083333333 | C113: 1000 | D113: 12.20545907 | E113: 81.44316482 | F113: 43.8531458 | G113: 77.81270406 | H113: 4.914921483 | I113: 10.98532293 | J113: 12.88592141 | K113: 13.04129857 | L113: 6.991170865 | M113: 113.1704706
A114: 2006 - Mar | B114: 7.166666667 | C114: 1000 | D114: 12.23994098 | E114: 82.2186042 | F114: 44.51872061 | G114: 79.13880317 | H114: 4.924755659 | I114: 11.0426237 | J114: 12.96705279 | K114: 13.20603486 | L114: 6.439767995 | M114: 107.3001901
A115: 2006 - Apr | B115: 7.25 | C115: 1000 | D115: 12.15493198 | E115: 82.40392879 | F115: 44.96810118 | G115: 80.08004566 | H115: 4.886987089 | I115: 11.04552354 | J115: 13.02143138 | K115: 13.31702868 | L115: 4.496709861 | M115: 63.10687853
A116: 2006 - May | B116: 7.333333333 | C116: 1000 | D116: 11.99961645 | E116: 82.16330563 | F116: 45.28484021 | G116: 80.78342123 | H116: 4.821427478 | I116: 11.01592108 | J116: 13.0595691 | K116: 13.39514986 | L116: 3.159664754 | M116: 46.97730194
A117: 2006 - Jun | B117: 7.416666667 | C117: 1000 | D117: 11.82861063 | E117: 81.71746952 | F117: 45.56531426 | G117: 81.41995046 | H117: 4.750006619 | I117: 10.97797085 | J117: 13.09321055 | K117: 13.46425057 | L117: 2.595896475 | M117: 40.8635622
A118: 2006 - Jul | B118: 7.5 | C118: 1000 | D118: 11.68432298 | E118: 81.33239621 | F118: 45.88647595 | G118: 82.12707761 | H118: 4.689703851 | I118: 10.95027701 | J118: 13.13158427 | K118: 13.54328855 | L118: 2.844543122 | M118: 44.64537706
A119: 2006 - Aug | B119: 7.583333333 | C119: 1000 | D119: 11.61936447 | E119: 81.32157527 | F119: 46.34628123 | G119: 83.08078391 | H119: 4.661564576 | I119: 10.95570777 | J119: 13.18625195 | K119: 13.65628654 | L119: 4.084018066 | M119: 52.50851456
A120: 2006 - Sep | B120: 7.666666667 | C120: 1000 | D120: 11.6731364 | E120: 81.89024322 | F120: 47.02135945 | G120: 84.4198158 | H120: 4.681312296 | I120: 11.01128032 | J120: 13.26594391 | K120: 13.8218506 | L120: 6.02354165 | M120: 61.78459257
A121: 2006 - Oct | B121: 7.75 | C121: 1000 | D121: 11.89844727 | E121: 83.36368188 | F121: 48.01543905 | G121: 86.33239535 | H121: 4.770037262 | I121: 11.13966392 | J121: 13.38208779 | K121: 14.0649318 | L121: 9.013526514 | M121: 83.31617977
A122: 2006 - Nov | B122: 7.833333333 | C122: 1000 | D122: 12.171021 | E122: 85.22970439 | F122: 49.10957997 | G122: 88.42672433 | H122: 4.877848564 | I122: 11.288518 | J122: 13.5083122 | K122: 14.3315136 | L122: 10.22223505 | M122: 106.4827434
A123: 2006 - Dec | B123: 7.916666667 | C123: 1000 | D123: 12.43994811 | E123: 87.19300574 | F123: 50.21267375 | G123: 90.53916008 | H123: 4.984320948 | I123: 11.43652548 | J123: 13.63391952 | K123: 14.59927648 | L123: 10.51571353 | M123: 127.2179573
A124: 2007 - Jan | B124: 8 | C124: 1000 | D124: 12.62098399 | E124: 88.76326029 | F124: 51.16872512 | G124: 92.38797593 | H124: 5.055698998 | I124: 11.54849699 | J124: 13.74148748 | K124: 14.83055399 | L124: 9.257692534 | M124: 134.1778557
A125: 2007 - Feb | B125: 8.083333333 | C125: 1000 | D125: 12.67059923 | E125: 89.62719737 | F125: 51.89190906 | G125: 93.81682986 | H125: 5.074560808 | I125: 11.60620576 | J125: 13.82207838 | K125: 15.00502018 | L125: 7.040322836 | M125: 115.1885263
A126: 2007 - Mar | B126: 8.166666667 | C126: 1000 | D126: 12.69158534 | E126: 90.29365789 | F126: 52.56534241 | G126: 95.15550153 | H126: 5.082082793 | I126: 11.65169407 | J126: 13.89653808 | K126: 15.16712008 | L126: 6.483817291 | M126: 108.8123998
A127: 2007 - Apr | B127: 8.25 | C127: 1000 | D127: 12.52641379 | E127: 90.097818 | F127: 52.89491818 | G127: 95.87055209 | H127: 5.01518622 | I127: 11.62067298 | J127: 13.93277563 | K127: 15.24632483 | L127: 3.543919144 | M127: 51.77215442
A128: 2007 - May | B128: 8.333333333 | C128: 1000 | D128: 12.3231928 | E128: 89.60180338 | F128: 53.14569843 | G128: 96.44069971 | H128: 4.933176929 | I128: 11.57288397 | J128: 13.9602613 | K128: 15.30653807 | L128: 2.640904402 | M128: 40.87623079
A129: 2007 - Jun | B129: 8.416666667 | C129: 1000 | D129: 12.12030576 | E129: 88.97537007 | F129: 53.38700279 | G129: 96.99141615 | H129: 4.851407823 | I129: 11.52373261 | J129: 13.98663708 | K129: 15.36443143 | L129: 2.316462285 | M129: 37.74185855
A130: 2007 - Jul | B130: 8.5 | C130: 1000 | D130: 11.96740567 | E130: 88.48543073 | F130: 53.71115137 | G130: 97.69060415 | H130: 4.789736808 | I130: 11.49301225 | J130: 14.02195892 | K130: 15.44213206 | L130: 2.857846702 | M130: 45.39181598
A131: 2007 - Aug | B131: 8.583333333 | C131: 1000 | D131: 11.89378412 | E131: 88.37318259 | F131: 54.17525836 | G131: 98.64280226 | H131: 4.759868389 | I131: 11.49236531 | J131: 14.07231596 | K131: 15.55324583 | L131: 4.103486653 | M131: 53.38888844
A132: 2007 - Sep | B132: 8.666666667 | C132: 1000 | D132: 11.9386686 | E132: 88.84472343 | F132: 54.85660635 | G132: 99.98972445 | H132: 4.77748275 | I132: 11.5372759 | J132: 14.14579049 | K132: 15.71608339 | L132: 6.052134483 | M132: 62.81184754
A133: 2007 - Oct | B133: 8.75 | C133: 1000 | D133: 12.15459598 | E133: 90.22642698 | F133: 55.85967607 | G133: 101.9232466 | H133: 4.863585104 | I133: 11.64837104 | J133: 14.25299622 | K133: 15.95519885 | L133: 9.054713956 | M133: 84.67503033
A134: 2007 - Nov | B134: 8.833333333 | C134: 1000 | D134: 12.41768575 | E134: 92.00282993 | F134: 56.96319659 | G134: 104.0409674 | H134: 4.968591161 | I134: 11.77822273 | J134: 14.36964849 | K134: 16.21743518 | L134: 10.26507177 | M134: 108.1588007
A135: 2007 - Dec | B135: 8.916666667 | C135: 1000 | D135: 12.67722054 | E135: 93.87706393 | F135: 58.07518846 | G135: 106.1751893 | H135: 5.072202491 | I135: 11.90749787 | J135: 14.48587031 | K135: 16.48082952 | L135: 10.55549071 | M135: 129.1265645
A136: 2008 - Jan | B136: 9 | C136: 1000 | D136: 12.84937142 | E136: 95.35709526 | F136: 59.03850048 | G136: 108.0382906 | H136: 5.140877406 | I136: 12.00425451 | J136: 14.58550757 | K136: 16.70832736 | L136: 9.289223707 | M136: 134.4767888
A137: 2008 - Feb | B137: 9.083333333 | C137: 1000 | D137: 12.89089089 | E137: 96.12918245 | F137: 59.7669196 | G137: 109.4715297 | H137: 5.157314543 | I137: 12.05191152 | J137: 14.66022137 | K137: 16.87994152 | L137: 7.06237285 | M137: 115.1419909
A138: 2008 - Mar | B138: 9.166666667 | C138: 1000 | D138: 12.84685373 | E138: 96.49781933 | F138: 60.33760147 | G138: 110.6151485 | H138: 5.139548194 | I138: 12.06710711 | J138: 14.71838578 | K138: 17.01414954 | L138: 5.7133476 | M138: 97.55990285
A139: 2008 - Apr | B139: 9.25 | C139: 1000 | D139: 12.64702161 | E139: 96.07563424 | F139: 60.61382585 | G139: 111.2175152 | H139: 5.059478508 | I139: 12.02351516 | J139: 14.74642359 | K139: 17.07903353 | L139: 3.081998971 | M139: 45.67597688
A140: 2008 - May | B140: 9.333333333 | C140: 1000 | D140: 12.42264537 | E140: 95.41692681 | F140: 60.83388949 | G140: 111.7148789 | H140: 4.969612294 | I140: 11.96945131 | J140: 14.76870757 | K140: 17.13069032 | L140: 2.382093755 | M140: 37.29532416
A141: 2008 - Jun | B141: 9.416666667 | C141: 1000 | D141: 12.2049871 | E141: 94.66466267 | F141: 61.05526138 | G141: 112.2126503 | H141: 4.882452653 | I141: 11.91638764 | J141: 14.79107664 | K141: 17.18262279 | L141: 2.16620172 | M141: 35.85369878
A142: 2008 - Jul | B142: 9.5 | C142: 1000 | D142: 12.04863554 | E142: 94.09027477 | F142: 61.38094027 | G142: 112.9003323 | H142: 4.819833673 | I142: 11.8842455 | J142: 14.82389983 | K142: 17.25896804 | L142: 2.860519203 | M142: 45.60305464
A143: 2008 - Aug | B143: 9.583333333 | C143: 1000 | D143: 11.97115923 | E143: 93.89522499 | F143: 61.84721995 | G143: 113.8452202 | H143: 4.788779748 | I143: 11.87950124 | J143: 14.87071695 | K143: 17.36815539 | L143: 4.107278423 | M143: 53.63279821
A144: 2008 - Sep | B144: 9.666666667 | C144: 1000 | D144: 12.01151697 | E144: 94.28572764 | F144: 62.53169715 | G144: 115.1908673 | H144: 4.804872227 | I144: 11.91629661 | J144: 14.93907088 | K144: 17.52818938 | L144: 6.05741975 | M144: 63.08855086
A145: 2008 - Oct | B145: 9.75 | C145: 1000 | D145: 12.22187687 | E145: 95.58823205 | F145: 63.53921604 | G145: 117.1314356 | H145: 4.888976467 | I145: 12.01348057 | J145: 15.03889531 | K145: 17.76322242 | L145: 9.061659713 | M145: 85.02661855
A146: 2008 - Nov | B146: 9.833333333 | C146: 1000 | D146: 12.47915912 | E146: 97.2864298 | F146: 64.64736222 | G146: 119.2578719 | H146: 4.991855963 | I146: 12.12791918 | J146: 15.1476293 | K146: 18.02101375 | L146: 10.27114963 | M146: 108.5667251
A147: 2008 - Dec | B147: 9.916666667 | C147: 1000 | D147: 12.73298383 | E147: 99.0831251 | F147: 65.7637325 | G147: 121.3999354 | H147: 5.093357022 | I147: 12.24201029 | J147: 15.25607636 | K147: 18.27997464 | L147: 10.55983839 | M147: 129.5577282
A148: 2009 - Jan | B148: 10 | C148: 1000 | D148: 12.90010158 | E148: 100.4861083 | F148: 66.73060916 | G148: 123.2662641 | H148: 5.160178419 | I148: 12.32662641 | J148: 15.34913662 | K148: 18.50366618 | L148: 9.291521444 | M148: 134.403219
A149: 2009 - Feb | B149: 10.08333333 | C149: 1000 | D149: 12.93757565 | E149: 101.1817799 | F149: 67.46158552 | G149: 124.6965608 | H149: 5.175145039 | I149: 12.36660107 | J149: 15.41897098 | K149: 18.67242242 | L149: 7.063226226 | M149: 115.0771306
A150: 2009 - Mar | B150: 10.16666667 | C150: 1000 | D150: 12.86088678 | E150: 101.3600291 | F150: 67.97864007 | G150: 125.7306274 | H150: 5.144449334 | I150: 12.36694696 | J150: 15.46810202 | K150: 18.79160769 | L150: 5.288630154 | M150: 91.27955441
A151: 2009 - Apr | B151: 10.25 | C151: 1000 | D151: 12.64943986 | E151: 100.8142669 | F151: 68.23635639 | G151: 126.2836865 | H151: 5.05985301 | I151: 12.32035965 | J151: 15.4925091 | K151: 18.85095692 | L151: 2.910960756 | M151: 43.40051977
A152: 2009 - May | B152: 10.33333333 | C152: 1000 | D152: 12.41796918 | E152: 100.0556507 | F152: 68.44530402 | G152: 126.7448312 | H152: 4.967250219 | I152: 12.26562883 | J152: 15.51225808 | K152: 18.89904784 | L152: 2.282148216 | M152: 35.91348901
A153: 2009 - Jun | B153: 10.41666667 | C153: 1000 | D153: 12.19525126 | E153: 99.21757682 | F153: 68.65905908 | G153: 127.2132119 | H153: 4.878151211 | I153: 12.21246834 | J153: 15.53242508 | K153: 18.94821991 | L153: 2.104432265 | M153: 34.9797757
A154: 2009 - Jul | B154: 10.5 | C154: 1000 | D154: 12.03782072 | E154: 98.57421211 | F154: 68.98545666 | G154: 127.8887949 | H154: 4.815169544 | I154: 12.17988523 | J154: 15.56314896 | K154: 19.02325502 | L154: 2.857739944 | M154: 45.54316775
A155: 2009 - Aug | B155: 10.58333333 | C155: 1000 | D155: 11.95871124 | E155: 98.31087027 | F155: 69.45273305 | G155: 128.8243313 | H155: 4.783518225 | I155: 12.17237776 | J155: 15.60698656 | K155: 19.1305737 | L155: 4.103105131 | M155: 53.55750974
A156: 2009 - Sep | B156: 10.66666667 | C156: 1000 | D156: 11.99657509 | E156: 98.63351806 | F156: 70.13861479 | G156: 130.1645062 | H156: 4.798657837 | I156: 12.20292245 | J156: 15.67102216 | K156: 19.28788157 | L156: 6.050939626 | M156: 62.99199569
A157: 2009 - Oct | B157: 10.75 | C157: 1000 | D157: 12.20317364 | E157: 99.86817612 | F157: 71.14809402 | G157: 132.1048992 | H157: 4.88129266 | I157: 12.28882784 | J157: 15.76460864 | K157: 19.51894179 | L157: 9.051374795 | M157: 84.88062392
A158: 2009 - Nov | B158: 10.83333333 | C158: 1000 | D158: 12.45639471 | E158: 101.4988809 | F158: 72.25825229 | G158: 134.232288 | H158: 4.982577283 | I158: 12.39067274 | J158: 15.86663885 | K158: 19.7724167 | L158: 10.25870722 | M158: 108.3513081
A159: 2009 - Dec | B159: 10.91666667 | C159: 1000 | D159: 12.70625416 | E159: 103.228716 | F159: 73.3765033 | G159: 136.374838 | H159: 5.082517851 | I159: 12.49235158 | J159: 15.96849253 | K159: 20.02708404 | L159: 10.54627969 | M159: 129.2659153
A160: 2010 - Jan | B160: 11 | C160: 1000 | D160: 12.87014661 | E160: 104.5660604 | F160: 74.34488997 | G160: 138.2388293 | H160: 5.148072033 | I160: 12.5671663 | J160: 16.05596696 | K160: 20.2470993 | L160: 9.278985341 | M160: 134.303813
A161: 2010 - Feb | B161: 11.08333333 | C161: 1000 | D161: 12.90545588 | E161: 105.1977755 | F161: 75.07692838 | G161: 139.6629713 | H161: 5.1621933 | I161: 12.60117034 | J161: 16.12165183 | K161: 20.41309971 | L161: 7.053292938 | M161: 114.989716
A162: 2010 - Mar | B162: 11.16666667 | C162: 1000 | D162: 12.81983072 | E162: 105.2820218 | F162: 75.57994479 | G162: 140.6603029 | H162: 5.127941142 | I162: 12.59644503 | J162: 16.16657056 | K162: 20.52700961 | L162: 5.166067105 | M162: 89.49887964
A163: 2010 - Apr | B163: 11.25 | C163: 1000 | D163: 12.60582973 | E163: 104.6626882 | F163: 75.8329811 | G163: 141.1912586 | H163: 5.042338968 | I163: 12.55033409 | J163: 16.18910047 | K163: 20.5842628 | L163: 2.861845647 | M163: 42.77053501
A164: 2010 - May | B164: 11.33333333 | C164: 1000 | D164: 12.37308536 | E164: 103.8376535 | F164: 76.03911774 | G164: 141.6335428 | H164: 4.949239782 | I164: 12.49707731 | J164: 16.20742212 | K164: 20.63088071 | L164: 2.252457943 | M164: 35.52432679
A165: 2010 - Jun | B165: 11.41666667 | C165: 1000 | D165: 12.14956857 | E165: 102.9375901 | F165: 76.25094161 | G165: 142.0850723 | H165: 4.859831916 | I165: 12.44540779 | J165: 16.22621909 | K165: 20.67876286 | L165: 2.084855032 | M165: 34.62233218
A166: 2010 - Jul | B166: 11.5 | C166: 1000 | D166: 11.99198111 | E166: 102.2370043 | F166: 76.57759908 | G166: 142.7493547 | H166: 4.796796028 | I166: 12.41298736 | J166: 16.25514665 | K166: 20.75255938 | L166: 2.852311419 | M166: 45.36966914
A167: 2010 - Aug | B167: 11.58333333 | C167: 1000 | D167: 11.91210999 | E167: 101.9166117 | F167: 77.04521041 | G167: 143.6753754 | H167: 4.76484687 | I167: 12.40362953 | J167: 16.29643155 | K167: 20.85810815 | L167: 4.095077062 | M167: 53.34900918
A168: 2010 - Sep | B168: 11.66666667 | C168: 1000 | D168: 11.94828959 | E168: 102.1819607 | F168: 77.73152685 | G168: 145.0084947 | H168: 4.779318164 | I168: 12.42929955 | J168: 16.35676185 | K168: 21.01282978 | L168: 6.038768343 | M168: 62.74015578
A169: 2010 - Oct | B169: 11.75 | C169: 1000 | D169: 12.15186335 | E169: 103.3583964 | F169: 78.74156083 | G169: 146.9451368 | H169: 4.860747244 | I169: 12.50596909 | J169: 16.44498591 | K169: 21.24011643 | L169: 9.032716295 | M169: 84.5280727
A170: 2010 - Nov | B170: 11.83333333 | C170: 1000 | D170: 12.40173569 | E170: 104.9308333 | F170: 79.85223789 | G170: 149.0694945 | H170: 4.960695838 | I170: 12.59742207 | J170: 16.54124215 | K170: 21.48949057 | L170: 10.23715436 | M170: 107.8774113
A171: 2010 - Dec | B171: 11.91666667 | C171: 1000 | D171: 12.64833498 | E171: 106.6029162 | F171: 80.97092178 | G171: 151.2087505 | H171: 5.059335273 | I171: 12.6888462 | J171: 16.63740604 | K171: 21.74007876 | L171: 10.52377759 | M171: 128.6744222
A172: 2011 - Jan | B172: 12 | C172: 1000 | D172: 12.8097188 | E172: 107.8839879 | F172: 81.93960944 | G172: 153.0677426 | H172: 5.123888559 | I172: 12.75564522 | J172: 16.7200518 | K172: 21.95660143 | L172: 9.25891916 | M172: 134.1732161
A173: 2011 - Feb | B173: 12.08333333 | C173: 1000 | D173: 12.84359485 | E173: 108.4615507 | F173: 82.67181936 | G173: 154.4845828 | H173: 5.137438776 | I173: 12.78493099 | J173: 16.78214442 | K173: 22.11998304 | L173: 7.037810464 | M173: 114.8751165
A174: 2011 - Mar | B174: 12.16666667 | C174: 1000 | D174: 12.75915924 | E174: 108.5001071 | F174: 83.17804777 | G174: 155.4784731 | H174: 5.103664357 | I174: 12.77905258 | J174: 16.82488608 | K174: 22.23279923 | L174: 5.178828864 | M174: 89.76795654
A175: 2011 - Apr | B175: 12.25 | C175: 1000 | D175: 12.54639952 | E175: 107.8337987 | F175: 83.43238785 | G175: 156.0005971 | H175: 5.018560329 | I175: 12.73474262 | J175: 16.84630315 | K175: 22.2894373 | L175: 2.866533701 | M175: 42.87244294
A176: 2011 - May | B176: 12.33333333 | C176: 1000 | D176: 12.31483925 | E176: 106.9616788 | F176: 83.63939356 | G176: 156.4331414 | H176: 4.925936106 | I176: 12.68376822 | J176: 16.86370627 | K176: 22.33551341 | L176: 2.254436857 | M176: 35.58479022
A177: 2011 - Jun | B177: 12.41666667 | C177: 1000 | D177: 12.09234029 | E177: 106.0146182 | F177: 83.85186905 | G177: 156.8748459 | H177: 4.836936436 | I177: 12.63421578 | J177: 16.88154313 | K177: 22.38278724 | L177: 2.084769685 | M177: 34.51463053
A178: 2011 - Jul | B178: 12.5 | C178: 1000 | D178: 11.93489969 | E178: 105.2660605 | F178: 84.17847563 | G178: 157.5290919 | H178: 4.773960126 | I178: 12.60232735 | J178: 16.9089097 | K178: 22.45541528 | L178: 2.845363386 | M178: 45.15099831
A179: 2011 - Aug | B179: 12.58333333 | C179: 1000 | D179: 11.85455619 | E179: 104.897547 | F179: 84.64597433 | G179: 158.4461699 | H179: 4.741822672 | I179: 12.5917486 | J179: 16.94797415 | K179: 22.55929209 | L179: 4.084840209 | M179: 53.08747181
A180: 2011 - Sep | B180: 12.66666667 | C180: 1000 | D180: 11.88932275 | E180: 105.1141118 | F180: 85.33206788 | G180: 159.7717927 | H180: 4.755729257 | I180: 12.61356258 | J180: 17.0050773 | K180: 22.71156713 | L180: 6.02332144 | M180: 62.42632797
A181: 2011 - Oct | B181: 12.75 | C181: 1000 | D181: 12.09012033 | E181: 106.2402765 | F181: 86.3416956 | G181: 161.7028164 | H181: 4.836048256 | I181: 12.68257383 | J181: 17.08862305 | K181: 22.93527867 | L181: 9.009177552 | M181: 84.09271456
A182: 2011 - Nov | B182: 12.83333333 | C182: 1000 | D182: 12.33688009 | E182: 107.7620975 | F182: 87.45185364 | G182: 163.8219416 | H182: 4.934752138 | I182: 12.7653461 | J182: 17.17983239 | K182: 23.18076298 | L182: 10.21016211 | M182: 107.2992004
A183: 2011 - Dec | B183: 12.91666667 | C183: 1000 | D183: 12.58044653 | E183: 109.3839321 | F183: 88.56994502 | G183: 165.9557942 | H183: 5.032178693 | I183: 12.84819052 | J183: 17.27101339 | K183: 23.42747715 | L183: 10.4957864 | M183: 127.960986
A184: 2012 - Jan | B184: 13 | C184: 1000 | D184: 12.7395469 | E184: 110.6163124 | F184: 89.53806126 | G184: 167.8084288 | H184: 5.095818824 | I184: 12.90834068 | J184: 17.34942292 | K184: 23.64067917 | L184: 9.234102014 | M184: 134.0056307
A185: 2012 - Feb | B185: 13.08333333 | C185: 1000 | D185: 12.77221682 | E185: 111.1475129 | F185: 90.26979047 | G185: 169.2176614 | H185: 5.10888678 | I185: 12.933834 | J185: 17.40835945 | K185: 23.80156821 | L185: 7.018749224 | M185: 114.7283235
A186: 2012 - Mar | B186: 13.16666667 | C186: 1000 | D186: 12.69343004 | E186: 111.1657894 | F186: 90.78705398 | G186: 170.2243015 | H186: 5.077372055 | I186: 12.92842796 | J186: 17.44985407 | K186: 23.91517042 | L186: 5.252799516 | M186: 90.96234944
A187: 2012 - Apr | B187: 13.25 | C187: 1000 | D187: 12.48354192 | E187: 110.4681178 | F187: 91.0454282 | G187: 170.7447882 | H187: 4.9934168 | I187: 12.88639911 | J187: 17.47052908 | K187: 23.97187454 | L187: 2.895795613 | M187: 43.3074526
A188: 2012 - May | B188: 13.33333333 | C188: 1000 | D188: 12.25419087 | E188: 109.5611533 | F188: 91.25497326 | G188: 171.1728586 | H188: 4.901676372 | I188: 12.83796439 | J188: 17.48727167 | K188: 24.01784266 | L188: 2.27086576 | M188: 35.80756072
A189: 2012 - Jun | B189: 13.41666667 | C189: 1000 | D189: 12.03347058 | E189: 108.5773868 | F189: 91.46930404 | G189: 171.6090674 | H189: 4.813388251 | I189: 12.79073795 | J189: 17.50437346 | K189: 24.06484244 | L189: 2.093881874 | M189: 34.53102669
A190: 2012 - Jul | B190: 13.5 | C190: 1000 | D190: 11.87621627 | E190: 107.7882982 | F190: 91.79560385 | G190: 172.2545713 | H190: 4.750486522 | I190: 12.75959788 | J190: 17.53036461 | K190: 24.13636026 | L190: 2.837279523 | M190: 44.91450264
A191: 2012 - Aug | B191: 13.58333333 | C191: 1000 | D191: 11.7954344 | E191: 107.3788675 | F191: 92.2626213 | G191: 173.1634666 | H191: 4.718173771 | I191: 12.74823067 | J191: 17.56747092 | K191: 24.23864668 | L191: 4.072951466 | M191: 52.80476007
A192: 2012 - Sep | B192: 13.66666667 | C192: 1000 | D192: 11.828813 | E192: 107.5535445 | F192: 92.94794845 | G192: 174.4815706 | H192: 4.731525209 | I192: 12.76694419 | J192: 17.62172494 | K192: 24.38859138 | L192: 6.005409434 | M192: 62.08737305
A193: 2012 - Oct | B193: 13.75 | C193: 1000 | D193: 12.02684479 | E193: 108.6359096 | F193: 93.95636916 | G193: 176.4058485 | H193: 4.810737922 | I193: 12.82951626 | J193: 17.70113408 | K193: 24.60889227 | L193: 8.981912205 | M193: 83.62310871
A194: 2012 - Nov | B194: 13.83333333 | C194: 1000 | D194: 12.27049182 | E194: 110.1133239 | F194: 95.06513104 | G194: 178.5183239 | H194: 4.908196732 | I194: 12.90493908 | J194: 17.78787296 | K194: 24.85065955 | L194: 10.17890787 | M194: 106.6766498
A195: 2012 - Dec | B195: 13.91666667 | C195: 1000 | D195: 12.51101696 | E195: 111.690963 | F195: 96.18174951 | G195: 180.645387 | H195: 5.004406788 | I195: 12.98050685 | J195: 17.87463208 | K195: 25.09366547 | L195: 10.46337413 | M195: 127.1941134
A196: 2013 - Jan | B196: 14 | C196: 1000 | D196: 12.66782536 | E196: 112.8807266 | F196: 97.14853394 | G196: 182.4908224 | H196: 5.067130146 | I196: 13.03505875 | J196: 17.94927601 | K196: 25.30368386 | L196: 9.205358183 | M196: 133.7948515
A197: 2013 - Feb | B197: 14.08333333 | C197: 1000 | D197: 12.69928791 | E197: 113.3717844 | F197: 97.87920726 | G197: 183.8923973 | H197: 5.079715166 | I197: 13.05744833 | J197: 18.00540312 | K197: 25.46217975 | L197: 6.996671996 | M197: 114.5439818
A198: 2013 - Mar | B198: 14.16666667 | C198: 1000 | D198: 12.62825808 | E198: 113.3846247 | F198: 98.41137363 | G198: 184.9205672 | H198: 5.051303232 | I198: 13.05321651 | J198: 18.04612814 | K198: 25.57749186 | L198: 5.356243318 | M198: 92.59445269
A199: 2013 - Apr | B199: 14.25 | C199: 1000 | D199: 12.42198563 | E199: 112.6659114 | F199: 98.67516094 | G199: 185.4438576 | H199: 4.968794253 | I199: 13.01360404 | J199: 18.06626734 | K199: 25.63461189 | L199: 2.937306149 | M199: 43.90624735
A200: 2013 - May | B200: 14.33333333 | C200: 1000 | D200: 12.19527613 | E200: 111.732685 | F200: 98.88806394 | G200: 185.8708647 | H200: 4.878110451 | I200: 12.96773475 | J200: 18.08249882 | K200: 25.68069496 | L200: 2.294360478 | M200: 36.01240922
A201: 2013 - Jun | B201: 14.41666667 | C201: 1000 | D201: 11.97668775 | E201: 110.719994 | F201: 99.10492447 | G201: 186.3046601 | H201: 4.790675102 | I201: 12.9228666 | J201: 18.09901107 | K201: 25.72761764 | L201: 2.10817851 | M201: 34.62183396
A202: 2013 - Jul | B202: 14.5 | C202: 1000 | D202: 11.8195462 | E202: 109.8964282 | F202: 99.43067347 | G202: 186.9425475 | H202: 4.72781848 | I202: 12.89258948 | J202: 18.12377478 | K202: 25.79806868 | L202: 2.828110919 | M202: 44.66934363
A203: 2013 - Aug | B203: 14.58333333 | C203: 1000 | D203: 11.73824497 | E203: 109.4519287 | F203: 99.89685788 | G203: 187.843945 | H203: 4.695297987 | I203: 12.88072766 | J203: 18.15913231 | K203: 25.89882537 | L203: 4.059484623 | M203: 52.5114613
A204: 2013 - Sep | B204: 14.66666667 | C204: 1000 | D204: 11.77014064 | E204: 109.5902935 | F204: 100.5808986 | G204: 189.1545677 | H204: 4.708056256 | I204: 12.89690234 | J204: 18.21083925 | K204: 26.04652578 | L204: 5.985133607 | M204: 61.73540444
A205: 2013 - Oct | B205: 14.75 | C205: 1000 | D205: 11.96528747 | E205: 110.6340451 | F205: 101.5873421 | G205: 191.0712168 | H205: 4.78611499 | I205: 12.9539808 | J205: 18.28654519 | K205: 26.26353669 | L205: 8.951042738 | M205: 83.13496109
A206: 2013 - Nov | B206: 14.83333333 | C206: 1000 | D206: 12.20569001 | E206: 112.0719858 | F206: 102.6938569 | G206: 193.1758951 | H206: 4.882276005 | I206: 13.02309405 | J206: 18.36927539 | K206: 26.50171208 | L206: 10.14347144 | M206: 106.028704
A207: 2013 - Dec | B207: 14.91666667 | C207: 1000 | D207: 12.44303521 | E207: 113.6102063 | F207: 103.8081406 | G207: 195.2950192 | H207: 4.977214084 | I207: 13.09240352 | J207: 18.45206261 | K207: 26.74112786 | L207: 10.42655917 | M207: 126.3948599
A208: 2014 - Jan | B208: 15 | C208: 1000 | D208: 12.59742114 | E208: 114.7621501 | F208: 104.7728426 | G208: 197.1325333 | H208: 5.038968456 | I208: 13.14216889 | J208: 18.52331877 | K208: 26.94805857 | L208: 9.172652422 | M208: 133.0263174
A209: 2014 - Feb | B209: 15.08333333 | C209: 1000 | D209: 12.62756572 | E209: 115.2180128 | F209: 105.5018884 | G209: 198.5263724 | H209: 5.051026289 | I209: 13.16196944 | J209: 18.57691505 | K209: 27.10422984 | L209: 6.971523017 | M209: 114.3164274
A210: 2014 - Mar | B210: 15.16666667 | C210: 1000 | D210: 12.56642361 | E210: 115.2392222 | F210: 106.0531246 | G210: 199.5852565 | H210: 5.026569445 | I210: 13.15946746 | J210: 18.61729625 | K210: 27.2221925 | L210: 5.490463563 | M210: 94.67374545
A211: 2014 - Apr | B211: 15.25 | C211: 1000 | D211: 12.36448801 | E211: 114.5088057 | F211: 106.3238522 | G211: 200.1157922 | H211: 4.945795205 | I211: 13.12234703 | J211: 18.63708378 | K211: 27.28008985 | L211: 2.992036875 | M211: 44.6787667
A212: 2014 - May | B212: 15.33333333 | C212: 1000 | D212: 12.14079943 | E212: 113.5567969 | F212: 106.5410063 | G212: 200.5449915 | H212: 4.856319774 | I212: 13.07902119 | J212: 18.65293437 | K212: 27.32651229 | L212: 2.325383071 | M212: 36.32640676
A213: 2014 - Jun | B213: 15.41666667 | C213: 1000 | D213: 11.92454699 | E213: 112.5214973 | F213: 106.7609517 | G213: 200.9789447 | H213: 4.769818797 | I213: 13.03647209 | J213: 18.66896951 | K213: 27.37351538 | L213: 2.126695396 | M213: 34.77778035
A214: 2014 - Jul | B214: 15.5 | C214: 1000 | D214: 11.76736216 | E214: 111.6683275 | F214: 107.0859072 | G214: 201.610113 | H214: 4.706944862 | I214: 13.00710407 | J214: 18.69262519 | K214: 27.44292997 | L214: 2.817842764 | M214: 44.42113749
A215: 2014 - Aug | B215: 15.58333333 | C215: 1000 | D215: 11.6853746 | E215: 111.1934466 | F215: 107.5509086 | G215: 202.5045327 | H215: 4.674149839 | I215: 12.99494327 | J215: 18.72640303 | K215: 27.54219909 | L215: 4.044418183 | M215: 52.21402569
A216: 2014 - Sep | B216: 15.66666667 | C216: 1000 | D216: 11.71559972 | E216: 111.2999331 | F216: 108.2331444 | G216: 203.8076359 | H216: 4.686239886 | I216: 13.00899804 | J216: 18.77580701 | K216: 27.68771441 | L216: 5.962455959 | M216: 61.37773773
A217: 2014 - Oct | B217: 15.75 | C217: 1000 | D217: 11.90763845 | E217: 112.3091289 | F217: 109.2368399 | G217: 205.7158177 | H217: 4.76305538 | I217: 13.06132176 | J217: 18.84816035 | K217: 27.90151705 | L217: 8.916489984 | M217: 82.63763239
A218: 2014 - Nov | B218: 15.83333333 | C218: 1000 | D218: 12.14455822 | E218: 113.7114029 | F218: 110.3402509 | G218: 207.8116123 | H218: 4.857823288 | I218: 13.12494394 | J218: 18.92725576 | K218: 28.13618319 | L218: 10.10371881 | M218: 105.3664227
A219: 2014 - Dec | B219: 15.91666667 | C219: 1000 | D219: 12.37847954 | E219: 115.2138555 | F219: 111.4513262 | G219: 209.9216867 | H219: 4.951391816 | I219: 13.18879707 | J219: 19.00643573 | K219: 28.37208447 | L219: 10.38515608 | M219: 125.5752132
A220: 2015 - Jan | B220: 16 | C220: 1000 | D220: 12.53021566 | E220: 116.3316568 | F220: 112.41318 | G220: 211.7505213 | H220: 5.012086266 | I220: 13.23440758 | J220: 19.0746105 | K220: 28.57598691 | L220: 9.135783059 | M220: 132.1345893
A221: 2015 - Feb | B221: 16.08333333 | C221: 1000 | D221: 12.55884752 | E221: 116.7561713 | F221: 113.1400128 | G221: 213.1364175 | H221: 5.023539008 | I221: 13.25200523 | J221: 19.12590192 | K221: 28.72987457 | L221: 6.943127102 | M221: 114.0397359
... 47 more rows

Sheet 
A2: Run type : | B2: SingleSite | E2: Stand initialisation and site factor data | K2: Optional parameter block | N2: Definition of parameter
A3: Site : | B3: Metolius River Oregon | F3: Year planted = | G3: 1999 | I3: Latitude = | J3: 44 | L3: Parameters | S3: gC/MJ APAR
A4: Species : | B4: Doug fir | F4: Month planted = | G4: Jan | I4: Fertility rating = | J4: 0.25
A5: Climate data : | B5: Metolius, OR Metdata | F5: Initial year = | G5: 1 | I5: Soil class = | J5: sl
A6: Met station : | B6: Mean Data | F6: Initial month = | G6: Jan | I6: Maximum ASW = | J6: 100
A7: Title : | B7: Ponderosa pine average climate | F7: End age = | G7: 100 | I7: Minimum ASW = | J7: 0
F8: Initial WF = | G8: 3 | I8: Atmospheric CO2 = | J8: 360
F9: Initial WR = | G9: 3
F10: Initial WS = | G10: 3
F11: Initial stocking = | G11: 300
F12: Initial ASW = | G12: 100
F16: Output details | H16: BasArea, avdbh
G17: Output frequency : | H17: a
A36: #Output from 3PGpjs 2.7 / 3-PG vsn 1 Sep2009
A37: Stand development for Metolius River Oregon
A38: Ponderosa pine average climate | Q38: Tree vigor
A39: Year & month | B39: Stand age | C39: Stems | D39: Foliage DM | E39: Root DM | F39: Stem DM | G39: Stand volume | H39: LAI | I39: MAI | J39: Mean DBH | K39: Basal area | L39: GPP | M39: Penman transp. | Q39: g wood/m2 Leaf area/yr | S39: % mortality/yr
A40: 2000 - Jan | B40: 1 | C40: 300 | D40: 3 | E40: 3 | F40: 3 | G40: 6.365027996 | H40: 1.65 | I40: 6.365027996 | J40: 7.103975709 | K40: 1.189088206
A41: 2001 - Jan | B41: 2 | C41: 300 | D41: 3.024637613 | E41: 0.3061026946 | F41: 3.179192658 | G41: 6.735295881 | H41: 1.679149727 | I41: 3.36764794 | J41: 7.275199558 | K41: 1.247099075 | L41: 1.747213323 | M41: 265.865355 | Q41: =1000*(F41-F40)/F41 -> 56.36420216 | S41: =100*(C40-C41)/C40 -> 0
A42: 2002 - Jan | B42: 3 | C42: 300 | D42: 3.026093133 | E42: 0.1931456602 | F42: 3.499201555 | G42: 7.403005648 | H42: 1.70271883 | I42: 2.467668549 | J42: 7.567356263 | K42: 1.349271967 | L42: 3.098024643 | M42: 265.8782555 | Q42: =1000*(F42-F41)/F42 -> 91.45197633 | S42: =100*(C41-C42)/C41 -> 0
A43: 2003 - Jan | B43: 4 | C43: 300 | D43: 2.966500786 | E43: 0.2536260019 | F43: 3.954744046 | G43: 8.355901495 | H43: 1.698078951 | I43: 2.088975374 | J43: 7.957257167 | K43: 1.491893852 | L43: 4.380192062 | M43: 265.8594746 | Q43: 115.1888681 | S43: 0
A44: 2004 - Jan | B44: 5 | C44: 300 | D44: 2.880719494 | E44: 0.3186117945 | F44: 4.533184587 | G44: 9.56640514 | H44: 1.665891675 | I44: 1.913281028 | J44: 8.415916741 | K44: 1.668837295 | L44: 5.523150309 | M44: 265.797373 | Q44: 127.601365 | S44: 0
A45: 2005 - Jan | B45: 6 | C45: 300 | D45: 2.819143462 | E45: 0.3748327938 | F45: 5.217802795 | G45: 10.99857191 | H45: 1.633136814 | I45: 1.833095318 | J45: 8.916165048 | K45: 1.873127476 | L45: 6.491187503 | M45: 265.7306929 | Q45: 131.2081416 | S45: 0
A46: 2006 - Jan | B46: 7 | C46: 300 | D46: 2.802586216 | E46: 0.422754675 | F46: 5.994151789 | G46: 12.62149465 | H46: 1.619663473 | I46: 1.803070664 | J46: 9.438613645 | K46: 2.099073059 | L46: 7.309917613 | M46: 265.6922365 | Q46: 129.5177403 | S46: 0
A47: 2007 - Jan | B47: 8 | C47: 300 | D47: 2.830564769 | E47: 0.4652172484 | F47: 6.853323036 | G47: 14.41611393 | H47: 1.630454935 | I47: 1.802014242 | J47: 9.972175732 | K47: 2.343100854 | L47: 8.034766247 | M47: 265.689793 | Q47: 125.3656427 | S47: 0
A48: 2008 - Jan | B48: 9 | C48: 300 | D48: 2.896069008 | E48: 0.5048348591 | F48: 7.791327904 | G48: 16.37383675 | H48: 1.663342113 | I48: 1.819315194 | J48: 10.5113969 | K48: 2.60334668 | L48: 8.713790637 | M48: 265.7214719 | Q48: 120.3908858 | S48: 0
A49: 2009 - Jan | B49: 10 | C49: 300 | D49: 2.991894666 | E49: 0.5433366953 | F49: 8.807368992 | G49: 18.49284441 | H49: 1.71456211 | I49: 1.849284441 | J49: 11.05387784 | K49: 2.878991999 | L49: 9.377703556 | M49: 265.7853833 | Q49: 115.3626115 | S49: 0
A50: 2010 - Jan | B50: 11 | C50: 300 | D50: 3.11219265 | E50: 0.5817020775 | F50: 9.902441759 | G50: 20.77512215 | H50: 1.780685885 | I50: 1.888647468 | J50: 11.59868701 | K50: 3.169777621 | L50: 10.04351543 | M50: 265.8814118 | Q50: 110.5861356 | S50: 0
A51: 2011 - Jan | B51: 12 | C51: 300 | D51: 3.252475333 | E51: 0.6204281815 | F51: 11.07845567 | G51: 23.22459768 | H51: 1.858982387 | I51: 1.93538314 | J51: 12.14553359 | K51: 3.475716417 | L51: 10.7197464 | M51: 266.010651 | Q51: 106.1532353 | S51: 0
A52: 2012 - Jan | B52: 13 | C52: 300 | D52: 3.409290821 | E52: 0.6597700298 | F52: 12.33771213 | G52: 25.84603854 | H52: 1.947328908 | I52: 1.988156811 | J52: 12.69436277 | K52: 3.79693311 | L52: 11.41002004 | M52: 266.187693 | Q52: 102.0656383 | S52: 0
A53: 2013 - Jan | B53: 14 | C53: 300 | D53: 3.57993902 | E53: 0.6997423141 | F53: 13.68264287 | G53: 28.64450053 | H53: 2.044069629 | I53: 2.046035752 | J53: 13.24518513 | K53: 4.133588134 | L53: 12.1153518 | M53: 266.3979395 | Q53: 98.29466036 | S53: 0
A54: 2014 - Jan | B54: 15 | C54: 300 | D54: 3.762239609 | E54: 0.7403031595 | F54: 15.11563609 | G54: 31.6249626 | H54: 2.147874454 | I54: 2.10833084 | J54: 13.79799297 | K54: 4.485831695 | L54: 12.83524876 | M54: 266.6401113 | Q54: 94.80204549 | S54: 0
A55: 2015 - Jan | B55: 16 | C55: 300 | D55: 3.94589871 | E55: 0.7731207763 | F55: 16.62623555 | G55: 34.76555966 | H55: 2.254340884 | I55: 2.172847479 | J55: 14.34823065 | K55: 4.850738192 | L55: 13.45136555 | M55: 266.909203 | Q55: 90.856373 | S55: 0
A56: 2016 - Jan | B56: 17 | C56: 300 | D56: 4.107325667 | E56: 0.789892105 | F56: 18.17913709 | G56: 37.99256714 | H56: 2.350978406 | I56: 2.234856891 | J56: 14.88395234 | K56: 5.219725655 | L56: 13.75350567 | M56: 267.1829618 | Q56: 85.42218136 | S56: 0
A57: 2017 - Jan | B57: 18 | C57: 300 | D57: 4.247574195 | E57: 0.8029585423 | F57: 19.76822723 | G57: 41.2933965 | H57: 2.435197856 | I57: 2.294077583 | J57: 15.40490904 | K57: 5.591513953 | L57: 14.00406276 | M57: 267.4335514 | Q57: 80.38607222 | S57: 0
A58: 2018 - Jan | B58: 19 | C58: 300 | D58: 4.368084035 | E58: 0.8136240827 | F58: 21.38820626 | G58: 44.65717845 | H58: 2.507777245 | I58: 2.350377813 | J58: 15.91116023 | K58: 5.965060247 | L58: 14.21086739 | M58: 267.6657724 | Q58: 75.74169646 | S58: 0
A59: 2019 - Jan | B59: 20 | C59: 300 | D59: 4.470516041 | E59: 0.8223429932 | F59: 23.0345136 | G59: 48.07459881 | H59: 2.569648043 | I59: 2.40372994 | J59: 16.40297809 | K59: 6.339522475 | L59: 14.380779 | M59: 267.8779267 | Q59: 71.47133082 | S59: 0
A60: 2020 - Jan | B60: 21 | C60: 300 | D60: 4.556625976 | E60: 0.8294297266 | F60: 24.70324491 | G60: 51.53771875 | H60: 2.621816146 | I60: 2.454177083 | J60: 16.88077617 | K60: 6.71422605 | L60: 14.51970343 | M60: 268.0631913 | Q60: 67.55109754 | S60: 0
A61: 2021 - Jan | B61: 22 | C61: 300 | D61: 4.628168058 | E61: 0.8351593726 | F61: 26.39106036 | G61: 55.03977834 | H61: 2.665298555 | I61: 2.501808106 | J61: 17.34505448 | K61: 7.088632686 | L61: 14.63262417 | M61: 268.2220836 | Q61: 63.95405979 | S61: 0
A62: 2022 - Jan | B62: 23 | C62: 300 | D62: 4.686831906 | E62: 0.8397607144 | F62: 28.09510515 | G62: 58.57502675 | H62: 2.701083583 | I62: 2.546740293 | J62: 17.79636177 | K62: 7.462315168 | L62: 14.72373168 | M62: 268.3559429 | Q62: 60.65272854 | S62: 0
A63: 2023 - Jan | B63: 24 | C63: 300 | D63: 4.734202763 | E63: 0.8434228091 | F63: 29.81293885 | G63: 62.1385721 | H63: 2.730104538 | I63: 2.589107171 | J63: 18.23526891 | K63: 7.834936488 | L63: 14.79653606 | M63: 268.4666126 | Q63: 57.6204082 | S63: 0
A64: 2024 - Jan | B64: 25 | C64: 300 | D64: 4.771739114 | E64: 0.84630175 | F64: 31.54247409 | G64: 65.72625136 | H64: 2.753224332 | I64: 2.629050054 | J64: 18.66235074 | K64: 8.206232758 | L64: 14.8539727 | M64: 268.5562015 | Q64: 54.83194604 | S64: 0
A65: 2025 - Jan | B65: 26 | C65: 300 | D65: 4.800762789 | E65: 0.8485265389 | F65: 33.28192383 | G65: 69.33451911 | H65: 2.771228013 | I65: 2.666712273 | J65: 19.0781738 | K65: 8.575999315 | L65: 14.89849619 | M65: 268.6269118 | Q65: 52.26409832 | S65: 0
A66: 2026 - Jan | B66: 27 | C66: 300 | D66: 4.822457697 | E66: 0.850204005 | F66: 35.02975657 | G66: 72.96035308 | H66: 2.784820837 | I66: 2.702235299 | J66: 19.48328827 | K66: 8.944079455 | L66: 14.93216086 | M66: 268.6809209 | Q66: 49.89565764 | S66: 0
A67: 2027 - Jan | B67: 28 | C67: 300 | D67: 4.837874246 | E67: 0.8514228537 | F67: 36.78465834 | G67: 76.60117436 | H67: 2.794630056 | I67: 2.735756227 | J67: 19.87822306 | K67: 9.310355311 | L67: 14.95668869 | M67: 268.7203044 | Q67: 47.70743707 | S67: 0
A68: 2028 - Jan | B68: 29 | C68: 300 | D68: 4.847937267 | E68: 0.8522569642 | F68: 38.54550057 | G68: 80.25478008 | H68: 2.801209024 | I68: 2.76740621 | J68: 20.26348287 | K68: 9.674740463 | L68: 14.97352573 | M68: 268.7469905 | Q68: 45.68217291 | S68: 0
A69: 2029 - Jan | B69: 30 | C69: 300 | D69: 4.853455892 | E69: 0.8527680619 | F69: 40.31131286 | G69: 83.91928664 | H69: 2.805042662 | I69: 2.797309555 | J69: 20.63954682 | K69: 10.03717395 | L69: 14.98388875 | M69: 268.7627353 | Q69: 43.80438558 | S69: 0
A70: 2030 - Jan | B70: 31 | C70: 300 | D70: 4.855134298 | E70: 0.853007877 | F70: 42.08126004 | G70: 87.5930819 | H70: 2.806553568 | I70: 2.825583287 | J70: 21.00686799 | K70: 10.39761539 | L70: 14.98880361 | M70: 268.7691146 | Q70: 42.06022313 | S70: 0
A71: 2031 - Jan | B71: 32 | C71: 300 | D71: 4.853582576 | E71: 0.8530198907 | F71: 43.85462267 | G71: 91.27478472 | H71: 2.806108303 | I71: 2.852337023 | J71: 21.36587373 | K71: 10.75604105 | L71: 14.98913681 | M71: 268.7675255 | Q71: 40.43730202 | S71: 0
A72: 2032 - Jan | B72: 33 | C72: 300 | D72: 4.849327269 | E72: 0.8528407483 | F72: 45.63078043 | G72: 94.96321078 | H72: 2.804023547 | I72: 2.877673054 | J72: 21.7169663 | K72: 11.11244056 | L72: 14.98562149 | M72: 268.7591946 | Q72: 38.92455377 | S72: 0
A73: 2033 - Jan | B73: 34 | C73: 300 | D73: 4.842821276 | E73: 0.8525014072 | F73: 47.40919815 | G73: 98.65734357 | H73: 2.800571929 | I73: 2.901686576 | J73: 22.0605239 | K73: 11.46681432 | L73: 14.97887885 | M73: 268.7451895 | Q73: 37.51208184 | S73: 0
A74: 2034 - Jan | B74: 35 | C74: 300 | D74: 4.834452968 | E74: 0.8520280727 | F74: 49.18941375 | G74: 102.3563098 | H74: 2.795987419 | I74: 2.924465995 | J74: 22.3969018 | K74: 11.81917132 | L74: 14.96943584 | M74: 268.7264334 | Q74: 36.1910309 | S74: 0
A75: 2035 - Jan | B75: 36 | C75: 300 | D75: 4.824554465 | E75: 0.8514429652 | F75: 50.97102799 | G75: 106.0593586 | H75: 2.790470244 | I75: 2.946093295 | J75: 22.72643356 | K75: 12.16952735 | L75: 14.95773985 | M75: 268.7037193 | Q75: 34.95346903 | S75: 0
A76: 2036 - Jan | B76: 37 | C76: 300 | D76: 4.813409031 | E76: 0.8507649502 | F76: 52.75369579 | G76: 109.7658434 | H76: 2.784191296 | I76: 2.966644416 | J76: 23.04943228 | K76: 12.51790357 | L76: 14.944171 | M76: 268.6777245 | Q76: 33.79228251 | S76: 0
A77: 2037 - Jan | B77: 38 | C77: 300 | D77: 4.80125766 | E77: 0.8500100602 | F77: 54.5371186 | G77: 113.4752069 | H77: 2.77729606 | I77: 2.986189657 | J77: 23.36619187 | K77: 12.86432529 | L77: 14.92905228 | M77: 268.6490242 | Q77: 32.70108248 | S77: 0
A78: 2038 - Jan | B78: 39 | C78: 300 | D78: 4.788304858 | E78: 0.849191928 | F78: 56.32103806 | G78: 117.1869683 | H78: 2.769908078 | I78: 3.004794058 | J78: 23.67698827 | K78: 13.20882098 | L78: 14.91265817 | M78: 268.6181047 | Q78: 31.67412247 | S78: 0
A79: 2039 - Jan | B79: 40 | C79: 300 | D79: 4.774723726 | E79: 0.8483221478 | F79: 58.10523037 | G79: 120.9007115 | H79: 2.76213199 | I79: 3.022517786 | J79: 23.9820806 | K79: 13.55142147 | L79: 14.8952218 | M79: 268.5853745 | Q79: 30.70622569 | S79: 0
A80: 2040 - Jan | B80: 41 | C80: 300 | D80: 4.760660378 | E80: 0.8474105784 | F80: 59.88950159 | G80: 124.6160762 | H80: 2.754056187 | I80: 3.039416492 | J80: 24.28171231 | K80: 13.8921593 | L80: 14.87694107 | M80: 268.5511752 | Q80: 29.79272105 | S80: 0
A81: 2041 - Jan | B81: 42 | C81: 300 | D81: 4.746237788 | E81: 0.846465598 | F81: 61.67368344 | G81: 128.3327495 | H81: 2.745755119 | I81: 3.055541655 | J81: 24.5761122 | K81: 14.23106815 | L81: 14.85798378 | M81: 268.5157902 | Q81: 28.92938688 | S81: 0
A82: 2042 - Jan | B82: 43 | C82: 300 | D82: 4.731559115 | E82: 0.8454943196 | F82: 63.4576298 | G82: 132.0504589 | H82: 2.737291297 | I82: 3.070940906 | J82: 24.86549545 | K82: 14.5681824 | L82: 14.83849196 | M82: 268.4794535 | Q82: 28.11240145 | S82: 0
A83: 2043 - Jan | B83: 44 | C83: 300 | D83: 4.716710579 | E83: 0.8445027732 | F83: 65.24121364 | G83: 135.7689662 | H83: 2.728717015 | I83: 3.085658323 | J83: 25.15006451 | K83: 14.90353675 | L83: 14.81858561 | M83: 268.4423564 | Q83: 27.33829946 | S83: 0
A84: 2044 - Jan | B84: 45 | C84: 300 | D84: 4.701763934 | E84: 0.8434960611 | F84: 67.02432432 | G84: 139.4880623 | H84: 2.720075846 | I84: 3.099734718 | J84: 25.43001001 | K84: 15.23716598 | L84: 14.79836586 | M84: 268.4046537 | Q84: 26.60393369 | S84: 0
A85: 2045 - Jan | B85: 46 | C85: 300 | D85: 4.686778603 | E85: 0.8424784897 | F85: 68.80686533 | G85: 143.2075629 | H85: 2.711403923 | I85: 3.113207889 | J85: 25.70551152 | K85: 15.56910463 | L85: 14.77791765 | M85: 268.3664694 | Q85: 25.90644124 | S85: 0
A86: 2046 - Jan | B86: 47 | C86: 300 | D86: 4.671803502 | E86: 0.8414536823 | F86: 70.58875229 | G86: 146.9273046 | H86: 2.702731037 | I86: 3.126112864 | J86: 25.97673836 | K86: 15.89938685 | L86: 14.75731205 | M86: 268.3279012 | Q86: 25.24321376 | S86: 0
A87: 2047 - Jan | B87: 48 | C87: 300 | D87: 4.656878615 | E87: 0.8404246757 | F87: 72.36991122 | G87: 150.6471416 | H87: 2.694081587 | I87: 3.138482116 | J87: 26.24385023 | K87: 16.22804627 | L87: 14.73660821 | M87: 268.2890243 | Q87: 24.61187111 | S87: 0
A88: 2048 - Jan | B88: 49 | C88: 300 | D88: 4.642036335 | E88: 0.8393940027 | F88: 74.15027703 | G88: 154.3669428 | H88: 2.685475387 | I88: 3.150345771 | J88: 26.50699791 | K88: 16.55511583 | L88: 14.71585511 | M88: 268.249895 | Q88: 24.01023811 | S88: 0
A89: 2049 - Jan | B89: 50 | C89: 300 | D89: 4.627302617 | E89: 0.8383637634 | F89: 75.92979224 | G89: 158.0865895 | H89: 2.676928363 | I89: 3.16173179 | J89: 26.76632383 | K89: 16.88062771 | L89: 14.69509294 | M89: 268.2105538 | Q89: 23.43632393 | S89: 0
A90: 2050 - Jan | B90: 51 | C90: 300 | D90: 4.612697961 | E90: 0.8373356857 | F90: 77.70840584 | G90: 161.8059734 | H90: 2.668453145 | I90: 3.172666144 | J90: 27.02196264 | K90: 17.20461325 | L90: 14.67435438 | M90: 268.1710274 | Q90: 22.88830381 | S90: 0
A91: 2051 - Jan | B91: 52 | C91: 300 | D91: 4.598238259 | E91: 0.836311178 | F91: 79.48607232 | G91: 165.5249943 | H91: 2.660059573 | I91: 3.183172968 | J91: 27.27404172 | K91: 17.52710293 | L91: 14.65366569 | M91: 268.1313315 | Q91: 22.36450278 | S91: 0
A92: 2052 - Jan | B92: 53 | C92: 300 | D92: 4.583935504 | E92: 0.8352913747 | F92: 81.26275083 | G92: 169.2435594 | H92: 2.651755133 | I92: 3.193274706 | J92: 27.52268165 | K92: 17.84812627 | L92: 14.6330476 | M92: 268.0914722 | Q92: 21.86338127 | S92: 0
A93: 2053 - Jan | B93: 54 | C93: 300 | D93: 4.569798413 | E93: 0.8342771741 | F93: 83.03840439 | G93: 172.9615811 | H93: 2.643545324 | I93: 3.202992242 | J93: 27.76799668 | K93: 18.16771187 | L93: 14.61251611 | M93: 268.0514474 | Q93: 21.38352219 | S93: 0
A94: 2054 - Jan | B94: 55 | C94: 300 | D94: 4.555832946 | E94: 0.833269273 | F94: 84.81299931 | G94: 176.6789764 | H94: 2.635433979 | I94: 3.212345025 | J94: 28.01009507 | K94: 18.48588734 | L94: 14.5920832 | M94: 268.0112487 | Q94: 20.92361946 | S94: 0
A95: 2055 - Jan | B95: 56 | C95: 300 | D95: 4.54204275 | E95: 0.8322681948 | F95: 86.5865046 | G95: 180.3956658 | H95: 2.627423526 | I95: 3.221351175 | J95: 28.24907956 | K95: 18.80267934 | L95: 14.57175735 | M95: 267.9708619 | Q95: 20.48246772 | S95: 0
A96: 2056 - Jan | B96: 57 | C96: 300 | D96: 4.528429541 | E96: 0.8312743148 | F96: 88.35889146 | G96: 184.1115725 | H96: 2.619515224 | I96: 3.230027588 | J96: 28.48504765 | K96: 19.11811355 | L96: 14.55154413 | M96: 267.9302686 | Q96: 20.05895316 | S96: 0
A97: 2057 - Jan | B97: 58 | C97: 300 | D97: 4.514993426 | E97: 0.8302878814 | F97: 90.13013292 | G97: 187.8266216 | H97: 2.611709356 | I97: 3.238390028 | J97: 28.71809197 | K97: 19.4322147 | L97: 14.53144657 | M97: 267.8894464 | Q97: 19.6520453 | S97: 0
A98: 2058 - Jan | B98: 59 | C98: 300 | D98: 4.50173318 | E98: 0.8293090347 | F98: 91.90020339 | G98: 191.5407396 | H98: 2.60400539 | I98: 3.246453213 | J98: 28.94830054 | K98: 19.74500654 | L98: 14.51146555 | M98: 267.8483698 | Q98: 19.26078953 | S98: 0
A99: 2059 - Jan | B99: 60 | C99: 300 | D99: 4.488646473 | E99: 0.8283378225 | F99: 93.66907842 | G99: 195.2538536 | H99: 2.596402129 | I99: 3.254230894 | J99: 29.17575711 | K99: 20.0565119 | L99: 14.49160014 | M99: 267.8070111 | Q99: 18.88430053 | S99: 0
A100: 2060 - Jan | B100: 61 | C100: 300 | D100: 4.475730077 | E100: 0.8273742139 | F100: 95.43673435 | G100: 198.9658914 | H100: 2.588897822 | I100: 3.261735924 | J100: 29.40054134 | K100: 20.3667527 | L100: 14.47184785 | M100: 267.7653402 | Q100: 18.52175625 | S100: 0
A101: 2061 - Jan | B101: 62 | C101: 300 | D101: 4.462980023 | E101: 0.8264181111 | F101: 97.20314811 | G101: 202.6767805 | H101: 2.581490269 | I101: 3.268980331 | J101: 29.62272912 | K101: 20.67574992 | L101: 14.45220489 | M101: 267.7233259 | Q101: 18.17239251 | S101: 0
A102: 2062 - Jan | B102: 63 | C102: 300 | D102: 4.450391753 | E102: 0.8254693597 | F102: 98.96829699 | G102: 206.3864483 | H102: 2.574176907 | I102: 3.27597537 | J102: 29.84239275 | K102: 20.98352369 | L102: 14.43266636 | M102: 267.6809356 | Q102: 17.83549818 | S102: 0
A103: 2063 - Jan | B103: 64 | C103: 300 | D103: 4.437960232 | E103: 0.8245277573 | F103: 100.7321585 | G103: 210.0948216 | H103: 2.566954883 | I103: 3.282731587 | J103: 30.05960116 | K103: 21.29009326 | L103: 14.41322642 | M103: 267.6381357 | Q103: 17.51041073 | S103: 0
A104: 2064 - Jan | B104: 65 | C104: 300 | D104: 4.425680053 | E104: 0.8235930613 | F104: 102.49471 | G104: 213.8018262 | H104: 2.559821111 | I104: 3.289258865 | J104: 30.2744201 | K104: 21.59547705 | L104: 14.39387847 | M104: 267.5948921 | Q104: 17.19651225 | S104: 0
A105: 2065 - Jan | B105: 66 | C105: 300 | D105: 4.413545521 | E105: 0.8226649948 | F105: 104.255929 | G105: 217.507387 | H105: 2.552772329 | I105: 3.29556647 | J105: 30.48691233 | K105: 21.89969265 | L105: 14.37461523 | M105: 267.5511704 | Q105: 16.89322588 | S105: 0
A106: 2066 - Jan | B106: 67 | C106: 300 | D106: 4.401550411 | E106: 0.8217456917 | F106: 106.0157917 | G106: 221.2114264 | H106: 2.545804847 | I106: 3.301663081 | J106: 30.6971377 | K106: 22.20275675 | L106: 14.35542588 | M106: 267.5076395 | Q106: =1000*(F106-F105)/F106 -> 16.60000604 | S106: =100*(C105-C106)/C105 -> 0
A107: 2067 - Jan | B107: 68 | C107: 300 | D107: 4.38968795 | E107: 0.8208382496 | F107: 107.7742734 | G107: 224.9138632 | H107: 2.538914607 | I107: 3.307556811 | J107: 30.90515329 | K107: 22.50468509 | L107: 14.33629762 | M107: 267.4652123 | Q107: 16.31633958 | S107: 0
A108: 2068 - Jan | B108: 69 | C108: 300 | D108: 4.377952093 | E108: 0.8199366403 | F108: 109.53135 | G108: 228.6146179 | H108: 2.532098374 | I108: 3.313255332 | J108: 31.11101381 | K108: 22.80549291 | L108: 14.31722808 | M108: 267.4221607 | Q108: 16.04176901 | S108: 0
A109: 2069 - Jan | B109: 70 | C109: 300 | D109: 4.366336713 | E109: 0.8190401166 | F109: 111.2869972 | G109: 232.3136098 | H109: 2.525352607 | I109: 3.318765855 | J109: 31.31477162 | K109: 23.10519475 | L109: 14.29820849 | M109: 267.3784505 | Q109: 15.77585194 | S109: 0
A110: 2070 - Jan | B110: 71 | C110: 300 | D110: 4.35483564 | E110: 0.8181482803 | F110: 113.04119 | G110: 236.0107566 | H110: 2.518673733 | I110: 3.324095163 | J110: 31.5164768 | K110: 23.40380444 | L110: 14.27922985 | M110: 267.3340471 | Q110: 15.51817329 | S110: 0
A111: 2071 - Jan | B111: 72 | C111: 300 | D111: 4.343442687 | E111: 0.8172607457 | F111: 114.7939027 | G111: 239.705974 | H111: 2.512058165 | I111: 3.32924964 | J111: 31.71617732 | K111: 23.70133511 | L111: 14.26028293 | M111: 267.2889166 | Q111: 15.26834328 | S111: 0
A112: 2072 - Jan | B112: 73 | C112: 300 | D112: 4.332151679 | E112: 0.8163771183 | F112: 116.545109 | G112: 243.3991766 | H112: 2.505502322 | I112: 3.334235296 | J112: 31.91391911 | K112: 23.99779925 | L112: 14.24135834 | M112: 267.2430248 | Q112: 15.02599557 | S112: 0
A113: 2073 - Jan | B113: 74 | C113: 300 | D113: 4.320956468 | E113: 0.8154969954 | F113: 118.2947817 | G113: 247.0902768 | H113: 2.499002635 | I113: 3.339057795 | J113: 32.10974618 | K113: 24.29320871 | L113: 14.22244657 | M113: 267.1963381 | Q113: 14.79078555 | S113: 0
A114: 2074 - Jan | B114: 75 | C114: 300 | D114: 4.309850957 | E114: 0.8146199669 | F114: 120.042893 | G114: 250.7791855 | H114: 2.49255556 | I114: 3.343722473 | J114: 32.30370071 | K114: 24.58757468 | L114: 14.203538 | M114: 267.1488233 | Q114: 14.56238875 | S114: 0
A115: 2075 - Jan | B115: 76 | C115: 300 | D115: 4.298829105 | E115: 0.8137456173 | F115: 121.789414 | G115: 254.4658117 | H115: 2.486157585 | I115: 3.348234364 | J115: 32.49582317 | K115: 24.88090779 | L115: 14.18462296 | M115: 267.1004475 | Q115: 14.34049946 | S115: 0
A116: 2076 - Jan | B116: 77 | C116: 300 | D116: 4.287884943 | E116: 0.8128735262 | F116: 123.5343151 | G116: 258.1500625 | H116: 2.47980524 | I116: 3.352598215 | J116: 32.68615237 | K116: 25.17321806 | L116: 14.16569173 | M116: 267.0511783 | Q116: 14.12482936 | S116: 0
A117: 2077 - Jan | B117: 78 | C117: 300 | D117: 4.27701258 | E117: 0.8120032693 | F117: 125.2775658 | G117: 261.8318435 | H117: 2.473495096 | I117: 3.356818506 | J117: 32.87472555 | K117: 25.46451494 | L117: 14.14673455 | M117: 267.0009839 | Q117: 13.91510636 | S117: 0
A118: 2078 - Jan | B118: 79 | C118: 300 | D118: 4.26620621 | E118: 0.8111344195 | F118: 127.0191345 | G118: 265.5110581 | H118: 2.467223776 | I118: 3.360899469 | J118: 33.06157849 | K118: 25.75480733 | L118: 14.12774167 | M118: 266.9498329 | Q118: 13.71107347 | S118: 0
A119: 2079 - Jan | B119: 80 | C119: 300 | D119: 4.255460115 | E119: 0.8102665468 | F119: 128.7589887 | G119: 269.1876079 | H119: 2.460987949 | I119: 3.364845099 | J119: 33.24674551 | K119: 26.0441036 | L119: 14.10870332 | M119: 266.8976947 | Q119: 13.51248777 | S119: 0
A120: 2080 - Jan | B120: 81 | C120: 300 | D120: 4.244768672 | E120: 0.8093992192 | F120: 130.4970951 | G120: 272.8613929 | H120: 2.454784343 | I120: 3.368659171 | J120: 33.43025961 | K120: 26.33241158 | L120: 14.08960977 | M120: 266.8445393 | Q120: 13.3191195 | S120: 0
A121: 2081 - Jan | B121: 82 | C121: 300 | D121: 4.234126351 | E121: 0.8085320032 | F121: 132.2334193 | G121: 276.5323109 | H121: 2.448609736 | I121: 3.372345255 | J121: 33.61215249 | K121: 26.61973861 | L121: 14.07045129 | M121: 266.7903373 | Q121: 13.13075115 | S121: 0
A122: 2082 - Jan | B122: 83 | C122: 300 | D122: 4.22352772 | E122: 0.8076644636 | F122: 133.9679257 | G122: 280.200258 | H122: 2.442460965 | I122: 3.375906723 | J122: 33.79245464 | K122: 26.90609153 | L122: 14.0512182 | M122: 266.7350604 | Q122: 12.9471767 | S122: 0
A123: 2083 - Jan | B123: 84 | C123: 300 | D123: 4.212967443 | E123: 0.8067961638 | F123: 135.7005779 | G123: 283.8651285 | H123: 2.436334921 | I123: 3.379346768 | J123: 33.97119535 | K123: 27.1914767 | L123: 14.03190082 | M123: 266.6786807 | Q123: 12.76820086 | S123: 0
A124: 2084 - Jan | B124: 85 | C124: 300 | D124: 4.202440281 | E124: 0.8059266663 | F124: 137.4313385 | G124: 287.5268147 | H124: 2.430228553 | I124: 3.382668408 | J124: 34.14840281 | K124: 27.47590003 | L124: 14.01248956 | M124: 266.6211713 | Q124: 12.59363839 | S124: 0
A125: 2085 - Jan | B125: 86 | C125: 300 | D125: 4.191941093 | E125: 0.8050555323 | F125: 139.1601689 | G125: 291.1852071 | H125: 2.424138864 | I125: 3.385874501 | J125: 34.32410413 | K125: 27.75936695 | L125: 13.99297483 | M125: 266.5625064 | Q125: 12.42331348 | S125: 0
A126: 2086 - Jan | B126: 87 | C126: 300 | D126: 4.181464833 | E126: 0.8041823219 | F126: 140.8870295 | G126: 294.8401944 | H126: 2.418062914 | I126: 3.388967751 | J126: 34.49832541 | K126: 28.04188248 | L126: 13.97334712 | M126: 266.5026608 | Q126: 12.25705913 | S126: 0
A127: 2087 - Jan | B127: 88 | C127: 300 | D127: 4.171006551 | E127: 0.8033065944 | F127: 142.6118798 | G127: 298.4916633 | H127: 2.411997819 | I127: 3.391950719 | J127: 34.67109174 | K127: 28.32345118 | L127: 13.95359696 | M127: 266.4416105 | Q127: 12.09471667 | S127: 0
A128: 2088 - Jan | B128: 89 | C128: 300 | D128: 4.160561389 | E128: 0.8024279075 | F128: 144.334678 | G128: 302.1394988 | H128: 2.405940749 | I128: 3.394825829 | J128: 34.84242732 | K128: 28.60407722 | L128: 13.93371494 | M128: 266.3793326 | Q128: 11.93613519 | S128: 0
A129: 2089 - Jan | B129: 90 | C129: 300 | D129: 4.150124584 | E129: 0.801545818 | F129: 146.0553815 | G129: 305.783584 | H129: 2.399888926 | I129: 3.397595378 | J129: 35.01235542 | K129: 28.88376435 | L129: 13.91369168 | M129: 266.3158053 | Q129: 11.78117112 | S129: 0
A130: 2090 - Jan | B130: 91 | C130: 300 | D130: 4.139691463 | E130: 0.8006598812 | F130: 147.7739463 | G130: 309.4238002 | H130: 2.393839629 | I130: 3.400261541 | J130: 35.18089846 | K130: 29.16251593 | L130: 13.89351789 | M130: 266.2510078 | Q130: 11.62968777 | S130: 0
A131: 2091 - Jan | B131: 92 | C131: 300 | D131: 4.129257443 | E131: 0.7997696511 | F131: 149.4903278 | G131: 313.060027 | H131: 2.387790185 | I131: 3.402826381 | J131: 35.34807804 | K131: 29.44033493 | L131: 13.87318432 | M131: 266.1849208 | Q131: 11.48155494 | S131: 0
A132: 2092 - Jan | B132: 93 | C132: 300 | D132: 4.118818029 | E132: 0.7988746799 | F132: 151.2044798 | G132: 316.6921421 | H132: 2.381737976 | I132: 3.40529185 | J132: 35.51391496 | K132: 29.71722394 | L132: 13.85268179 | M132: 266.117526 | Q132: 11.33664854 | S132: 0
A133: 2093 - Jan | B133: 94 | C133: 300 | D133: 4.108368814 | E133: 0.7979745182 | F133: 152.9163555 | G133: 320.3200212 | H133: 2.375680432 | I133: 3.4076598 | J133: 35.67842928 | K133: 29.99318521 | L133: 13.83200117 | M133: 266.0488067 | Q133: 11.19485025 | S133: 0
A134: 2094 - Jan | B134: 95 | C134: 300 | D134: 4.097905475 | E134: 0.7970687148 | F134: 154.6259068 | G134: 323.9435387 | H134: 2.369615033 | I134: 3.409931986 | J134: 35.84164032 | K134: 30.26822061 | L134: 13.8111334 | M134: 265.9787477 | Q134: 11.05604717 | S134: 0
A135: 2095 - Jan | B135: 96 | C135: 300 | D135: 4.087423776 | E135: 0.7961568163 | F135: 156.3330847 | G135: 327.5625668 | H135: 2.363539311 | I135: 3.41211007 | J135: 36.00356671 | K135: 30.54233167 | L135: 13.79006948 | M135: 265.907335 | Q135: 10.92013156 | S135: 0
A136: 2096 - Jan | B136: 97 | C136: 300 | D136: 4.076919561 | E136: 0.795238367 | F136: 158.0378389 | G136: 331.1769762 | H136: 2.357450842 | I136: 3.41419563 | J136: 36.1642264 | K136: 30.81551959 | L136: 13.76880048 | M136: 265.8345565 | Q136: 10.78700052 | S136: 0
A137: 2097 - Jan | B137: 98 | C137: 300 | D137: 4.06638876 | E137: 0.7943129091 | F137: 159.7401184 | G137: 334.7866358 | H137: 2.351347254 | I137: 3.416190161 | J137: 36.3236367 | K137: 31.08778522 | L137: 13.74731753 | M137: 265.7604016 | Q137: 10.65655572 | S137: 0
A138: 2098 - Jan | B138: 99 | C138: 300 | D138: 4.055827381 | E138: 0.793379982 | F138: 161.4398709 | G138: 338.3914128 | H138: 2.345226219 | I138: 3.418095079 | J138: 36.48181431 | K138: 31.35912911 | L138: 13.72561183 | M138: 265.6848616 | Q138: 10.52870319 | S138: 0
A139: 2099 - Jan | B139: 100 | C139: 300 | D139: 4.045231514 | E139: 0.7924391223 | F139: 163.1370431 | G139: 341.9911727 | H139: 2.339085457 | I139: 3.419911727 | J139: 36.63877533 | K139: 31.62955149 | L139: 13.70367465 | M139: 265.6079296 | Q139: 10.40335308 | S139: 0
O152: =M152/30 -> 0
O153: =M153/30 -> 0
N165: =M165/30 -> 0
P190: =M190/30 -> 0

Sheet Pemberton Metdata 1100
C2: Database format : | D2: Table format
B12: Note well: the location of the name of the met station - in the case below | L12: This is an example where many years of real climate data are given.
B13: "mean data" - is critical: It must appear above the heading of the month | L13: The column headed "year" has the year in the rows for January -
B14: column in the table of climate data. | L14: it is not needed in other rows.
B16: Pemberton 1100 | K16: Pemberton
A17: Station = | B17: Mean data | G17: Measured Av. | K17: Station = | L17: Yearly data
A18: Year | B18: Month | C18: Tmax | D18: Tmin | E18: Rain | F18: Pan evap | G18: Solar rad | H18: Rain Days | I18: Frost Days | K18: Year | L18: Month | M18: Tmax | N18: Tmin | O18: Rain | P18: Pan evap | Q18: Solar rad | R18: Rain Days | S18: Frost Days
B19: Jan | C19: 25.88 | D19: 13.24 | E19: 22.70552303 | F19: 5.993333333 | G19: 25.92 | H19: 0 | I19: 0 | K19: 2000 | L19: Jan | M19: 26.7 | N19: 14.6 | O19: 75.9 | P19: 5.993333333 | Q19: 24.7 | R19: 0 | S19: 0
B20: Feb | C20: 26.49 | D20: 13.76 | E20: 18.15135319 | F20: 4.708333333 | G20: 23.04 | H20: 0 | I20: 0 | L20: Feb | M20: 26.1 | N20: 14.2 | O20: 30 | P20: 4.708333333 | Q20: 23.1 | R20: 0 | S20: 0
B21: March | C21: 25.35 | D21: 12.76 | E21: 32.19648766 | F21: 4.65 | G21: 17.28 | H21: 0 | I21: 0 | L21: March | M21: 24.1 | N21: 12.4 | O21: 24.1 | P21: 4.65 | Q21: 19 | R21: 0 | S21: 0
B22: April | C22: 21.8 | D22: 11.23 | E22: 76.48765589 | F22: 3.7 | G22: 12.6 | H22: 0 | I22: 0 | L22: April | M22: 22 | N22: 11.4 | O22: 111.6 | P22: 3.7 | Q22: 12.8 | R22: 0 | S22: 0
B23: May | C23: 19.56 | D23: 10.05 | E23: 121.7120557 | F23: 2.79 | G23: 8.64 | H23: 0 | I23: 0 | L23: May | M23: 19 | N23: 9.1 | O23: 94.3 | P23: 2.79 | Q23: 9.5 | R23: 0 | S23: 0
B24: June | C24: 16.72 | D24: 7.96 | E24: 164.1180962 | F24: 2.4 | G24: 7.2 | H24: 0 | I24: 0 | L24: June | M24: 17 | N24: 7.3 | O24: 182.2 | P24: 2.4 | Q24: 8.2 | R24: 0 | S24: 0
B25: July | C25: 15.72 | D25: 7.24 | E25: 178.0979045 | F25: 2.48 | G25: 7.92 | H25: 0 | I25: 0 | L25: July | M25: 15.1 | N25: 7.7 | O25: 267.2 | P25: 2.48 | Q25: 7.6 | R25: 0 | S25: 0
B26: Aug | C26: 16.13 | D26: 7.44 | E26: 163.6328158 | F26: 3.306666667 | G26: 10.8 | H26: 0 | I26: 0 | L26: Aug | M26: 15.1 | N26: 6.8 | O26: 191 | P26: 3.306666667 | Q26: 11 | R26: 0 | S26: 0
B27: Sep | C27: 17 | D27: 8.14 | E27: 150.8102146 | F27: 4.3 | G27: 14.76 | H27: 0 | I27: 0 | L27: Sep | M27: 17.6 | N27: 9.1 | O27: 98.8 | P27: 4.3 | Q27: 14.7 | R27: 0 | S27: 0
B28: Oct | C28: 19.08 | D28: 9.28 | E28: 71.74683974 | F28: 5.27 | G28: 19.44 | H28: 0 | I28: 0 | L28: Oct | M28: 19.7 | N28: 8.9 | O28: 42.8 | P28: 5.27 | Q28: 20.5 | R28: 0 | S28: 0
B29: Nov | C29: 22.29 | D29: 10.93 | E29: 64.54229236 | F29: 5.6 | G29: 23.76 | H29: 0 | I29: 0 | L29: Nov | M29: 23.5 | N29: 11.5 | O29: 64.4 | P29: 5.6 | Q29: 24.9 | R29: 0 | S29: 0
B30: Dec | C30: 24.14 | D30: 11.8 | E30: 35.75209977 | F30: 6.406666667 | G30: 25.92 | H30: 0 | I30: 0 | L30: Dec | M30: 25.3 | N30: 12.5 | O30: 24.1 | P30: 6.406666667 | Q30: 28.2 | R30: 0 | S30: 0
E31: =SUM(E19:E30) -> 1099.953338 | F31: mm | K31: =K19+1 -> 2001 | L31: =L19 -> Jan | M31: 25.3 | N31: 13.8 | O31: 15 | P31: 5.993333333 | Q31: 23.4 | R31: 0 | S31: 0
L32: Feb | M32: 25.5 | N32: 13.1 | O32: 10.4 | P32: 4.708333333 | Q32: 22.3 | R32: 0 | S32: 0
L33: March | M33: 24.7 | N33: 11.9 | O33: 16.8 | P33: 4.65 | Q33: 18.8 | R33: 0 | S33: 0
L34: April | M34: 22.8 | N34: 11.4 | O34: 30.2 | P34: 3.7 | Q34: 13.5 | R34: 0 | S34: 0
L35: May | M35: 19.1 | N35: 9.9 | O35: 164.7 | P35: 2.79 | Q35: 9.3 | R35: 0 | S35: 0
L36: June | M36: 17.1 | N36: 8.7 | O36: 130.6 | P36: 2.4 | Q36: 7.5 | R36: 0 | S36: 0
L37: July | M37: 16 | N37: 6.8 | O37: 66.8 | P37: 2.48 | Q37: 8.6 | R37: 0 | S37: 0
L38: Aug | M38: 15.9 | N38: 7.7 | O38: 142.7 | P38: 3.306666667 | Q38: 10.1 | R38: 0 | S38: 0
L39: Sep | M39: 16.9 | N39: 8.7 | O39: 148.4 | P39: 4.3 | Q39: 14 | R39: 0 | S39: 0
L40: Oct | M40: 17.9 | N40: 7.9 | O40: 63 | P40: 5.27 | Q40: 20.1 | R40: 0 | S40: 0
L41: Nov | M41: 21.7 | N41: 10.8 | O41: 48.5 | P41: 5.6 | Q41: 23.1 | R41: 0 | S41: 0
L42: Dec | M42: 21.8 | N42: 10.3 | O42: 84.3 | P42: 6.406666667 | Q42: 23.2 | R42: 0 | S42: 0
K43: =K31+1 -> 2002 | L43: Jan | M43: 25.5 | N43: 12.2 | O43: 8.4 | P43: 5.993333333 | Q43: 27.4 | R43: 0 | S43: 0
L44: Feb | M44: 26.1 | N44: 13.1 | O44: 18.9 | P44: 4.708333333 | Q44: 23.2 | R44: 0 | S44: 0
L45: March | M45: 25.6 | N45: 12.3 | O45: 25.3 | P45: 4.65 | Q45: 18.4 | R45: 0 | S45: 0
L46: April | M46: 21.7 | N46: 11.4 | O46: 82.7 | P46: 3.7 | Q46: 10.9 | R46: 0 | S46: 0
L47: May | M47: 20.3 | N47: 10.1 | O47: 104.7 | P47: 2.79 | Q47: 10.2 | R47: 0 | S47: 0
L48: June | M48: 16.8 | N48: 8 | O48: 180.5 | P48: 2.4 | Q48: 7.1 | R48: 0 | S48: 0
L49: July | M49: 15.9 | N49: 7.9 | O49: 210.1 | P49: 2.48 | Q49: 8.4 | R49: 0 | S49: 0
L50: Aug | M50: 16.1 | N50: 7.2 | O50: 181.1 | P50: 3.306666667 | Q50: 11.2 | R50: 0 | S50: 0
L51: Sep | M51: 17.2 | N51: 8.6 | O51: 138.7 | P51: 4.3 | Q51: 15.9 | R51: 0 | S51: 0
L52: Oct | M52: 19.2 | N52: 10.4 | O52: 112.8 | P52: 5.27 | Q52: 17 | R52: 0 | S52: 0
L53: Nov | M53: 22 | N53: 9.9 | O53: 34.3 | P53: 5.6 | Q53: 25 | R53: 0 | S53: 0
L54: Dec | M54: 26.4 | N54: 13.1 | O54: 13.8 | P54: 6.406666667 | Q54: 26 | R54: 0 | S54: 0
K55: =K43+1 -> 2003 | L55: Jan | M55: 26.6 | N55: 12.1 | O55: 14.8 | P55: 5.993333333 | Q55: 27.9 | R55: 0 | S55: 0
L56: Feb | M56: 26.2 | N56: 14.6 | O56: 44.3 | P56: 4.708333333 | Q56: 21.7 | R56: 0 | S56: 0
L57: March | M57: 26.6 | N57: 14.4 | O57: 38.4 | P57: 4.65 | Q57: 18.1 | R57: 0 | S57: 0
L58: April | M58: 22.6 | N58: 12.2 | O58: 87.9 | P58: 3.7 | Q58: 12.4 | R58: 0 | S58: 0
L59: May | M59: 20.9 | N59: 10.9 | O59: 128.2 | P59: 2.79 | Q59: 9.6 | R59: 0 | S59: 0
L60: June | M60: 16.6 | N60: 8.2 | O60: 194.5 | P60: 2.4 | Q60: 7.9 | R60: 0 | S60: 0
L61: July | M61: 15.8 | N61: 7.8 | O61: 215.3 | P61: 2.48 | Q61: 8 | R61: 0 | S61: 0
L62: Aug | M62: 15.8 | N62: 6.8 | O62: 200.7 | P62: 3.306666667 | Q62: 10.7 | R62: 0 | S62: 0
L63: =L51 -> Sep | M63: 16.8 | N63: 7.8 | O63: 200.8 | P63: 4.3 | Q63: 13.4 | R63: 0 | S63: 0
L64: Oct | M64: 18.7 | N64: 9.1 | O64: 79.1 | P64: 5.27 | Q64: 17.6 | R64: 0 | S64: 0
L65: Nov | M65: 23.4 | N65: 11.4 | O65: 69.3 | P65: 5.6 | Q65: 24.1 | R65: 0 | S65: 0
L66: Dec | M66: 24 | N66: 12 | O66: 30.3 | P66: 6.406666667 | Q66: 26 | R66: 0 | S66: 0
K67: =K55+1 -> 2004 | L67: Jan | M67: 25.6 | N67: 13.6 | O67: 23.4 | P67: 5.993333333 | Q67: 25.7 | R67: 0 | S67: 0
L68: Feb | M68: 26.9 | N68: 13.8 | O68: 25 | P68: 4.708333333 | Q68: 22.1 | R68: 0 | S68: 0
L69: March | M69: 24.4 | N69: 11.3 | O69: 19.2 | P69: 4.65 | Q69: 18.9 | R69: 0 | S69: 0
L70: April | M70: 22.9 | N70: 11.3 | O70: 49.7 | P70: 3.7 | Q70: 12.6 | R70: 0 | S70: 0
L71: May | M71: 18.7 | N71: 9.7 | O71: 146 | P71: 2.79 | Q71: 9 | R71: 0 | S71: 0
L72: June | M72: 16.8 | N72: 8.7 | O72: 248.5 | P72: 2.4 | Q72: 6.8 | R72: 0 | S72: 0
L73: July | M73: 15.4 | N73: 6.6 | O73: 146.9 | P73: 2.48 | Q73: 7.9 | R73: 0 | S73: 0
L74: Aug | M74: 15.1 | N74: 6.9 | O74: 223.9 | P74: 3.306666667 | Q74: 10.4 | R74: 0 | S74: 0
L75: Sep | M75: 17.2 | N75: 6.8 | O75: 55.5 | P75: 4.3 | Q75: 15.4 | R75: 0 | S75: 0
L76: Oct | M76: 19.2 | N76: 9.5 | O76: 56.3 | P76: 5.27 | Q76: 19.5 | R76: 0 | S76: 0
L77: Nov | M77: 21.7 | N77: 11.1 | O77: 76.1 | P77: 5.6 | Q77: 21.4 | R77: 0 | S77: 0
L78: Dec | M78: 25.7 | N78: 12.3 | O78: 5.5 | P78: 6.406666667 | Q78: 27.8 | R78: 0 | S78: 0
K79: =K67+1 -> 2005 | L79: Jan | M79: 25.7 | N79: 12.9 | O79: 3.5 | P79: 5.993333333 | Q79: 28.9 | R79: 0 | S79: 0
L80: Feb | M80: 25.7 | N80: 13.4 | O80: 20.6 | P80: 4.708333333 | Q80: 22.5 | R80: 0 | S80: 0
L81: March | M81: 26.9 | N81: 15.2 | O81: 43.3 | P81: 4.65 | Q81: 16.4 | R81: 0 | S81: 0
L82: April | M82: 20.4 | N82: 9.9 | O82: 139.8 | P82: 3.7 | Q82: 12.3 | R82: 0 | S82: 0
L83: May | M83: 20.6 | N83: 12.2 | O83: 159.4 | P83: 2.79 | Q83: 8.2 | R83: 0 | S83: 0
L84: June | M84: 15.5 | N84: 8.3 | O84: 202.7 | P84: 2.4 | Q84: 6.9 | R84: 0 | S84: 0
L85: July | M85: 15.9 | N85: 6.8 | O85: 99.6 | P85: 2.48 | Q85: 8.9 | R85: 0 | S85: 0
L86: Aug | M86: 16.3 | N86: 7.3 | O86: 157.7 | P86: 3.306666667 | Q86: 10.4 | R86: 0 | S86: 0
L87: Sep | M87: 16.5 | N87: 7.2 | O87: 190.3 | P87: 4.3 | Q87: 13.2 | R87: 0 | S87: 0
L88: Oct | M88: 17.2 | N88: 8.7 | O88: 139.9 | P88: 5.27 | Q88: 17.7 | R88: 0 | S88: 0
L89: Nov | M89: 20.5 | N89: 9.4 | O89: 55.7 | P89: 5.6 | Q89: 25 | R89: 0 | S89: 0
L90: Dec | M90: 20.9 | N90: 10.8 | O90: 59.9 | P90: 6.406666667 | Q90: 26.7 | R90: 0 | S90: 0 | W90: note: Dec rad 2005 is average value to fill missing data
K91: =K79+1 -> 2006 | L91: Jan | M91: 24.4 | N91: 12 | O91: 36.6 | P91: 5.993333333 | Q91: 24.1 | R91: 0 | S91: 0
L92: Feb | M92: 26.9 | N92: 12.7 | O92: 5.4 | P92: 4.708333333 | Q92: 25.2 | R92: 0 | S92: 0
L93: March | M93: 26.3 | N93: 12.4 | O93: 71.6 | P93: 4.65 | Q93: 20.6 | R93: 0 | S93: 0
L94: April | M94: 19.8 | N94: 10.6 | O94: 53.4 | P94: 3.7 | Q94: 11.2 | R94: 0 | S94: 0
L95: =L83 -> May | M95: 18.9 | N95: 8.7 | O95: 88.1 | P95: 2.79 | Q95: 9.5 | R95: 0 | S95: 0
L96: June | M96: 17.3 | N96: 5.9 | O96: 81.8 | P96: 2.4 | Q96: 8.2 | R96: 0 | S96: 0
L97: July | M97: 16.2 | N97: 6.7 | O97: 174.6 | P97: 2.48 | Q97: 8 | R97: 0 | S97: 0
L98: Aug | M98: 17.9 | N98: 9 | O98: 206.3 | P98: 3.306666667 | Q98: 11.1 | R98: 0 | S98: 0
L99: Sep | M99: 18 | N99: 8.9 | O99: 161.1 | P99: 4.3 | Q99: 14.7 | R99: 0 | S99: 0 | W99: note: Sept 2006 is average for missing value
L100: Oct | M100: 20.8 | N100: 9.6 | O100: 55.3 | P100: 5.27 | Q100: 21.8 | R100: 0 | S100: 0
L101: Nov | M101: 24.1 | N101: 13.2 | O101: 56.6 | P101: 5.6 | Q101: 22.4 | R101: 0 | S101: 0
L102: Dec | M102: 26.1 | N102: 11.9 | O102: 17 | P102: 6.406666667 | Q102: 27.8 | R102: 0 | S102: 0
K103: =K91+1 -> 2007 | L103: Jan | M103: 25.4 | N103: 13.1 | O103: 50.9 | P103: 5.993333333 | Q103: 24.8 | R103: 0 | S103: 0
L104: Feb | M104: 26.7 | N104: 13.8 | O104: 12 | P104: 4.708333333 | Q104: 23.1 | R104: 0 | S104: 0
L105: March | M105: 25.9 | N105: 12.3 | O105: 55.5 | P105: 4.65 | Q105: 19.5 | R105: 0 | S105: 0
L106: April | M106: 21.2 | N106: 11.5 | O106: 91.8 | P106: 3.7 | Q106: 12.4 | R106: 0 | S106: 0
L107: May | M107: 17.8 | N107: 10.5 | O107: 110.2 | P107: 2.79 | Q107: 9 | R107: 0 | S107: 0
L108: June | M108: 17.4 | N108: 7.5 | O108: 85.8 | P108: 2.4 | Q108: 9.5 | R108: 0 | S108: 0
L109: July | M109: 16.5 | N109: 8.4 | O109: 223.5 | P109: 2.48 | Q109: 8.7 | R109: 0 | S109: 0
L110: Aug | M110: 16.4 | N110: 8.9 | O110: 223.5 | P110: 3.306666667 | Q110: 11.2 | R110: 0 | S110: 0
L111: Sep | M111: 17.2 | N111: 8.9 | O111: 204.3 | P111: 4.3 | Q111: 16.2 | R111: 0 | S111: 0
L112: Oct | M112: 18.9 | N112: 8.8 | O112: 85.1 | P112: 5.27 | Q112: 21.7 | R112: 0 | S112: 0
L113: Nov | M113: 23.8 | N113: 10.9 | O113: 12.7 | P113: 5.6 | Q113: 28.4 | R113: 0 | S113: 0
L114: Dec | M114: 23 | N114: 11.9 | O114: 66.1 | P114: 6.406666667 | Q114: 23.6 | R114: 0 | S114: 0
K115: =K103+1 -> 2008 | L115: Jan | M115: 26.8 | N115: 13.8 | O115: 8.7 | P115: 5.993333333 | Q115: 26.7 | R115: 0 | S115: 0
L116: Feb | M116: 28.4 | N116: 15.3 | O116: 13.1 | P116: 4.708333333 | Q116: 23.2 | R116: 0 | S116: 0
L117: March | M117: 25.2 | N117: 13 | O117: 14.1 | P117: 4.65 | Q117: 19.9 | R117: 0 | S117: 0
L118: April | M118: 21.6 | N118: 11.3 | O118: 155.1 | P118: 3.7 | Q118: 14.1 | R118: 0 | S118: 0
L119: May | M119: 19.5 | N119: 11.2 | O119: 185.6 | P119: 2.79 | Q119: 10.4 | R119: 0 | S119: 0
L120: June | M120: 17.1 | N120: 8.6 | O120: 173.4 | P120: 2.4 | Q120: 10.2 | R120: 0 | S120: 0
L121: July | M121: 14.9 | N121: 6.7 | O121: 268.2 | P121: 2.48 | Q121: 9.4 | R121: 0 | S121: 0
L122: Aug | M122: 16.7 | N122: 5.6 | O122: 72 | P122: 3.306666667 | Q122: 14.3 | R122: 0 | S122: 0
L123: Sep | M123: 17.1 | N123: 7.9 | O123: 158.2 | P123: 4.3 | Q123: 16.4 | R123: 0 | S123: 0
L124: Oct | M124: 19.7 | N124: 10 | O124: 96.4 | P124: 5.27 | Q124: 20.3 | R124: 0 | S124: 0
L125: Nov | M125: 19.5 | N125: 10 | O125: 177.4 | P125: 5.6 | Q125: 22.8 | R125: 0 | S125: 0
L126: Dec | M126: 23 | N126: 11.7 | O126: 74.3 | P126: 6.406666667 | Q126: 28.6 | R126: 0 | S126: 0
K127: =K115+1 -> 2009 | L127: =L115 -> Jan | M127: 26.8 | N127: 14.3 | O127: 6.1 | P127: 5.993333333 | Q127: 28.8 | R127: 0 | S127: 0
L128: Feb | M128: 26.4 | N128: 13.6 | O128: 14.8 | P128: 4.708333333 | Q128: 24.3 | R128: 0 | S128: 0
L129: March | M129: 23.8 | N129: 12.4 | O129: 36.7 | P129: 4.65 | Q129: 20.7 | R129: 0 | S129: 0
L130: April | M130: 23 | N130: 11.3 | O130: 17.4 | P130: 3.7 | Q130: 16.8 | R130: 0 | S130: 0
L131: May | M131: 20.8 | N131: 8.2 | O131: 123 | P131: 2.79 | Q131: 13.1 | R131: 0 | S131: 0
L132: June | M132: 15.6 | N132: 8.4 | O132: 278.6 | P132: 2.4 | Q132: 9.5 | R132: 0 | S132: 0
L133: July | M133: 15.5 | N133: 7 | O133: 236.2 | P133: 2.48 | Q133: 10.8 | R133: 0 | S133: 0
L134: Aug | M134: 16 | N134: 8.2 | O134: 154.5 | P134: 3.306666667 | Q134: 13.4 | R134: 0 | S134: 0
L135: Sep | M135: 15.5 | N135: 7.5 | O135: 259.4 | P135: 4.3 | Q135: 16.9 | R135: 0 | S135: 0
L136: Oct | M136: 19.5 | N136: 9.9 | O136: 38.1 | P136: 5.27 | Q136: 20.8 | R136: 0 | S136: 0
L137: Nov | M137: 22.7 | N137: 11.1 | O137: 96.6 | P137: 5.6 | Q137: 29.1 | R137: 0 | S137: 0
L138: Dec | M138: 25.2 | N138: 11.5 | O138: 7.8 | P138: 6.406666667 | Q138: 30.3 | R138: 0 | S138: 0

Sheet 3PGpjs2.7_Parameters
B2: Standard 3PG parameters (3PGpjs vsn 2.7, 3-PG vsn 1, September 2010)
B3: Do NOT change the format of this block. You can edit values in the | W3: Published
B4: value columns, or add columns of values to the right for additional species. | W4: with B. Law
B6: Meaning/comments | C6: Name | D6: Units | E6: E. globulus | F6: E. cladocalyx | G6: E. maculata | H6: P. radiata | I6: Trial | J6: Doug fir | K6: Pinyon pine | L6: Juniper | M6: pond pine | N6: Sitka spruce | W6: Ponderosa pine
B7: Biomass partitioning and turnover | E7: (S&L 2002) | F7: (S&L 2002) | G7: (S&L 2002) | H7: (BFG)
B8: Allometric relationships & partitioning
B9: Foliage:stem partitioning ratio @ D=2 cm | C9: pFS2 | D9: - | E9: 1 | F9: 0.8 | G9: 0.8 | H9: 0.8 | I9: 1 | J9: 1.3 | K9: 0.95 | L9: 0.53 | M9: 1.328 | N9: 0.6118887012 | W9: 1.2745
B10: Foliage:stem partitioning ratio @ D=20 cm | C10: pFS20 | D10: - | E10: 0.15 | F10: 0.08 | G10: 0.15 | H10: 0.4 | I10: 0.15 | J10: 0.7 | K10: 0.375 | L10: 0.45 | M10: 0.75 | N10: 0.2223680736 | W10: 0.5132
B11: Constant in the stem mass v. diam. relationship | C11: aS | D11: - | E11: 0.095 | F11: 0.095 | G11: 0.095 | H11: 0.0243 | I11: 0.095 | J11: 0.0843 | K11: 0.0469 | L11: 0.0411 | M11: 0.0046 | N11: 0.1083173534 | W11: 0.0046
B12: Power in the stem mass v. diam. relationship | C12: nS | D12: - | E12: 2.4 | F12: 2.4 | G12: 2.4 | H12: 2.72 | I12: 2.4 | J12: 2.4359 | K12: 2.955 | L12: 2.4192 | M12: 2.97 | N12: 2.1896 | W12: 2.97
B13: Maximum fraction of NPP to roots | C13: pRx | D13: - | E13: 0.8 | F13: 0.7 | G13: 0.7 | H13: 0.6 | I13: 0.8 | J13: 0.8 | K13: 0.8 | L13: 0.8 | M13: 0.8 | N13: 0.5 | W13: 0.8
B14: Minimum fraction of NPP to roots | C14: pRn | D14: - | E14: 0.25 | F14: 0.25 | G14: 0.25 | H14: 0.25 | I14: 0.25 | J14: 0.25 | K14: 0.2 | L14: 0.2 | M14: 0.25 | N14: 0.25 | W14: 0.25
B15: Litterfall & root turnover
B16: Maximum litterfall rate | C16: gammaFx | D16: 1/month | E16: 0.027 | F16: 0.027 | G16: 0.027 | H16: 0.03 | I16: 0.03 | J16: 0.02 | K16: 0.078 | L16: 0.008 | M16: 0.021 | N16: 0.0143 | W16: 0.021
B17: Litterfall rate at t = 0 | C17: gammaF0 | D17: 1/month | E17: 0.001 | F17: 0.001 | G17: 0.001 | H17: 0.001 | I17: 0.001 | J17: 0.001 | K17: 0.001 | L17: 0.001 | M17: 0.001 | N17: 0.001 | W17: 0.001
B18: Age at which litterfall rate has median value | C18: tgammaF | D18: months | E18: 12 | F18: 12 | G18: 12 | H18: 36 | I18: 12 | J18: 36 | K18: 36 | L18: 36 | M18: 36 | N18: 24 | W18: 36
B19: Average monthly root turnover rate | C19: gammaR | D19: 1/month | E19: 0.015 | F19: 0.015 | G19: 0.015 | H19: 0.015 | I19: 0.015 | J19: 0.2 | K19: 0.2 | L19: 0.2 | M19: 0.015 | N19: 0.015 | W19: 0.04
B20: NPP & conductance modifiers
B21: Temperature modifier (fT)
B22: Minimum temperature for growth | C22: Tmin | D22: deg. C | E22: 8.5 | F22: 9 | G22: 9 | H22: 0 | I22: -999 | J22: -7 | K22: 0 | L22: 0 | M22: -7 | N22: -5 | W22: -2
B23: Optimum temperature for growth | C23: Topt | D23: deg. C | E23: 16 | F23: 25 | G23: 25 | H23: 20 | I23: 25 | J23: 18 | K23: 24 | L23: 24 | M23: 18 | N23: 15 | W23: 20
B24: Maximum temperature for growth | C24: Tmax | D24: deg. C | E24: 40 | F24: 30 | G24: 30 | H24: 32 | I24: 999 | J24: 40 | K24: 40 | L24: 40 | M24: 40 | N24: 35 | W24: 40
B25: Frost modifier (fFRost)
B26: Days production lost per frost day | C26: kF | D26: days | E26: 0 | F26: 1 | G26: 2 | H26: 1 | I26: 1 | J26: 1 | K26: 1 | L26: 1 | M26: 1 | N26: 1 | W26: 1
B27: Soil water modifier (fSW)
B28: Moisture ratio deficit for fq = 0.5 | C28: SWconst | D28: - | E28: 0.7 | F28: 0.7 | G28: 0.7 | H28: 0.7 | I28: 0.7 | J28: 0.7 | K28: 0.7 | L28: 0.7 | M28: 0.7 | N28: 0.7 | W28: 0.7
B29: Power of moisture ratio deficit | C29: SWpower | D29: - | E29: 9 | F29: 9 | G29: 9 | H29: 9 | I29: 9 | J29: 9 | K29: 9 | L29: 9 | M29: 9 | N29: 9 | W29: 9
B30: Atmospheric CO2 modifier (fCO2)
B31: Assimialtion enhancement factor at 700 ppm | C31: fCalpha700 | D31: - | E31: 1.4 | F31: 1.4 | G31: 1.4 | H31: 1.4 | I31: 1.4 | J31: 1.4 | K31: 1.4 | L31: 1.4 | M31: 1.4 | N31: 1.4 | W31: 1.4
B32: Canopy conductance enhancement factor at 700 ppm | C32: fCg700 | D32: - | E32: 0.7 | F32: 0.7 | G32: 0.7 | H32: 0.7 | I32: 0.7 | J32: 0.7 | K32: 0.7 | L32: 0.7 | M32: 0.7 | N32: 0.7 | W32: 0.7
B33: Fertitlity effects
B34: Value of 'm' when FR = 0 | C34: m0 | D34: - | E34: 0 | F34: 0 | G34: 0 | H34: 0 | I34: 0 | J34: 0 | K34: 0 | L34: 0 | M34: 0 | N34: 0 | W34: 0
B35: Value of 'fNutr' when FR = 0 | C35: fN0 | D35: - | E35: 1 | F35: 1 | G35: 1 | H35: 0.6 | I35: 1 | J35: 0.37 | K35: 1 | L35: 1 | M35: 0.3 | N35: 0.3 | W35: 1
B36: Power of (1-FR) in 'fNutr' | C36: fNn | D36: - | E36: 0 | F36: 0 | G36: 0 | H36: 1 | I36: 0 | J36: 1 | K36: 0 | L36: 0 | M36: 1 | N36: 1 | W36: 0
B37: Age modifier (fAge)
B38: Maximum stand age used in age modifier | C38: MaxAge | D38: years | E38: 50 | F38: 50 | G38: 50 | H38: 50 | I38: 50 | J38: 300 | K38: 200 | L38: 200 | M38: 300 | N38: 300 | W38: 200
B39: Power of relative age in function for fAge | C39: nAge | D39: - | E39: 4 | F39: 4 | G39: 4 | H39: 4 | I39: 4 | J39: 4 | K39: 4 | L39: 4 | M39: 4 | N39: 4 | W39: 4
B40: Relative age to give fAge = 0.5 | C40: rAge | D40: - | E40: 0.95 | F40: 0.95 | G40: 0.95 | H40: 0.5 | I40: 0.95 | J40: 0.95 | K40: 0.95 | L40: 0.95 | M40: 0.95 | N40: 0.95 | W40: 0.95
B41: Stem mortality & self-thinning
B42: Mortality rate for large t | C42: gammaNx | D42: %/year | E42: 0 | F42: 0 | G42: 0 | H42: 0 | I42: 0 | J42: 0 | K42: 0 | L42: 0 | M42: 0 | N42: 0 | W42: 0
B43: Seedling mortality rate (t = 0) | C43: gammaN0 | D43: %/year | E43: 0 | F43: 0 | G43: 0 | H43: 0 | I43: 0 | J43: 0 | K43: 0 | L43: 0 | M43: 0 | N43: 0 | W43: 0
B44: Age at which mortality rate has median value | C44: tgammaN | D44: years | E44: 0 | F44: 2 | G44: 2 | H44: 0 | I44: 0 | J44: 0 | K44: 0 | L44: 0 | M44: 0 | N44: 0 | W44: 0
B45: Shape of mortality response | C45: ngammaN | D45: - | E45: 1 | F45: 1 | G45: 1 | H45: 1 | I45: 1 | J45: 1 | K45: 1 | L45: 1 | M45: 1 | N45: 1 | W45: 1
B46: Max. stem mass per tree @ 1000 trees/hectare | C46: wSx1000 | D46: kg/tree | E46: 300 | F46: 300 | G46: 300 | H46: 160 | I46: 300 | J46: 300 | K46: 50 | L46: 50 | M46: 300 | N46: 300 | W46: 300
B47: Power in self-thinning rule | C47: thinPower | D47: - | E47: 1.5 | F47: 1.5 | G47: 1.5 | H47: 1.5 | I47: 1.5 | J47: 1.5 | K47: 1.5 | L47: 1.5 | M47: 1.5 | N47: 1.5 | W47: 1.5
B48: Fraction mean single-tree foliage biomass lost per dead tree | C48: mF | D48: - | E48: 0 | F48: 0 | G48: 0 | H48: 0 | I48: 0 | J48: 0 | K48: 0 | L48: 0 | M48: 0 | N48: 0 | W48: 0
B49: Fraction mean single-tree root biomass lost per dead tree | C49: mR | D49: - | E49: 0.2 | F49: 0.2 | G49: 0.2 | H49: 0.2 | I49: 0.2 | J49: 0.2 | K49: 0.2 | L49: 0.2 | M49: 0.2 | N49: 0.2 | W49: 0.2
B50: Fraction mean single-tree stem biomass lost per dead tree | C50: mS | D50: - | E50: 0.2 | F50: 0.2 | G50: 0.2 | H50: 0.2 | I50: 0.2 | J50: 0.2 | K50: 0.2 | L50: 0.2 | M50: 0.2 | N50: 0.2 | W50: 0.2
B51: Canopy structure and processes
B52: Specific leaf area
B53: Specific leaf area at age 0 | C53: SLA0 | D53: m2/kg | E53: 11 | H53: 5 | I53: 6 | J53: 5.5 | K53: 4 | L53: 2 | M53: 3.1 | N53: 7 | W53: 4.2
B54: Specific leaf area for mature leaves | C54: SLA1 | D54: m2/kg | E54: 4 | F54: 9 | G54: 6 | H54: 5 | I54: 6 | J54: 5.5 | K54: 3.88 | L54: 1.86 | M54: 3.1 | N54: 7 | W54: 4.2
B55: Age at which specific leaf area = (SLA0+SLA1)/2 | C55: tSLA | D55: years | E55: 2.5 | F55: 4 | G55: 4 | H55: 2 | I55: 2.5 | J55: 3 | K55: 10 | L55: 10 | M55: 2.5 | N55: 2.5 | W55: 2.5
B56: Light interception | F56: 2.5 | G56: 2.5
B57: Extinction coefficient for absorption of PAR by canopy | C57: k | D57: - | E57: 0.5 | H57: 0.5 | I57: 0.5 | J57: 0.5 | K57: 0.5 | L57: 0.5 | M57: 0.5 | N57: 0.5 | W57: 0.5
B58: Age at canopy cover | C58: fullCanAge | D58: years | E58: 3 | F58: 0.5 | G58: 0.5 | H58: 3 | I58: 0 | J58: 15 | K58: 15 | L58: 15 | M58: 15 | N58: 0.15 | W58: 15
B59: Maximum proportion of rainfall evaporated from canopy | C59: MaxIntcptn | D59: - | E59: 0.15 | F59: 0 | G59: 0 | H59: 0.15 | I59: 0.15 | J59: 0.15 | K59: 0.15 | L59: 0.15 | M59: 0.1 | N59: 0.055 | W59: 0.1
B60: LAI for maximum rainfall interception | C60: LAImaxIntcptn | D60: - | E60: 0 | F60: 0.15 | G60: 0.15 | H60: 5 | I60: 0 | J60: 5 | K60: 5 | L60: 5 | M60: 5 | N60: 5 | W60: 5
B61: Production and respiration | F61: 0 | G61: 0
B62: Canopy quantum efficiency | C62: alpha | D62: molC/molPAR | E62: 0.06 | H62: 0.05 | I62: 0.055 | J62: 0.055 | K62: 0.035 | L62: 0.03 | M62: 0.055 | N62: 0.055 | W62: 0.045
B63: Ratio NPP/GPP | C63: Y | D63: - | E63: 0.47 | F63: 0.06 | G63: 0.06 | H63: 0.47 | I63: 0.47 | J63: 0.47 | K63: 0.47 | L63: 0.47 | M63: 0.47 | N63: 0.47 | W63: 0.47
B64: Conductance | F64: 0.47 | G64: 0.47
B65: Minimum canopy conductance | C65: MinCond | D65: m/s | E65: 0 | H65: 0 | I65: 0 | J65: 0.01 | K65: 0 | L65: 0 | M65: 0 | N65: 0 | W65: 0
B66: Maximum canopy conductance | C66: MaxCond | D66: m/s | E66: 0.02 | F66: 0.02 | G66: 0.02 | H66: 0.02 | I66: 0.02 | J66: 0.012 | K66: 0.02 | L66: 0.02 | M66: 0.012 | N66: 0.02 | W66: 0.02
B67: LAI for maximum canopy conductance | C67: LAIgcx | D67: - | E67: 3.33 | F67: 3.33 | G67: 3.33 | H67: 3.33 | I67: 3.33 | J67: 5 | K67: 3.33 | L67: 3.33 | M67: 5 | N67: 0.006 | W67: 3.33
B68: Defines stomatal response to VPD | C68: CoeffCond | D68: 1/mBar | E68: 0.05 | F68: 0.05 | G68: 0.05 | H68: 0.05 | I68: 0.05 | J68: 0.05 | K68: 0.05 | L68: 0.05 | M68: 0.05 | N68: 0.05 | W68: 0.05
B69: Canopy boundary layer conductance | C69: BLcond | D69: m/s | E69: 0.2 | F69: 0.2 | G69: 0.2 | H69: 0.2 | I69: 0.2 | J69: 0.2 | K69: 0.2 | L69: 0.2 | M69: 0.14 | N69: 0.2
B70: Temperature modifier for Gc (Uddling et.al,2005,Eq 4) k2 | C70: TK2 | D70: - | E70: 1 | F70: 0.244 | G70: 0.244 | H70: 0.244 | I70: 0.244 | J70: 0.244 | K70: 0.244 | L70: 0.244 | M70: 0.244 | N70: 0.244
B71: Temperature modifier for Gc (Uddling et.al,2005,Eq 4) k3 | C71: TK3 | D71: - | E71: 0 | F71: 0.0368 | G71: 0.0368 | H71: 0.0368 | I71: 0.0368 | J71: 0.0368 | K71: 0.0368 | L71: 0.0368 | M71: 0.0368 | N71: 0.368 | W71: 0.14
B72: Wood and stand properties
B73: Branch and bark fraction (fracBB)
B74: Branch and bark fraction at age 0 | C74: fracBB0 | D74: - | E74: 0.75 | F74: 0.75 | G74: 0.75 | H74: 0.5 | I74: 0.15 | J74: 0.15 | K74: 0.15 | L74: 0.15 | M74: 0.15 | N74: 0.15 | W74: 0.15
B75: Branch and bark fraction for mature stands | C75: fracBB1 | D75: - | E75: 0.15 | F75: 0.15 | G75: 0.15 | H75: 0.1 | I75: 0.15 | J75: 0.05 | K75: 0.05 | L75: 0.05 | M75: 0.15 | N75: 0.15 | W75: 0.15
B76: Age at which fracBB = (fracBB0+fracBB1)/2 | C76: tBB | D76: years | E76: 2 | F76: 2 | G76: 2 | H76: 5 | I76: 1.5 | J76: 30 | K76: 30 | L76: 30 | M76: 1.5 | N76: 1.5 | W76: 1.5
B77: Basic Density
B78: Minimum basic density - for young trees | C78: rhoMin | D78: t/m3 | E78: 0.45 | F78: 0.6 | G78: 0.45 | H78: 0.48 | I78: 0.5 | J78: 0.4 | K78: 0.4 | L78: 0.4 | M78: 0.4 | N78: 0.4 | W78: 0.4
B79: Maximum basic density - for older trees | C79: rhoMax | D79: t/m3 | E79: 0.45 | F79: 0.6 | G79: 0.45 | H79: 0.48 | I79: 0.5 | J79: 0.45 | K79: 0.4 | L79: 0.4 | M79: 0.4 | N79: 0.4 | W79: 0.4
B80: Age at which rho = (rhoMin+rhoMax)/2 | C80: tRho | D80: years | E80: 4 | F80: 4 | G80: 4 | H80: 4 | I80: 4 | J80: 20 | K80: 50 | L80: 50 | M80: 4 | N80: 4 | W80: 4
B81: Stem height
B82: Constant in the stem height relationship | C82: aH | D82: - | E82: 0 | F82: 0 | G82: 0 | H82: 0 | I82: 0 | J82: 0 | K82: 0 | L82: 0 | M82: 0 | N82: 0 | W82: 0
B83: Power of DBH in the stem height relationship | C83: nHB | D83: - | E83: 0 | F83: 0 | G83: 0 | H83: 0 | I83: 0 | J83: 0 | K83: 0 | L83: 0 | M83: 0 | N83: 0 | W83: 0
B84: Power of stocking in the stem height relationship | C84: nHN | D84: - | E84: 0 | F84: 0 | G84: 0 | H84: 0 | I84: 0 | J84: 0 | K84: 0 | L84: 0 | M84: 0 | N84: 0 | W84: 0
B85: Stem volume
B86: Constant in the stem volume relationship | C86: aV | D86: - | E86: 0 | F86: 0 | G86: 0 | H86: 0 | I86: 0 | J86: 0 | K86: 0 | L86: 0 | M86: 0 | N86: 0 | W86: 0
B87: Power of DBH in the stem volume relationship | C87: nVB | D87: - | E87: 0 | F87: 0 | G87: 0 | H87: 0 | I87: 0 | J87: 0 | K87: 0 | L87: 0 | M87: 0 | N87: 0 | W87: 0
B88: Power of stocking in the stem volume relationship | C88: nVN | D88: - | E88: 0 | F88: 0 | G88: 0 | H88: 0 | I88: 0 | J88: 0 | K88: 0 | L88: 0 | M88: 0 | N88: 0 | W88: 0
B89: Conversion factors
B90: Intercept of net v. solar radiation relationship | C90: Qa | D90: W/m2 | E90: -90 | F90: -90 | G90: -90 | H90: -90 | I90: -90 | J90: -90 | K90: -90 | L90: -90 | M90: -90 | N90: -90 | W90: -90
B91: Slope of net v. solar radiation relationship | C91: Qb | D91: - | E91: 0.8 | F91: 0.8 | G91: 0.8 | H91: 0.8 | I91: 0.8 | J91: 0.8 | K91: 0.8 | L91: 0.8 | M91: 0.8 | N91: 0.8 | W91: 0.8
B92: Molecular weight of dry matter | C92: gDM_mol | D92: gDM/mol | E92: 24 | F92: 24 | G92: 24 | H92: 24 | I92: 24 | J92: 24 | K92: 24 | L92: 24 | M92: 24 | N92: 24 | W92: 24
B93: Conversion of solar radiation to PAR | C93: molPAR_MJ | D93: mol/MJ | E93: 2.3 | F93: 2.3 | G93: 2.3 | H93: 2.3 | I93: 2.3 | J93: 2.3 | K93: 2.3 | L93: 2.3 | M93: 2.3 | N93: 2.3 | W93: 2.3
B98: Standard 3PGpjs options
B100: Interpolate lookups? (Yes/No) | C100: no
B101: Output frequency (None, Rotation, Annual or Monthly) | C101: Annual
B102: Clear output region? (Yes/No) | C102: yes
B103: Output data (3-PG names from 3PGpjs_Outputs) | C103: stemNo, WF, WR, WS, standVol, LAI, MAI, avDBH, BasArea, GPP,Transp

Sheet 3PGpjs_Outputs
C2: Names and description of 3PGPJS output variables
C3: Description | D3: Output name | E3: 3-PG name | F3: Units
C4: Site and management attributes
C5: Name of site given on site data sheet | D5: Site name | E5: siteName
C6: Fertility rating | D6: Fert. rating | E6: FR
C7: Minimum available soil water (for supplemental irrigation) | D7: Min ASW | E7: minASW | F7: mm
C8: Applied irrigation | D8: Annual irrigation | E8: Irrig | F8: mm/ha/yr
C9: Stand attributes
C10: Current stand age | D10: Stand age | E10: StandAge | F10: years
C11: Stand stocking | D11: Stocking | E11: StemNo | F11: trees/ha
C12: Stand basal area | D12: Basal area | E12: BasArea | F12: m2/ha
C13: Stand volume, main stem excluding bark | D13: Stand volume | E13: StandVol | F13: m3/ha
C14: Stand-based mean DBH | D14: Mean DBH | E14: avDBH | F14: cm
C15: Current mean annual stem volume increment | D15: MAI | E15: MAI | F15: m3/ha/yr
C16: Peak MAI of stand to the current stand age | D16: Peak MAI | E16: MAIx | F16: m3/ha/yr
C17: Stand age at which MAI peaked | D17: Age at peak MAI | E17: ageMAIx | F17: yr
C18: Current canopy LAI (mean annual value if output is annual) | D18: LAI | E18: LAI
C19: Peak canopy LAI up to the current stand age | D19: Max LAI | E19: LAIx
C20: Stand age at which LAI peaked | D20: Age at max LAI | E20: ageLAIx | F20: yr
C21: Fraction of ground area covered by canopy | D21: Fract. canopy cover | E21: CanCover
C22: Biomass pools and canopy attributes
C23: Foliage biomass | D23: Foliage DM | E23: WF | F23: tDM/ha
C24: Root biomass | D24: Root DM | E24: WR | F24: tDM/ha
C25: Stem biomass, including branches and bark | D25: Stem DM | E25: WS | F25: tDM/ha
C26: Total biomass | D26: Total DM | E26: TotalW | F26: tDM/ha
C27: Total litter fall over run | D27: Total litter fall | E27: TotalLitter | F27: tDM/ha/yr
C28: Mean stem biomass per tree | D28: Mean stem mass | E28: AvStemMass | F28: kgDM/tree
C29: Fraction of above ground woody biomass as branch and bark | D29: Fract. as bark & branch | E29: fracBB
C30: Specific leaf area | D30: SLA | E30: SLA | F30: m/kg
C31: Annual outputs
C32: Light utilisation efficiency based on above ground biomass | D32: Above ground epsilon | E32: AbvgrndEpsilon | F32: gDM/MJ
C33: Light utilisation efficiency based on total biomass | D33: Total epsilon | E33: TotalEpsilon | F33: gDM/MJ
C34: Annual total evapoptranspiration | D34: Annual ET | E34: CumEvapTransp | F34: mm/yr
C35: Annual total transpiration | D35: Annual transp. | E35: cumTransp | F35: mm/yr
C36: Annual total supplemental irrigation | D36: Annual suppl. irrigation | E36: cumIrrig | F36: mm/yr
C37: Annual total net primary production | D37: Annual NPP | E37: cumNPP | F37: tDM/ha/yr
C38: Growth modifiers
C39: Age dependent modifier | D39: fAge | E39: fAge
C40: VPDdependent modifier | D40: fVPD | E40: fVPD
C41: Temperature dependent modifier | D41: fTemp | E41: fT
C42: Frost dependent modifier | D42: fFrost | E42: fFrost
C43: Soil water dependent modifier | D43: fSW | E43: fSW
C44: Nutrion dependent modifier | D44: fNutr | E44: fNutr
C45: Physiological modifier of canopy conductance | D45: Phys. modifier | E45: PhysMod
C46: Fertility dependent modifier of root biomass partitioning | D46: m | E46: m
C47: Biomass production and partitioning
C48: Net primary production | D48: Monthly NPP | E48: NPP | F48: tDM/ha/month
C49: Canopy quantum efficiency after application of modifiers | D49: Canopy alpha | E49: alphaC | F49: mol/mol
C50: Fraction of NPP partitioned to roots | D50: pR | E50: pR
C51: Fraction of NPP partitioned to stems | D51: pS | E51: pS
C52: Fraction of NPP partitioned to foliage | D52: pF | E52: pF
C53: Ratio of foliage to stem biomass partitioning | D53: pFS | E53: pFS
C54: Leaf litterfall rate | D54: Litter fall rate | E54: Littfall | F54: per month
C55: Litter fall in current period | D55: Litter fall | E55: delLitter | F55: tDM/ha/month
C56: Stem mortality
C57: Maximum tree stem mass at current stocking | D57: wSmax | E57: wSmax | F57: kg/tree
C58: Number of stems dying | D58: Dying stems | E58: delStemNo | F58: trees/ha
C59: Water use
C60: Available soil water | D60: ASW | E60: ASW | F60: mm
C61: Monthly supplemental irrigation (to maintain minASW) | D61: Monthly supp. irrig. | E61: monthlyIrrig | F61: mm/month
C62: Monthly evapoptranspiration rate | D62: Monthly ET | E62: EvapTransp | F62: mm/month
C63: Monthly transpiration rate | D63: Monthly transp. | E63: Transp | F63: mm/month
C64: Canopy conductance | D64: Canopy conductance | E64: CanCond
C65: Climatic factors
C66: Day length (sunrise to sunset) | D66: Daylength | E66: DayLength | F66: s/day
C67: Mean number of frost days per month | D67: Frost days | E67: FrostDays | F67: days/month
C68: Mean daily incident solar radiation | D68: Solar rad. | E68: SolarRad | F68: MJ m-/day
C69: Mean daily temperature | D69: Mean temp. | E69: Tav | F69: oC
C70: Mean daily VPD | D70: VPD | E70: VPD | F70: mBar
C71: Mean monthly rainfall | D71: Rainfall | E71: Rain | F71: mm/F31month

Sheet 3-PG function tools
B2: Selected 3-PG relationships
B4: This spreadsheet graphically displays selected 3-PG relationships. Use it for exploring
B5: how relationships change with parameter values. Edit only the parameter values. The
B6: graphs are automaticaly updated to display the relationship for the new values.
A9: Litterfall rate
A11: gammaFx = | B11: 0.027 | C11: (/month) | D11: 0.027 | E11: (/month) | F11: 0.027 | G11: (/month)
A12: gammaF0 = | B12: 0.002 | C12: (/month) | D12: 0.002 | E12: (/month) | F12: 0.002 | G12: (/month)
A13: tgammaF = | B13: 12 | C13: (month) | D13: 24 | E13: (month) | F13: 48 | G13: (month)
A15: Age (years) | B15: gamma (/year) | C15: Life time (yr) | D15: gamma (/year) | E15: Life time (yr) | F15: gamma (/year) | G15: Life time (yr)
A16: 0 | B16: =B$11*B$12/(B$12+(B$11-B$12)*EXP(-LN(B$11/B$12+1)*12*$A16/B$13)) -> 0.002 | C16: =1/B16/12 -> 41.66666667 | D16: =D$11*D$12/(D$12+(D$11-D$12)*EXP(-LN(D$11/D$12+1)*12*$A16/D$13)) -> 0.002 | E16: =1/D16/12 -> 41.66666667 | F16: =F$11*F$12/(F$12+(F$11-F$12)*EXP(-LN(F$11/F$12+1)*12*$A16/F$13)) -> 0.002 | G16: =1/F16/12 -> 41.66666667
A17: 0.2 | B17: 0.003244368442 | C17: 25.6855332 | D17: 0.002555138086 | E17: 32.6140234 | F17: 0.002262144941 | G17: 36.83819362
A18: 0.4 | B18: 0.005104870278 | C18: 16.32428031 | D18: 0.003244368442 | E18: 25.6855332 | F18: 0.002555138086 | G18: 32.6140234
A19: 0.7 | B19: 0.009237461213 | C19: 9.021237699 | D19: 0.004574213847 | E19: 18.21806678 | F19: 0.003058326771 | G19: 27.24801487
A20: 1 | B20: 0.0145 | C20: 5.747126437 | D20: 0.006304491793 | E20: 13.21808896 | F20: 0.003645830076 | G20: 22.85716328
A21: 1.5 | B21: 0.02201582789 | C21: 3.78515556 | D21: 0.01006627065 | E21: 8.278471367 | F21: 0.004833850786 | G21: 17.23953366
A22: 2 | B22: 0.02548484848 | C22: 3.269916766 | D22: 0.0145 | E22: 5.747126437 | F22: 0.006304491793 | G22: 13.21808896
A23: 2.5 | B23: 0.02658492606 | C23: 3.134608429 | D23: 0.01872693134 | E23: 4.449919306 | F23: 0.008059868789 | G23: 10.33929156
A24: 3 | B24: 0.02688974642 | C24: 3.099074719 | D24: 0.02201582789 | E24: 3.78515556 | F24: 0.01006627065 | G24: 8.278471367
A25: 3.5 | B25: 0.02697095854 | C25: 3.08974311 | D25: 0.02419321241 | E25: 3.444492278 | F25: 0.01224912046 | G25: 6.803209555
A26: 4 | B26: 0.02699236729 | C26: 3.087292509 | D26: 0.02548484848 | E26: 3.269916766 | F26: 0.0145 | G26: 5.747126437
A27: 4.5 | B27: 0.02699799513 | C27: 3.08664895 | D27: 0.0262017083 | E27: 3.180454205 | F27: 0.01669632869 | G27: 4.991117203
A28: 5 | B28: 0.02699947347 | C28: 3.086479943 | D28: 0.02658492606 | E28: 3.134608429 | F28: 0.01872693134 | G28: 4.449919306
A29: 5.5 | B29: 0.02699986172 | C29: 3.08643556 | D29: 0.02678568588 | E29: 3.11111441 | F29: 0.02051283781 | G29: 4.062496574
A30: 6 | B30: 0.02699996369 | C30: 3.086423904 | D30: 0.02688974642 | E30: 3.099074719 | F30: 0.02201582789 | G30: 3.78515556
A34: Root allocation
A36: pRx = | B36: 0.8 | C36: 0.8 | D36: 0.8
A37: pRn = | B37: 0.23 | C37: 0.23 | D37: 0.23
A38: FR = | B38: 1 | C38: 0.7 | D38: 0.4
A40: Q*/Q | B40: etaR | C40: etaR | D40: etaR
A41: 0 | B41: =B$36*B$37/(B$37+(B$36-B$37)*B$38*$A41) -> 0.8 | C41: 0.8 | D41: 0.8
A42: 0.1 | B42: 0.6411149826 | C42: 0.6817339755 | D42: 0.7278481013
A43: 0.2 | B43: 0.5348837209 | C43: 0.5939315688 | D43: 0.6676342525
A44: 0.3 | B44: 0.4588528678 | C44: 0.5261652845 | D44: 0.6166219839
A45: 0.4 | B45: 0.4017467249 | C45: 0.4722792608 | D45: 0.5728518057
A46: 0.5 | B46: 0.3572815534 | C46: 0.4284051222 | D46: 0.5348837209
A47: 0.6 | B47: 0.3216783217 | C47: 0.3919897742 | D47: 0.5016357688
A48: 0.7 | B48: 0.2925278219 | C48: 0.3612801885 | D48: 0.4722792608
A49: 0.8 | B49: 0.2682215743 | C49: 0.3350327749 | D49: 0.4461687682
A50: 0.9 | B50: 0.2476446837 | C50: 0.3123408589 | D50: 0.4227941176
A51: 1 | B51: 0.23 | C51: 0.2925278219 | D51: 0.4017467249
A56: Age dependent decline
A58: MaxAge = | B58: 50 | C58: (years)
A59: nAge = | B59: 4 | C59: (-)
A60: rAge = | B60: 0.95 | C60: (-)
A62: Age | B62: relAge | C62: fAge
A63: 0 | B63: =A63/$B$58 -> 0 | C63: =1/(1+(B63/$B$60)^$B$59) -> 1
A64: 5 | B64: 0.1 | C64: 0.9998772413
A65: 10 | B65: 0.2 | C65: 0.998039471
A66: 15 | B66: 0.3 | C66: 0.9901532477
A67: 20 | B67: 0.4 | C67: 0.9695276639
A68: 25 | B68: 0.5 | C68: 0.9287348294
A69: 30 | B69: 0.6 | C69: 0.8627273149
A70: 35 | B70: 0.7 | C70: 0.7723320908
A71: 40 | B71: 0.8 | C71: 0.6653885233
A72: 45 | B72: 0.9 | C72: 0.5538574652
A73: 50 | B73: 1 | C73: 0.4488858884
A77: Biomass partitioning
B79: aS = | C79: 0.095 | D79: nF = | E79: =C80+E81 -> 1.797940009 | F79: aS = | G79: 0.095 | H79: nF = | I79: =G80+I81 -> 1.576091259 | J79: aS = | K79: 0.095 | L79: nF = | N79: =K80+N81 -> 1.098970004
B80: nS = | C80: 2.4 | D80: aF = | E80: =E82*C79*C80/E79 -> 0.192485388 | F80: nS = | G80: 2.4 | H80: aF = | I80: =I82*G79*G80/I79 -> 0.2560794517 | J80: nS = | K80: 2.4 | L80: aF = | N80: =N82*K79*K80/N79 -> 0.5112084951
B81: etaR = | C81: 0.4 | D81: np = | E81: =LN(C83/C82)/LN(10) -> -0.6020599913 | F81: etaR = | G81: 0.4 | H81: np = | I81: =LN(G83/G82)/LN(10) -> -0.8239087409 | J81: etaR = | K81: 0.4 | L81: np = | N81: =LN(K83/K82)/LN(10) -> -1.301029996
B82: pFS2 = | C82: 1 | D82: ap = | E82: =C82/2^E81 -> 1.517882369 | F82: pFS2 = | G82: 1 | H82: ap = | I82: =G82/2^I81 -> 1.77019555 | J82: pFS2 = | K82: 1 | L82: ap = | N82: =K82/2^N81 -> 2.464047377
B83: pFS20 = | C83: 0.25 | F83: pFS20 = | G83: 0.15 | J83: pFS20 = | K83: 0.05
A85: D | B85: WS | C85: pFS | D85: etaS | E85: etaF | F85: WS | G85: pFS | H85: etaS | I85: etaF | J85: WS | K85: pFS | L85: etaS | N85: etaF
A86: 1 | B86: =$C$79*$A86^$C$80 -> 0.095 | C86: =$E$82*$A86^$E$81 -> 1.517882369 | D86: =(1-$C$81)/(1+C86) -> 0.2382954848 | E86: =C86*D86 -> 0.3617045152 | F86: =$C$79*$A86^$C$80 -> 0.095 | G86: =$I$82*$A86^$I$81 -> 1.77019555 | H86: =(1-$G$81)/(1+G86) -> 0.2165912078 | I86: =G86*H86 -> 0.3834087922 | J86: =$C$79*$A86^$C$80 -> 0.095 | K86: =$N$82*$A86^$N$81 -> 2.464047377 | L86: =(1-$K$81)/(1+K86) -> 0.1732077927 | N86: =K86*L86 -> 0.4267922073
A87: 2 | B87: 0.5014130061 | C87: 1 | D87: 0.3 | E87: 0.3 | F87: 0.5014130061 | G87: 1 | H87: 0.3 | I87: 0.3 | J87: 0.5014130061 | K87: 1 | L87: 0.3 | N87: 0.3
A88: 3 | B88: 1.326827966 | C88: 0.7833980715 | D88: 0.3364363849 | E88: 0.2635636151 | F88: 1.326827966 | G88: 0.7160063476 | H88: 0.3496490563 | I88: 0.2503509437 | J88: 1.326827966 | K88: 0.5900651834 | L88: 0.3773430211 | N88: 0.2226569789
A89: 4 | B89: 2.646473712 | C89: 0.65881258 | D89: 0.3617045152 | E89: 0.2382954848 | F89: 2.646473712 | G89: 0.56490934 | H89: 0.3834087922 | I89: 0.2165912078 | J89: 2.646473712 | K89: 0.4058363525 | L89: 0.4267922073 | N89: 0.1732077927
A90: 5 | B90: 4.521178104 | C90: 0.5759917219 | D90: 0.3807126596 | E90: 0.2192873404 | F90: 4.521178104 | G90: 0.4700388429 | H90: 0.4081524804 | I90: 0.1918475196 | J90: 4.521178104 | K90: 0.3035764739 | L90: 0.4602721912 | N90: 0.1397278088
A91: 6 | B91: 7.003039988 | C91: 0.5161125047 | D91: 0.395748995 | E91: 0.204251005 | F91: 7.003039988 | G91: 0.4044786733 | H91: 0.4272047781 | I91: 0.1727952219 | J91: 7.003039988 | K91: 0.2394699018 | L91: 0.4840779104 | N91: 0.1159220896
A92: 7 | B92: 10.13815441 | C92: 0.470368682 | D92: 0.408060922 | E92: 0.191939078 | F92: 10.13815441 | G92: 0.356235817 | H92: 0.4424009398 | I92: 0.1575990602 | J92: 10.13815441 | K92: 0.1959526561 | L92: 0.5016921004 | N92: 0.09830789961
A93: 8 | B93: 13.968172 | C93: 0.4340340156 | D93: 0.4184001171 | E93: 0.1815998829 | F93: 13.968172 | G93: 0.3191225625 | H93: 0.4548478034 | I93: 0.1451521966 | J93: 13.968172 | K93: 0.164703145 | L93: 0.5151527259 | N93: 0.08484727411
A94: 10 | B94: 23.8629211 | C94: 0.3794705924 | D94: 0.4349494678 | E94: 0.1650505322 | F94: 23.8629211 | G94: 0.2655293325 | H94: 0.4741099116 | I94: 0.1258900884 | J94: 23.8629211 | K94: 0.1232023689 | L94: 0.5341869076 | N94: 0.06581309243
A95: 15 | B95: 63.14553207 | C95: 0.2972765303 | D95: 0.4625074038 | E95: 0.1374925962 | F95: 63.14553207 | G95: 0.1901206876 | H95: 0.5041505507 | I95: 0.09584944933 | J95: 63.14553207 | K95: 0.07269742838 | L95: 0.5593375952 | N95: 0.04066240477
A96: 20 | B96: 125.9492527 | C96: 0.25 | D96: 0.48 | E96: 0.12 | F96: 125.9492527 | G96: 0.15 | H96: 0.5217391304 | I96: 0.07826086957 | J96: 125.9492527 | K96: 0.05 | L96: 0.5714285714 | N96: 0.02857142857
A97: 30 | B97: 333.2841164 | C97: 0.1958495179 | D97: 0.5017353697 | E97: 0.09826463026 | F97: 333.2841164 | G97: 0.1074009521 | H97: 0.5418091784 | I97: 0.05819082163 | J97: 333.2841164 | K97: 0.02950325917 | L97: 0.5828053429 | N97: 0.01719465708
A115: Specific leaf area
A117: SLA0 | B117: 11 | C117: 11 | D117: 11 | E117: (m2/kg)
A118: SLA1 | B118: 4 | C118: 4 | D118: 4 | E118: (m2/kg)
A119: tSLA | B119: 2 | C119: 2.5 | D119: 3 | E119: (years)
A120: n | B120: 2 | C120: 2 | D120: 2
A122: Age
A123: 0 | B123: =B$118+(B$117-B$118)*EXP(-0.69315*($A123/B$119)^B$120) -> 11 | C123: 11 | D123: 11
A124: 0.25 | B124: 10.92459579 | C124: 10.95164727 | D124: 10.96638617
A125: 0.5 | B125: 10.70322178 | C125: 10.80858386 | D125: 10.86651008
A126: 1 | B126: 9.886270758 | C126: 10.26517267 | D126: 10.48112096
A127: 1.5 | B127: 8.739886897 | C127: 9.454146522 | D127: 9.886270758
A128: 2 | B128: 7.499990132 | C128: 8.491982536 | D128: 9.144064277
A129: 2.5 | B129: 6.369936767 | C129: 7.499990132 | D129: 8.325622161
A130: 3 | B130: 5.471559391 | C130: 6.579960656 | D130: 7.499990132
A131: 4 | B131: 4.437495066 | C131: 5.187020219 | D131: 6.041415587
A132: 5 | B132: 4.091971425 | C132: 4.437495066 | D132: 5.020704916
A133: 6 | B133: 4.013671528 | C133: 4.129168975 | D133: 4.437495066
A134: 7 | B134: 4.001437029 | C134: 4.030550145 | D134: 4.160749743
A135: 8 | B135: 4.000106807 | C135: 4.005788131 | D135: 4.050632758
A139: Branch+bark fraction
A141: fracBB0 | B141: 0.75 | C141: 0.75 | D141: 0.75 | E141: (-)
A142: fracBB1 | B142: 0.15 | C142: 0.15 | D142: 0.15 | E142: (-)
A143: tBB | B143: 3 | C143: 2 | D143: 1 | E143: (years)
A144: n | B144: 1 | C144: 1 | D144: 1 | E144: (-)
A146: Age
A147: 0 | B147: =B$142+(B$141-B$142)*EXP(-0.69315*($A147/B$143)^B$144) -> 0.75 | C147: 0.75 | D147: 0.75
A148: 0.25 | B148: 0.7163244545 | C148: 0.700202232 | D148: 0.6545374935
A149: 0.5 | B149: 0.6845389797 | C149: 0.6545374935 | D149: 0.5742634706
A150: 1 | B150: 0.626219868 | C150: 0.5742634706 | D150: 0.4499991542
A151: 1.5 | B151: 0.5742634706 | C151: 0.5067613801 | D151: 0.3621311372
A152: 2 | B152: 0.5279756045 | C152: 0.4499991542 | D152: 0.2999991542
A153: 2.5 | B153: 0.4867378233 | C153: 0.4022680355 | D153: 0.2560652696
A154: 3 | B154: 0.4499991542 | C154: 0.3621311372 | D154: 0.2249993656
A155: 4 | B155: 0.3881092627 | C155: 0.2999991542 | D155: 0.1874995771
A156: 5 | B156: 0.3389872694 | C156: 0.2560652696 | D156: 0.1687497357
A157: 6 | B157: 0.2999991542 | C157: 0.2249993656 | D157: 0.1593748414
A158: 7 | B158: 0.2690542957 | C158: 0.2030324853 | D158: 0.1546874075
A159: 8 | B159: 0.2444933683 | C159: 0.1874995771 | D159: 0.1523436971
A163: Determination of temperature modifier fT(Tav)
B166: alpha0 = | C166: 0.06 | D166: 0.06 | E166: 0.06 | F166: (mol/mol)
B167: Tmin = | C167: 7.5 | D167: 7.5 | E167: 7.5 | F167: (deg C)
B168: Topt = | C168: 14 | D168: 15 | E168: 16 | F168: (deg C)
B169: Tmax = | C169: 35 | D169: 35 | E169: 35 | F169: (deg C)
B171: T | C171: fTemp | D171: fTemp | E171: fTemp
B172: 7 | C172: =C$166*MAX(0,(($B172-C$167)/(C$168-C$167))*((C$169-$B172)/(C$169-C$168))^((C$169-C$168)/(C$168-C$167))) -> 0 | D172: 0 | E172: 0
B173: 7.5 | C173: 0 | D173: 0 | E173: 0
B174: 8 | C174: 0.01039509569 | D174: 0.008904646991 | E174: 0.007741603584
B175: 9 | C175: 0.02760553028 | D175: 0.02415628726 | E175: 0.02134591535
B176: 10 | C176: 0.04053349526 | D176: 0.03626241276 | E176: 0.03259034887
B177: 11 | C177: 0.04973527642 | D177: 0.04553108722 | E177: 0.04164741367
B178: 12 | C178: 0.05573055744 | D178: 0.05225927837 | E178: 0.04868740841
B179: 13 | C179: 0.05900285973 | D179: 0.05673266309 | E179: 0.05387833098
B180: 14 | C180: 0.06 | D180: 0.0592254189 | E180: 0.05738578025
B181: 15 | C181: 0.05913456707 | D181: 0.06 | E181: 0.05937284806
B182: 16 | C182: 0.05678441989 | D182: 0.05930689585 | E182: 0.06
B183: 17 | C183: 0.05329320892 | D183: 0.05738436992 | E183: 0.0594249431
B184: 18 | C184: 0.04897092352 | D184: 0.0544581756 | E184: 0.05780247807
B185: 19 | C185: 0.04409446833 | D185: 0.05074124582 | E185: 0.05528433336
B186: 20 | C186: 0.03890827218 | D186: 0.04643335194 | E186: 0.05201897719
B187: 21 | C187: 0.03362493401 | D187: 0.04172072648 | E187: 0.04815140316
B188: 22 | C188: 0.02842591085 | D188: 0.0367756429 | E188: 0.04382288323
B189: 23 | C189: 0.02346225455 | D189: 0.03175594342 | E189: 0.03917068009
B190: 24 | C190: 0.01885540515 | D190: 0.02680450366 | E190: 0.03432770822
B191: 25 | C191: 0.01469805132 | D191: 0.02204861837 | E191: 0.02942212856
B192: 26 | C192: 0.01105507127 | D192: 0.01759928748 | E192: 0.02457685567
B193: 27 | C193: 0.00796457184 | D193: 0.01355037274 | E193: 0.01990894604
B194: 28 | C194: 0.005439050432 | D194: 0.009977581861 | E194: 0.01552882019
B195: 29 | C195: 0.003466714337 | D195: 0.006937214548 | E195: 0.01153924236
B196: 30 | C196: 0.0020130093 | D196: 0.004464565459 | E196: 0.008033928823
A200: Soil water modifier
B202: Swconst = | C202: 0.7 | D202: 0.6 | E202: 0.5 | F202: 0.4
B203: Swpower = | C203: 9 | D203: 7 | E203: 5 | F203: 3
B205: relASW | C205: S | D205: SL | E205: CL | F205: C
B206: 0 | C206: =1/(1+((1-$B206)/C$202)^C$203) -> 0.03878835689 | D206: 0.02723129794 | E206: 0.0303030303 | F206: 0.06015037594
B207: 0.1 | C207: 0.09433391918 | D207: 0.05529157667 | E207: 0.05026216747 | F207: 0.08070617907
B208: 0.2 | C208: 0.2311582655 | D208: 0.1177642561 | E208: 0.08706433009 | F208: 0.1111111111
B209: 0.3 | C209: 0.5 | D209: 0.2536849365 | E209: 0.1567830624 | F209: 0.1572481572
B210: 0.4 | C210: 0.8001698271 | D210: 0.5 | E210: 0.2866709476 | F210: 0.2285714286
B211: 0.5 | C211: 0.9538341794 | D211: 0.7818109205 | E211: 0.5 | F211: 0.3386243386
B212: 0.6 | C212: 0.9935457552 | D212: 0.9447084233 | E212: 0.7531935406 | F212: 0.5
B213: 0.7 | C213: 0.9995124747 | D213: 0.992248062 | E213: 0.9278503563 | F213: 0.7032967033
B214: 0.8 | C214: 0.9999873123 | D214: 0.9995429616 | E214: 0.9898637947 | F214: 0.8888888889
B215: 0.9 | C215: 0.9999999752 | D215: 0.9999964278 | E215: 0.9996801024 | F215: 0.9846153846
B216: 1 | C216: 1 | D216: 1 | E216: 1 | F216: 1
A219: Canopy conductance
B221: maxCond = | C221: 0.02 | D221: 0.02 | E221: 0.025
B222: LAIgcx = | C222: 3 | D222: 4 | E222: 3
B223: Physmod = | C223: 1 | D223: 1 | E223: 1
B225: LAI | C225: gC
B226: 0 | C226: =C$221*C$223*MIN(1,$B226/C$222) -> 0 | D226: 0 | E226: =E$221*E$223*MIN(1,$B226/E$222) -> 0
B227: 0.5 | C227: 0.003333333333 | D227: 0.0025 | E227: 0.004166666667
B228: 1 | C228: 0.006666666667 | D228: 0.005 | E228: 0.008333333333
B229: 1.5 | C229: 0.01 | D229: 0.0075 | E229: 0.0125
B230: 2 | C230: 0.01333333333 | D230: 0.01 | E230: 0.01666666667
B231: 2.5 | C231: 0.01666666667 | D231: 0.0125 | E231: 0.02083333333
B232: 3 | C232: 0.02 | D232: 0.015 | E232: 0.025
B233: 3.5 | C233: 0.02 | D233: 0.0175 | E233: 0.025
B234: 4 | C234: 0.02 | D234: 0.02 | E234: 0.025
B235: 4.5 | C235: 0.02 | D235: 0.02 | E235: 0.025
B236: 5 | C236: 0.02 | D236: 0.02 | E236: 0.025
A239: Calculation ofVPD from Tmax and Tmin (assumes average =0.62 of max saturated VP)
A241: The following implements the internal calculation of VPD
A242: from maximum and minimum temperatures:
A243: VPD = (Sat Vap Pres at Tmax - Sat Vap Pres at Tmin)*0.62
A244: Enter data for Tmax and Tmin, and VPD is computed.
C247: Month | D247: Tmax | E247: Tmin | F247: VPD (mBar)
C248: Jan | D248: 31.7 | E248: 18.9 | F248: =(6.1078 * EXP(17.269 * D248 / (237.3 + D248)) -6.1078 * EXP(17.269 * E248 / (237.3 + E248)))*0.62 -> 15.44151549
C249: Feb | D249: 10.8 | E249: -3.2 | F249: =(6.1078 * EXP(17.269 * D249 / (237.3 + D249)) -6.1078 * EXP(17.269 * E249 / (237.3 + E249)))*0.62 -> 5.040043517
C250: Mar | D250: 13.3 | E250: -0.1 | F250: 5.70981056
C251: Apr | D251: 15.8 | E251: 4.2 | F251: 6.015724846
C252: May | D252: 19.5 | E252: 8.7 | F252: 7.078607444 | L252: =89-32 -> 57 | M252: =L252*5/9 -> 31.66666667
C253: Jun | D253: 23.4 | E253: 13.3 | F253: 8.373044741 | L253: =66-32 -> 34 | M253: =L253*5/9 -> 18.88888889
C254: Jul | D254: 27.6 | E254: 16.7 | F254: 11.10586321
C255: Aug | D255: 27.7 | E255: 15.7 | F255: 11.96802609
C256: Sep | D256: 24.6 | E256: 11.4 | F256: 10.8175585
C257: Oct | D257: 18.1 | E257: 4.9 | F257: 7.505675151
C258: Nov | D258: 11.3 | E258: -1.8 | F258: 4.983323168
C259: Dec | D259: 7.9 | E259: -4.6 | F259: 3.913913294
A263: Calculation of days <-2oC/month from Tmin
A264: [calibrated so that frost days are <-2oC]
A265: Frost days/ month = Tmin (-2.00) +11.6; if <0, then 0 days of frost
A266: Note: if Tmin is <-9, then set Frost days to 30
C268: Month | D268: Tmin | E268: Frost days | F268: Frost days
C269: Jan | D269: -5.4 | E269: =D269*(-2)+11.6 -> 22.4 | F269: =IF(E269<0,0,E269) -> 22.4
C270: Feb | D270: -3.2 | E270: 18 | F270: =IF(E270<0,0,E270) -> 18
... 10 more rows
